Ref No,Fund Type,Dept,Cost Centre Description    ,Description    ,Creditor Name    ,GL Code Net Amount,Payment date        
2,Revenue,CCHD,ASSIST - Health Promotion in Schools,Other Supplies & Services,DECIPHer IMPACT Limited,750.00, 27-Oct-2015
3,Revenue,CCHD,Breakthrough and Inclusion Work,Other Supplies & Services,121Turnaround Limited,1988.16, 14-Oct-2015
4,Revenue,CCHD,Breakthrough and Inclusion Work,Other Supplies & Services,121Turnaround Limited,2352.87, 14-Oct-2015
5,Revenue,CCHD,Breakthrough and Inclusion Work,Other Supplies & Services,P3D,3340.59, 12-Oct-2015
6,Revenue,CCHD,Learning Difficulties,Premises Hire,Circadian Trust,793.00, 01-Oct-2015
7,Revenue,CCHD,Learning Difficulties,Premises Hire,Circadian Trust,793.00, 30-Oct-2015
8,Revenue,CCHD,Learning Difficulties,Premises Hire,Circadian Trust,549.00, 27-Oct-2015
9,Revenue,CCHD,18-25 Year Olds,Permanent Residential,1 St Georges House,19067.95, 27-Oct-2015
10,Revenue,CCHD,18-25 Year Olds,Permanent Residential,5Th Floor Harlech Court,13837.80, 27-Oct-2015
11,Revenue,CCHD,18-25 Year Olds,Permanent Residential,5Th Floor Harlech Court,14114.08, 27-Oct-2015
12,Revenue,CCHD,18-25 Year Olds,Permanent Residential,5Th Floor Harlech Court,12656.32, 27-Oct-2015
13,Revenue,CCHD,18-25 Year Olds,Permanent Residential,5Th Floor Harlech Court,15925.08, 27-Oct-2015
14,Revenue,CCHD,18-25 Year Olds,Permanent Residential,Ash View House,6225.80, 27-Oct-2015
15,Revenue,CCHD,18-25 Year Olds,Permanent Residential,Bradbury House,8855.64, 27-Oct-2015
16,Revenue,CCHD,18-25 Year Olds,Day Care / Social Activities,Cherry Orchards,1037.00, 01-Oct-2015
17,Revenue,CCHD,18-25 Year Olds,Day Care / Social Activities,Cherry Orchards,1037.00, 01-Oct-2015
18,Revenue,CCHD,18-25 Year Olds,Day Care / Social Activities,Cherry Orchards,1037.00, 01-Oct-2015
19,Revenue,CCHD,18-25 Year Olds,Day Care / Social Activities,Cherry Orchards,1037.00, 27-Oct-2015
20,Revenue,CCHD,18-25 Year Olds,Day Care / Social Activities,Cherry Orchards,1037.00, 27-Oct-2015
21,Revenue,CCHD,18-25 Year Olds,Day Care / Social Activities,Cherry Orchards,1037.00, 27-Oct-2015
22,Revenue,CCHD,18-25 Year Olds,Day Care / Social Activities,Cherry Orchards,1037.00, 27-Oct-2015
23,Revenue,CCHD,18-25 Year Olds,Permanent Residential,Citibase Watford,7088.60, 27-Oct-2015
24,Revenue,CCHD,18-25 Year Olds,Permanent Residential,Citibase Watford,5514.44, 27-Oct-2015
25,Revenue,CCHD,18-25 Year Olds,Permanent Residential,Freeways Trust Ltd,3409.64, 27-Oct-2015
26,Revenue,CCHD,18-25 Year Olds,Permanent Residential,Home From Home Care Ltd,9086.16, 27-Oct-2015
27,Revenue,CCHD,18-25 Year Olds,Permanent Residential,Homes Caring For Autism Ltd  Churchill H,13043.96, 27-Oct-2015
28,Revenue,CCHD,18-25 Year Olds,Permanent Residential,Leonard Cheshire  National Account Centr,3231.92, 27-Oct-2015
29,Revenue,CCHD,18-25 Year Olds,Day Care / Social Activities,Make it Mentoring CIC Ltd,840.00, 05-Oct-2015
30,Revenue,CCHD,18-25 Year Olds,Permanent Residential,Milestones - Unit 10,8686.11, 27-Oct-2015
31,Revenue,CCHD,18-25 Year Olds,Permanent Residential,Park Hall,7259.36, 27-Oct-2015
32,Revenue,CCHD,18-25 Year Olds,Permanent Residential,Small House Homes Limited,18210.08, 27-Oct-2015
33,Revenue,CCHD,18-25 Year Olds,Day Care / Social Activities,St Roses School,2106.00, 01-Oct-2015
34,Revenue,CCHD,18-25 Year Olds,Respite Planned - Residential,St Roses School,2856.00, 01-Oct-2015
35,Revenue,CCHD,18-25 Year Olds,Day Care / Social Activities,St Roses School,1020.00, 01-Oct-2015
36,Revenue,CCHD,18-25 Year Olds,Respite Planned - Residential,St Roses School,3332.00, 01-Oct-2015
37,Revenue,CCHD,18-25 Year Olds,Day Care / Social Activities,St Roses School,1428.00, 01-Oct-2015
38,Revenue,CCHD,18-25 Year Olds,Permanent Nursing,St Roses School,4086.00, 27-Oct-2015
39,Revenue,CCHD,18-25 Year Olds,Respite Planned - Residential,St Roses School,1384.80, 27-Oct-2015
40,Revenue,CCHD,18-25 Year Olds,Respite Planned - Residential,St Roses School,3317.30, 27-Oct-2015
41,Revenue,CCHD,18-25 Year Olds,Permanent Residential,The Ann Coleman Centre,6122.56, 27-Oct-2015
42,Revenue,CCHD,18-25 Year Olds,Permanent Residential,The David Lewis Centre,5967.52, 27-Oct-2015
43,Revenue,CCHD,18-25 Year Olds,Permanent Residential,Wye House,8627.88, 27-Oct-2015
44,Revenue,CCHD,Bed Purchasing - South,Permanent Residential,.,1571.88, 27-Oct-2015
45,Revenue,CCHD,Bed Purchasing - South,Permanent Nursing,.,861.32, 27-Oct-2015
46,Revenue,CCHD,Bed Purchasing - South,Permanent Residential,5Th Floor Harlech Court,16236.56, 27-Oct-2015
47,Revenue,CCHD,Bed Purchasing - South,Permanent Residential,5Th Floor Harlech Court,9403.36, 27-Oct-2015
48,Revenue,CCHD,Bed Purchasing - South,Permanent Residential,5Th Floor Harlech Court,20705.04, 27-Oct-2015
49,Revenue,CCHD,Bed Purchasing - South,Permanent Residential,5Th Floor Harlech Court,10352.52, 27-Oct-2015
50,Revenue,CCHD,Bed Purchasing - South,Permanent Residential,Abbey Grange,8363.54, 27-Oct-2015
51,Revenue,CCHD,Bed Purchasing - South,Permanent Nursing,Ambleside Nusing Ho!,1526.08, 27-Oct-2015
52,Revenue,CCHD,Bed Purchasing - South,Permanent Residential,Autism Specialised Care Homes,5672.64, 27-Oct-2015
53,Revenue,CCHD,Bed Purchasing - South,Permanent Residential,Beaufort House,1447.40, 27-Oct-2015
54,Revenue,CCHD,Bed Purchasing - South,Respite Emergency - Residential,Beaufort House,1114.29, 27-Oct-2015
55,Revenue,CCHD,Bed Purchasing - South,Permanent Residential,Bedrock Lodge,3186.88, 27-Oct-2015
56,Revenue,CCHD,Bed Purchasing - South,Permanent Residential,Bedrock Lodge,2976.96, 27-Oct-2015
57,Revenue,CCHD,Bed Purchasing - South,Permanent Residential,Beech House,1270.80, 27-Oct-2015
58,Revenue,CCHD,Bed Purchasing - South,Permanent Residential,Brandon Trust,10380.40, 27-Oct-2015
59,Revenue,CCHD,Bed Purchasing - South,Permanent Residential,Brandon Trust,4080.76, 27-Oct-2015
60,Revenue,CCHD,Bed Purchasing - South,Permanent Residential,Brandon Trust,3493.24, 27-Oct-2015
61,Revenue,CCHD,Bed Purchasing - South,Permanent Nursing,Brandon Trust,5092.48, 27-Oct-2015
62,Revenue,CCHD,Bed Purchasing - South,Permanent Residential,Brandon Trust,3309.88, 27-Oct-2015
63,Revenue,CCHD,Bed Purchasing - South,Permanent Residential,Brightbow,2113.88, 27-Oct-2015
64,Revenue,CCHD,Bed Purchasing - South,Permanent Nursing,Brunel Care  Saffron Gardens,2011.96, 27-Oct-2015
65,Revenue,CCHD,Bed Purchasing - South,Permanent Nursing,Brunel Care  Saffron Gardens,2090.64, 27-Oct-2015
66,Revenue,CCHD,Bed Purchasing - South,Permanent Nursing,Brunel Care  Saffron Gardens,2378.80, 27-Oct-2015
67,Revenue,CCHD,Bed Purchasing - South,Permanent Nursing,Brunel Care  Saffron Gardens,1889.32, 27-Oct-2015
68,Revenue,CCHD,Bed Purchasing - South,Permanent Residential,Brunel Care  Saffron Gardens,1308.56, 27-Oct-2015
69,Revenue,CCHD,Bed Purchasing - South,Permanent Nursing,Brunelcare,2403.99, 07-Oct-2015
70,Revenue,CCHD,Bed Purchasing - South,Permanent Nursing,Brunelcare,2078.31, 07-Oct-2015
71,Revenue,CCHD,Bed Purchasing - South,Permanent Nursing,Brunelcare,2448.94, 07-Oct-2015
72,Revenue,CCHD,Bed Purchasing - South,Permanent Nursing,Brunelcare,2245.54, 07-Oct-2015
73,Revenue,CCHD,Bed Purchasing - South,Permanent Nursing,Brunelcare,2493.00, 07-Oct-2015
74,Revenue,CCHD,Bed Purchasing - South,Permanent Nursing,Brunelcare,2211.77, 07-Oct-2015
75,Revenue,CCHD,Bed Purchasing - South,Respite Planned - Nursing,Brunelcare,910.29, 07-Oct-2015
76,Revenue,CCHD,Bed Purchasing - South,Permanent Residential,Cleeve Lodge,568.08, 27-Oct-2015
77,Revenue,CCHD,Bed Purchasing - South,Respite Planned - Residential,Cleeve Lodge,2460.00, 27-Oct-2015
78,Revenue,CCHD,Bed Purchasing - South,Respite Planned - Residential,Cleeve Lodge,2460.00, 27-Oct-2015
79,Revenue,CCHD,Bed Purchasing - South,Permanent Residential,Cleeve Lodge,1954.80, 27-Oct-2015
80,Revenue,CCHD,Bed Purchasing - South,Permanent Residential,Cleeve Lodge,1256.66, 27-Oct-2015
81,Revenue,CCHD,Bed Purchasing - South,Permanent Residential,Cleeve Lodge,1827.76, 27-Oct-2015
82,Revenue,CCHD,Bed Purchasing - South,Permanent Residential,Collingwood Residential Home,1456.80, 27-Oct-2015
83,Revenue,CCHD,Bed Purchasing - South,Permanent Residential,Collingwood Residential Home,1466.04, 27-Oct-2015
84,Revenue,CCHD,Bed Purchasing - South,Permanent Residential,Collingwood Residential Home,1079.12, 27-Oct-2015
85,Revenue,CCHD,Bed Purchasing - South,Permanent Residential,Collingwood Residential Home,1333.28, 27-Oct-2015
86,Revenue,CCHD,Bed Purchasing - South,Permanent Residential,Collingwood Residential Home,1327.16, 27-Oct-2015
87,Revenue,CCHD,Bed Purchasing - South,Permanent Nursing,Community Integrated Care,664.84, 27-Oct-2015
88,Revenue,CCHD,Bed Purchasing - South,Permanent Residential,Cream Ii Ltd  Longrun House,5689.32, 27-Oct-2015
89,Revenue,CCHD,Bed Purchasing - South,Permanent Residential,Devon & Cornwall Autistic Community Trus,8880.84, 27-Oct-2015
90,Revenue,CCHD,Bed Purchasing - South,Permanent Residential,Dimensions  Suite 2,4933.76, 27-Oct-2015
91,Revenue,CCHD,Bed Purchasing - South,Permanent Residential,Edgecumbe Lodge,1201.56, 27-Oct-2015
92,Revenue,CCHD,Bed Purchasing - South,Permanent Residential,Edgecumbe Lodge,1060.40, 27-Oct-2015
93,Revenue,CCHD,Bed Purchasing - South,Permanent Residential,Edgecumbe Lodge,1444.84, 27-Oct-2015
94,Revenue,CCHD,Bed Purchasing - South,Permanent Residential,Edgecumbe Lodge,1145.92, 27-Oct-2015
95,Revenue,CCHD,Bed Purchasing - South,Permanent Residential,Edgemont House Ltd,1150.20, 27-Oct-2015
96,Revenue,CCHD,Bed Purchasing - South,Permanent Residential,Edgemont House Ltd,1311.36, 27-Oct-2015
97,Revenue,CCHD,Bed Purchasing - South,Permanent Nursing,Edgemont View Nursing Home,2804.48, 27-Oct-2015
98,Revenue,CCHD,Bed Purchasing - South,Permanent Nursing,Edgemont View Nursing Home,1763.04, 27-Oct-2015
99,Revenue,CCHD,Bed Purchasing - South,Permanent Nursing,Edgemont View Nursing Home,1457.44, 27-Oct-2015
100,Revenue,CCHD,Bed Purchasing - South,Permanent Nursing,Edgemont View Nursing Home,1648.40, 27-Oct-2015
101,Revenue,CCHD,Bed Purchasing - South,Permanent Nursing,Edgemont View Nursing Home,1209.88, 27-Oct-2015
102,Revenue,CCHD,Bed Purchasing - South,Permanent Nursing,Fairview Court,1655.12, 27-Oct-2015
103,Revenue,CCHD,Bed Purchasing - South,Permanent Nursing,Fairview Court,1786.36, 27-Oct-2015
104,Revenue,CCHD,Bed Purchasing - South,Permanent Nursing,Fairview Court,2019.04, 27-Oct-2015
105,Revenue,CCHD,Bed Purchasing - South,Permanent Nursing,Fairview Court Care Home,1169.44, 28-Oct-2015
106,Revenue,CCHD,Bed Purchasing - South,Permanent Nursing,Fairview Court Care Home,984.86, 28-Oct-2015
107,Revenue,CCHD,Bed Purchasing - South,Permanent Nursing,Fairview Court Care Home,2014.33, 28-Oct-2015
108,Revenue,CCHD,Bed Purchasing - South,Permanent Nursing,Fairview Court Care Home,2014.33, 28-Oct-2015
109,Revenue,CCHD,Bed Purchasing - South,Permanent Nursing,Fairview Court Care Home,1208.42, 28-Oct-2015
110,Revenue,CCHD,Bed Purchasing - South,Permanent Nursing,Fairview Court Care Home,1017.69, 28-Oct-2015
111,Revenue,CCHD,Bed Purchasing - South,Permanent Nursing,Fairview Court Care Home,2081.47, 28-Oct-2015
112,Revenue,CCHD,Bed Purchasing - South,Permanent Nursing,Fairview Court Care Home,2081.47, 28-Oct-2015
113,Revenue,CCHD,Bed Purchasing - South,Permanent Residential,Fairview House,868.80, 27-Oct-2015
114,Revenue,CCHD,Bed Purchasing - South,Permanent Residential,Fairview House,669.04, 27-Oct-2015
115,Revenue,CCHD,Bed Purchasing - South,Permanent Residential,Fairview House,1270.80, 27-Oct-2015
116,Revenue,CCHD,Bed Purchasing - South,Permanent Residential,Fairview House,1222.60, 27-Oct-2015
117,Revenue,CCHD,Bed Purchasing - South,Permanent Residential,Fairview House,1134.96, 27-Oct-2015
118,Revenue,CCHD,Bed Purchasing - South,Permanent Residential,Fairview House,1044.00, 27-Oct-2015
119,Revenue,CCHD,Bed Purchasing - South,Permanent Residential,Fairview House,1455.56, 27-Oct-2015
120,Revenue,CCHD,Bed Purchasing - South,Permanent Residential,Freeways Trust Ltd,3375.88, 27-Oct-2015
121,Revenue,CCHD,Bed Purchasing - South,Permanent Residential,Freeways Trust Ltd,2426.72, 27-Oct-2015
122,Revenue,CCHD,Bed Purchasing - South,Permanent Nursing,Fshc  1St Floor,900.32, 27-Oct-2015
123,Revenue,CCHD,Bed Purchasing - South,Permanent Nursing,Fshc  1St Floor,1398.80, 27-Oct-2015
124,Revenue,CCHD,Bed Purchasing - South,Permanent Nursing,Fshc  1St Floor,1013.96, 27-Oct-2015
125,Revenue,CCHD,Bed Purchasing - South,Permanent Nursing,Fshc  1St Floor,1398.80, 27-Oct-2015
126,Revenue,CCHD,Bed Purchasing - South,Permanent Nursing,Fshc  1St Floor,1261.32, 27-Oct-2015
127,Revenue,CCHD,Bed Purchasing - South,Respite Emergency - Nursing,Fshc  1St Floor,1904.00, 27-Oct-2015
128,Revenue,CCHD,Bed Purchasing - South,Permanent Nursing,Fshc  1St Floor,1142.76, 27-Oct-2015
129,Revenue,CCHD,Bed Purchasing - South,Permanent Nursing,Fshc  1St Floor,1398.80, 27-Oct-2015
130,Revenue,CCHD,Bed Purchasing - South,Permanent Nursing,Fshc  1St Floor,1354.20, 27-Oct-2015
131,Revenue,CCHD,Bed Purchasing - South,Respite Emergency - Residential,Fshc  1St Floor,9085.29, 27-Oct-2015
132,Revenue,CCHD,Bed Purchasing - South,Respite Emergency - Residential,Fshc  1St Floor,1141.71, 27-Oct-2015
133,Revenue,CCHD,Bed Purchasing - South,Permanent Residential,Fshc  1St Floor,1148.76, 27-Oct-2015
134,Revenue,CCHD,Bed Purchasing - South,Permanent Nursing,Fshc  1St Floor,2611.58, 27-Oct-2015
135,Revenue,CCHD,Bed Purchasing - South,Permanent Nursing,Fshc  1St Floor,1198.76, 27-Oct-2015
136,Revenue,CCHD,Bed Purchasing - South,Permanent Residential,Fshc  1St Floor,675.21, 27-Oct-2015
137,Revenue,CCHD,Bed Purchasing - South,Permanent Nursing,Fshc  1St Floor,5371.91, 27-Oct-2015
138,Revenue,CCHD,Bed Purchasing - South,Permanent Nursing,Fshc  1St Floor,1904.00, 27-Oct-2015
139,Revenue,CCHD,Bed Purchasing - South,Permanent Nursing,Fshc  1St Floor,748.00, 27-Oct-2015
140,Revenue,CCHD,Bed Purchasing - South,Permanent Residential,Fshc  1St Floor,6485.35, 27-Oct-2015
141,Revenue,CCHD,Bed Purchasing - South,Permanent Residential,Fshc  1St Floor,949.60, 27-Oct-2015
142,Revenue,CCHD,Bed Purchasing - South,Permanent Nursing,Fshc  1St Floor,1374.80, 27-Oct-2015
143,Revenue,CCHD,Bed Purchasing - South,Permanent Nursing,Fshc  1St Floor,1240.84, 27-Oct-2015
144,Revenue,CCHD,Bed Purchasing - South,Permanent Residential,Fshc  1St Floor,1270.80, 27-Oct-2015
145,Revenue,CCHD,Bed Purchasing - South,Permanent Nursing,Fshc  1St Floor,1240.16, 27-Oct-2015
146,Revenue,CCHD,Bed Purchasing - South,Permanent Nursing,Fshc  1St Floor,1402.52, 27-Oct-2015
147,Revenue,CCHD,Bed Purchasing - South,Permanent Residential,Fshc  1St Floor,1386.96, 27-Oct-2015
148,Revenue,CCHD,Bed Purchasing - South,Permanent Nursing,Fshc  1St Floor,1398.80, 27-Oct-2015
149,Revenue,CCHD,Bed Purchasing - South,Permanent Nursing,Fshc  1St Floor,1798.46, 27-Oct-2015
150,Revenue,CCHD,Bed Purchasing - South,Permanent Nursing,Fshc  1St Floor,1267.20, 27-Oct-2015
151,Revenue,CCHD,Bed Purchasing - South,Permanent Nursing,Fshc  1St Floor,1352.12, 27-Oct-2015
152,Revenue,CCHD,Bed Purchasing - South,Permanent Nursing,Fshc  1St Floor,1681.08, 27-Oct-2015
153,Revenue,CCHD,Bed Purchasing - South,Permanent Nursing,Fshc  1St Floor,1132.64, 27-Oct-2015
154,Revenue,CCHD,Bed Purchasing - South,Permanent Nursing,Fshc  1St Floor,1255.12, 27-Oct-2015
155,Revenue,CCHD,Bed Purchasing - South,Permanent Residential,Fshc  1St Floor,1364.68, 27-Oct-2015
156,Revenue,CCHD,Bed Purchasing - South,Permanent Nursing,Fshc  1St Floor,1137.72, 27-Oct-2015
157,Revenue,CCHD,Bed Purchasing - South,Permanent Nursing,Fshc  1St Floor,1221.40, 27-Oct-2015
158,Revenue,CCHD,Bed Purchasing - South,Permanent Residential,Fshc  1St Floor,1368.08, 27-Oct-2015
159,Revenue,CCHD,Bed Purchasing - South,Permanent Residential,Glasallt Fawr,4666.48, 27-Oct-2015
160,Revenue,CCHD,Bed Purchasing - South,Permanent Residential,Glebe House Nursing Home,2073.76, 27-Oct-2015
161,Revenue,CCHD,Bed Purchasing - South,Permanent Residential,Gordena Care Home,2137.52, 27-Oct-2015
162,Revenue,CCHD,Bed Purchasing - South,Permanent Residential,Gordena Care Home,3189.84, 27-Oct-2015
163,Revenue,CCHD,Bed Purchasing - South,Permanent Residential,Gordena Care Home,2996.16, 27-Oct-2015
164,Revenue,CCHD,Bed Purchasing - South,Permanent Residential,Gordena Care Home,1950.08, 27-Oct-2015
165,Revenue,CCHD,Bed Purchasing - South,Respite Planned - Residential,Gordena Care Home,2530.56, 27-Oct-2015
166,Revenue,CCHD,Bed Purchasing - South,Permanent Residential,Gordena Care Limited,4264.60, 27-Oct-2015
167,Revenue,CCHD,Bed Purchasing - South,Permanent Nursing,Gracefields Nursing Home,1712.72, 27-Oct-2015
168,Revenue,CCHD,Bed Purchasing - South,Permanent Nursing,Gracefields Nursing Home,2658.88, 27-Oct-2015
169,Revenue,CCHD,Bed Purchasing - South,Permanent Nursing,Gracefields Nursing Home,1601.96, 27-Oct-2015
170,Revenue,CCHD,Bed Purchasing - South,Permanent Nursing,Gracefields Nursing Home,5617.00, 27-Oct-2015
171,Revenue,CCHD,Bed Purchasing - South,Permanent Nursing,Gracefields Nursing Home,2293.72, 27-Oct-2015
172,Revenue,CCHD,Bed Purchasing - South,Permanent Residential,Grove Care,1883.40, 27-Oct-2015
173,Revenue,CCHD,Bed Purchasing - South,Permanent Residential,Gwendoline House,4069.26, 27-Oct-2015
174,Revenue,CCHD,Bed Purchasing - South,Permanent Residential,Gwendoline House,786.62, 27-Oct-2015
175,Revenue,CCHD,Bed Purchasing - South,Permanent Residential,Gwendoline House,955.96, 27-Oct-2015
176,Revenue,CCHD,Bed Purchasing - South,Permanent Residential,Gwendoline House,1159.80, 27-Oct-2015
177,Revenue,CCHD,Bed Purchasing - South,Permanent Residential,Harefield Hall,1219.24, 27-Oct-2015
178,Revenue,CCHD,Bed Purchasing - South,Permanent Residential,Harefield Hall,1150.52, 27-Oct-2015
179,Revenue,CCHD,Bed Purchasing - South,Permanent Residential,Harefield Hall,1039.04, 27-Oct-2015
180,Revenue,CCHD,Bed Purchasing - South,Permanent Residential,Harefield Hall,1313.12, 27-Oct-2015
181,Revenue,CCHD,Bed Purchasing - South,Permanent Residential,Harefield Hall,1254.36, 27-Oct-2015
182,Revenue,CCHD,Bed Purchasing - South,Permanent Nursing,Hc-One Ltd,1558.80, 27-Oct-2015
183,Revenue,CCHD,Bed Purchasing - South,Permanent Residential,Holmleigh Care Homes Ltd,5079.96, 27-Oct-2015
184,Revenue,CCHD,Bed Purchasing - South,Permanent Residential,Home Farm Trust Ltd  5-6 Brook Office Pa,5174.76, 27-Oct-2015
185,Revenue,CCHD,Bed Purchasing - South,Permanent Residential,Home Farm Trust Ltd  5-6 Brook Office Pa,5607.24, 27-Oct-2015
186,Revenue,CCHD,Bed Purchasing - South,Permanent Nursing,Horfield Care Limited,1438.49, 05-Oct-2015
187,Revenue,CCHD,Bed Purchasing - South,Permanent Nursing,Horfield Care Limited,1364.40, 05-Oct-2015
188,Revenue,CCHD,Bed Purchasing - South,Permanent Nursing,Horfield Care Limited,1348.59, 05-Oct-2015
189,Revenue,CCHD,Bed Purchasing - South,Permanent Nursing,Horfield Care Limited,11290.18, 05-Oct-2015
190,Revenue,CCHD,Bed Purchasing - South,Permanent Nursing,Horfield Care Limited,1108.59, 05-Oct-2015
191,Revenue,CCHD,Bed Purchasing - South,Respite Planned - Nursing,Horfield Care Limited,886.87, 26-Oct-2015
192,Revenue,CCHD,Bed Purchasing - South,Respite Planned - Nursing,Horfield Care Limited,1438.49, 26-Oct-2015
193,Revenue,CCHD,Bed Purchasing - South,Permanent Nursing,Horfield Care Limited,1320.39, 26-Oct-2015
194,Revenue,CCHD,Bed Purchasing - South,Permanent Residential,Julia Simone- Supp. Ind.,4004.36, 27-Oct-2015
195,Revenue,CCHD,Bed Purchasing - South,Permanent Residential,Kenver House Residential Home,1539.20, 27-Oct-2015
196,Revenue,CCHD,Bed Purchasing - South,Permanent Residential,Kenver House Residential Home,1153.00, 27-Oct-2015
197,Revenue,CCHD,Bed Purchasing - South,Permanent Residential,Kenver House Residential Home,1388.84, 27-Oct-2015
198,Revenue,CCHD,Bed Purchasing - South,Permanent Residential,Kenver House Residential Home,1685.08, 27-Oct-2015
199,Revenue,CCHD,Bed Purchasing - South,Permanent Residential,Kenver House Residential Home,1294.36, 27-Oct-2015
200,Revenue,CCHD,Bed Purchasing - South,Permanent Residential,Kenver House Residential Home,1277.20, 27-Oct-2015
201,Revenue,CCHD,Bed Purchasing - South,Permanent Residential,Kenver House Residential Home,1685.08, 27-Oct-2015
202,Revenue,CCHD,Bed Purchasing - South,Permanent Residential,Leonard Cheshire  National Account Centr,3376.16, 27-Oct-2015
203,Revenue,CCHD,Bed Purchasing - South,Permanent Residential,Leonard Cheshire  National Account Centr,4544.12, 27-Oct-2015
204,Revenue,CCHD,Bed Purchasing - South,Permanent Nursing,Leonard Cheshire  National Account Centr,2940.92, 27-Oct-2015
205,Revenue,CCHD,Bed Purchasing - South,Permanent Residential,Little Croft,1587.68, 27-Oct-2015
206,Revenue,CCHD,Bed Purchasing - South,Permanent Residential,Little Croft,908.60, 27-Oct-2015
207,Revenue,CCHD,Bed Purchasing - South,Permanent Residential,Little Croft,1241.84, 27-Oct-2015
208,Revenue,CCHD,Bed Purchasing - South,Permanent Residential,Little Croft,1422.92, 27-Oct-2015
209,Revenue,CCHD,Bed Purchasing - South,Permanent Residential,Manor Cottage,1865.68, 27-Oct-2015
210,Revenue,CCHD,Bed Purchasing - South,Permanent Residential,Manor Cottage,1464.20, 27-Oct-2015
211,Revenue,CCHD,Bed Purchasing - South,Permanent Residential,Manor Cottage,1516.40, 27-Oct-2015
212,Revenue,CCHD,Bed Purchasing - South,Permanent Residential,Marsden Healthcare Ltd,1276.04, 27-Oct-2015
213,Revenue,CCHD,Bed Purchasing - South,Permanent Residential,Marsden Healthcare Ltd,3278.84, 27-Oct-2015
214,Revenue,CCHD,Bed Purchasing - South,Permanent Residential,Marsden Healthcare Ltd,1538.08, 27-Oct-2015
215,Revenue,CCHD,Bed Purchasing - South,Permanent Nursing,Meadow Care Home,1552.32, 27-Oct-2015
216,Revenue,CCHD,Bed Purchasing - South,Permanent Residential,Mencap,2277.84, 27-Oct-2015
217,Revenue,CCHD,Bed Purchasing - South,Permanent Residential,Milestones - Unit 10,4921.56, 27-Oct-2015
218,Revenue,CCHD,Bed Purchasing - South,Permanent Residential,Milestones - Unit 10,5502.32, 27-Oct-2015
219,Revenue,CCHD,Bed Purchasing - South,Permanent Nursing,Milestones - Unit 10,2763.44, 27-Oct-2015
220,Revenue,CCHD,Bed Purchasing - South,Permanent Nursing,Milestones - Unit 10,1286.44, 27-Oct-2015
221,Revenue,CCHD,Bed Purchasing - South,Permanent Residential,Milestones - Unit 10,3640.84, 27-Oct-2015
222,Revenue,CCHD,Bed Purchasing - South,Permanent Residential,Milestones - Unit 10,4165.64, 27-Oct-2015
223,Revenue,CCHD,Bed Purchasing - South,Permanent Residential,Milestones - Unit 10,1317.44, 27-Oct-2015
224,Revenue,CCHD,Bed Purchasing - South,Permanent Residential,Milestones - Unit 10,5042.32, 27-Oct-2015
225,Revenue,CCHD,Bed Purchasing - South,Permanent Residential,Milestones - Unit 10,5595.76, 27-Oct-2015
226,Revenue,CCHD,Bed Purchasing - South,Permanent Residential,Milestones - Unit 10,5175.80, 27-Oct-2015
227,Revenue,CCHD,Bed Purchasing - South,Permanent Residential,Milestones - Unit 10,4378.84, 27-Oct-2015
228,Revenue,CCHD,Bed Purchasing - South,Permanent Residential,Milestones - Unit 10,3245.72, 27-Oct-2015
229,Revenue,CCHD,Bed Purchasing - South,Permanent Residential,Milestones - Unit 10,866.80, 27-Oct-2015
230,Revenue,CCHD,Bed Purchasing - South,Permanent Residential,Milestones - Unit 10,4318.72, 27-Oct-2015
231,Revenue,CCHD,Bed Purchasing - South,Permanent Nursing,Milestones - Unit 10,3319.80, 27-Oct-2015
232,Revenue,CCHD,Bed Purchasing - South,Permanent Residential,Milestones - Unit 10,3285.36, 27-Oct-2015
233,Revenue,CCHD,Bed Purchasing - South,Permanent Residential,Milestones - Unit 10,5984.52, 27-Oct-2015
234,Revenue,CCHD,Bed Purchasing - South,Permanent Residential,Milestones - Unit 10,1239.36, 27-Oct-2015
235,Revenue,CCHD,Bed Purchasing - South,Permanent Residential,Milestones - Unit 10,5319.52, 27-Oct-2015
236,Revenue,CCHD,Bed Purchasing - South,Permanent Nursing,Milestones - Unit 10,3399.64, 27-Oct-2015
237,Revenue,CCHD,Bed Purchasing - South,Permanent Nursing,Milestones - Unit 10,2808.92, 27-Oct-2015
238,Revenue,CCHD,Bed Purchasing - South,Permanent Residential,NHS South Gloucestershire CCG,9771.43, 22-Oct-2015
239,Revenue,CCHD,Bed Purchasing - South,Permanent Residential,Norwood   Broadway House,5027.16, 27-Oct-2015
240,Revenue,CCHD,Bed Purchasing - South,Permanent Residential,Notaro Homes Ltd  Queensmead Court,1905.16, 27-Oct-2015
241,Revenue,CCHD,Bed Purchasing - South,Permanent Residential,Nova House Care Home,954.84, 27-Oct-2015
242,Revenue,CCHD,Bed Purchasing - South,Permanent Residential,Osprey Court,7835.00, 27-Oct-2015
243,Revenue,CCHD,Bed Purchasing - South,Permanent Residential,Park Farm House,1800.16, 27-Oct-2015
244,Revenue,CCHD,Bed Purchasing - South,Permanent Residential,Park Farm House,1627.56, 27-Oct-2015
245,Revenue,CCHD,Bed Purchasing - South,Permanent Residential,Park Hall,5617.76, 27-Oct-2015
246,Revenue,CCHD,Bed Purchasing - South,Permanent Residential,Park Hall,5069.64, 27-Oct-2015
247,Revenue,CCHD,Bed Purchasing - South,Permanent Residential,Park Hall,2579.24, 27-Oct-2015
248,Revenue,CCHD,Bed Purchasing - South,Permanent Residential,Park Hall,5045.36, 27-Oct-2015
249,Revenue,CCHD,Bed Purchasing - South,Permanent Residential,Park Hall,10884.24, 27-Oct-2015
250,Revenue,CCHD,Bed Purchasing - South,Permanent Residential,Penleigh House Care Home,4610.80, 27-Oct-2015
251,Revenue,CCHD,Bed Purchasing - South,Permanent Residential,Penleigh House Care Home,6501.16, 27-Oct-2015
252,Revenue,CCHD,Bed Purchasing - South,Permanent Residential,Penleigh House Care Home,4361.48, 27-Oct-2015
253,Revenue,CCHD,Bed Purchasing - South,Permanent Residential,Penleigh House Care Home,5020.84, 27-Oct-2015
254,Revenue,CCHD,Bed Purchasing - South,Permanent Nursing,Regent House,2121.60, 27-Oct-2015
255,Revenue,CCHD,Bed Purchasing - South,Permanent Nursing,Regent House,2412.72, 27-Oct-2015
256,Revenue,CCHD,Bed Purchasing - South,Permanent Nursing,Regent House,1684.88, 27-Oct-2015
257,Revenue,CCHD,Bed Purchasing - South,Permanent Nursing,Regent House,1992.36, 27-Oct-2015
258,Revenue,CCHD,Bed Purchasing - South,Permanent Nursing,Regent House,2038.84, 27-Oct-2015
259,Revenue,CCHD,Bed Purchasing - South,Permanent Nursing,Regent House,1695.80, 27-Oct-2015
260,Revenue,CCHD,Bed Purchasing - South,Permanent Nursing,Regent House,1766.68, 27-Oct-2015
261,Revenue,CCHD,Bed Purchasing - South,Permanent Nursing,Regent House,1687.76, 27-Oct-2015
262,Revenue,CCHD,Bed Purchasing - South,Permanent Nursing,Regent House,1202.68, 27-Oct-2015
263,Revenue,CCHD,Bed Purchasing - South,Permanent Nursing,Regent House,2374.16, 27-Oct-2015
264,Revenue,CCHD,Bed Purchasing - South,Permanent Residential,Ridgeway House,3540.96, 27-Oct-2015
265,Revenue,CCHD,Bed Purchasing - South,Permanent Residential,Riverside House,3651.08, 27-Oct-2015
266,Revenue,CCHD,Bed Purchasing - South,Permanent Residential,Rockleaze,2437.00, 27-Oct-2015
267,Revenue,CCHD,Bed Purchasing - South,Permanent Residential,Rockleaze,1438.16, 27-Oct-2015
268,Revenue,CCHD,Bed Purchasing - South,Permanent Residential,Rosedale House,1527.28, 27-Oct-2015
269,Revenue,CCHD,Bed Purchasing - South,Permanent Residential,Rosewood Lodge & Brook House,4620.12, 27-Oct-2015
270,Revenue,CCHD,Bed Purchasing - South,Permanent Residential,Salters Hill Barn,2027.52, 27-Oct-2015
271,Revenue,CCHD,Bed Purchasing - South,Permanent Residential,Scope   Accounts Dept,3107.40, 27-Oct-2015
272,Revenue,CCHD,Bed Purchasing - South,Permanent Residential,Shaldon House (Positive Care Ltd),2252.04, 27-Oct-2015
273,Revenue,CCHD,Bed Purchasing - South,Permanent Nursing,Shaw Healthcare Ltd,2158.28, 27-Oct-2015
274,Revenue,CCHD,Bed Purchasing - South,Permanent Nursing,Shaw Healthcare Ltd,2110.72, 27-Oct-2015
275,Revenue,CCHD,Bed Purchasing - South,Permanent Nursing,Shaw Healthcare Ltd,2100.88, 27-Oct-2015
276,Revenue,CCHD,Bed Purchasing - South,Permanent Residential,Shaw Healthcare Ltd,10013.56, 27-Oct-2015
277,Revenue,CCHD,Bed Purchasing - South,Permanent Residential,Shaw Healthcare Ltd,4001.68, 27-Oct-2015
278,Revenue,CCHD,Bed Purchasing - South,Permanent Residential,St Brigas,2036.64, 27-Oct-2015
279,Revenue,CCHD,Bed Purchasing - South,Permanent Residential,St Brigas,3053.76, 27-Oct-2015
280,Revenue,CCHD,Bed Purchasing - South,Permanent Residential,St Brigas,2056.44, 27-Oct-2015
281,Revenue,CCHD,Bed Purchasing - South,Permanent Nursing,St George Nursing Home,1330.80, 27-Oct-2015
282,Revenue,CCHD,Bed Purchasing - South,Permanent Nursing,St George Nursing Home,875.68, 27-Oct-2015
283,Revenue,CCHD,Bed Purchasing - South,Permanent Nursing,Stanley House,7456.12, 27-Oct-2015
284,Revenue,CCHD,Bed Purchasing - South,Permanent Residential,Stepping Stones Re-Sett. Unit,7679.12, 27-Oct-2015
285,Revenue,CCHD,Bed Purchasing - South,Permanent Residential,The Beeches,1270.80, 27-Oct-2015
286,Revenue,CCHD,Bed Purchasing - South,Permanent Residential,The Gables Residential Home,1045.80, 27-Oct-2015
287,Revenue,CCHD,Bed Purchasing - South,Permanent Residential,The Garden House,755.44, 27-Oct-2015
288,Revenue,CCHD,Bed Purchasing - South,Permanent Residential,The Garden House,1956.60, 27-Oct-2015
289,Revenue,CCHD,Bed Purchasing - South,Respite Emergency - Residential,The Garden House,2507.14, 27-Oct-2015
290,Revenue,CCHD,Bed Purchasing - South,Permanent Residential,The Garden House,1202.52, 27-Oct-2015
291,Revenue,CCHD,Bed Purchasing - South,Permanent Residential,The Grove,1714.64, 27-Oct-2015
292,Revenue,CCHD,Bed Purchasing - South,Permanent Nursing,The Heathers,1281.64, 27-Oct-2015
293,Revenue,CCHD,Bed Purchasing - South,Permanent Nursing,The Heathers,1330.80, 27-Oct-2015
294,Revenue,CCHD,Bed Purchasing - South,Permanent Residential,The Manor House,3618.68, 27-Oct-2015
295,Revenue,CCHD,Bed Purchasing - South,Permanent Residential,The Manor House,3054.76, 27-Oct-2015
296,Revenue,CCHD,Bed Purchasing - South,Respite Planned - Residential,The Manor House,3389.16, 27-Oct-2015
297,Revenue,CCHD,Bed Purchasing - South,Respite Planned - Residential,The Manor House,1014.42, 27-Oct-2015
298,Revenue,CCHD,Bed Purchasing - South,Permanent Residential,The Manor House,5021.72, 27-Oct-2015
299,Revenue,CCHD,Bed Purchasing - South,Permanent Residential,The Manor House,32575.23, 27-Oct-2015
300,Revenue,CCHD,Bed Purchasing - South,Permanent Residential,The Manor House,4747.16, 27-Oct-2015
301,Revenue,CCHD,Bed Purchasing - South,Permanent Residential,The Manor House,4031.20, 27-Oct-2015
302,Revenue,CCHD,Bed Purchasing - South,Permanent Residential,The Manor House,4893.00, 27-Oct-2015
303,Revenue,CCHD,Bed Purchasing - South,Permanent Residential,The Manor House,3422.52, 27-Oct-2015
304,Revenue,CCHD,Bed Purchasing - South,Permanent Residential,The Manor House,6149.60, 27-Oct-2015
305,Revenue,CCHD,Bed Purchasing - South,Permanent Residential,The Manor House,3335.52, 27-Oct-2015
306,Revenue,CCHD,Bed Purchasing - South,Permanent Residential,The Manor House,3469.76, 27-Oct-2015
307,Revenue,CCHD,Bed Purchasing - South,Permanent Residential,The Manor House,3302.80, 27-Oct-2015
308,Revenue,CCHD,Bed Purchasing - South,Permanent Residential,The Manor House,2889.92, 27-Oct-2015
309,Revenue,CCHD,Bed Purchasing - South,Permanent Residential,The Manor House,4461.48, 27-Oct-2015
310,Revenue,CCHD,Bed Purchasing - South,Permanent Residential,The Manor House,4416.68, 27-Oct-2015
311,Revenue,CCHD,Bed Purchasing - South,Permanent Residential,The Manor House,3315.80, 27-Oct-2015
312,Revenue,CCHD,Bed Purchasing - South,Permanent Residential,The Manor House,2740.16, 27-Oct-2015
313,Revenue,CCHD,Bed Purchasing - South,Permanent Residential,The Manor House,3295.56, 27-Oct-2015
314,Revenue,CCHD,Bed Purchasing - South,Respite Planned - Residential,The Manor House,541.04, 27-Oct-2015
315,Revenue,CCHD,Bed Purchasing - South,Permanent Residential,The Manor House,4823.32, 27-Oct-2015
316,Revenue,CCHD,Bed Purchasing - South,Permanent Residential,The Worthies,1442.80, 27-Oct-2015
317,Revenue,CCHD,Bed Purchasing - South,Permanent Residential,Tracs Group Ltd,6604.20, 27-Oct-2015
318,Revenue,CCHD,Bed Purchasing - South,Permanent Residential,Victoria Court,11596.52, 27-Oct-2015
319,Revenue,CCHD,Bed Purchasing - South,Permanent Residential,Visions,3640.36, 27-Oct-2015
320,Revenue,CCHD,Bed Purchasing - South,Permanent Residential,Voyage Care,3075.64, 27-Oct-2015
321,Revenue,CCHD,Bed Purchasing - South,Permanent Residential,Voyage Care,7145.84, 27-Oct-2015
322,Revenue,CCHD,Bed Purchasing - South,Permanent Residential,Voyage Care,5760.08, 27-Oct-2015
323,Revenue,CCHD,Bed Purchasing - South,Permanent Residential,Voyage Care,5398.80, 27-Oct-2015
324,Revenue,CCHD,Bed Purchasing - South,Permanent Residential,Voyage Care,6354.08, 27-Oct-2015
325,Revenue,CCHD,Bed Purchasing - South,Permanent Residential,Voyage Care,6312.20, 27-Oct-2015
326,Revenue,CCHD,Bed Purchasing - South,Permanent Residential,Voyage Care,5885.60, 27-Oct-2015
327,Revenue,CCHD,Bed Purchasing - South,Permanent Residential,Voyage Care,5326.76, 27-Oct-2015
328,Revenue,CCHD,Bed Purchasing - South,Permanent Residential,Wayside Residential Care Home,1046.68, 27-Oct-2015
329,Revenue,CCHD,Bed Purchasing - South,Permanent Residential,Wayside Residential Care Home,1518.88, 27-Oct-2015
330,Revenue,CCHD,Bed Purchasing - South,Permanent Residential,Wayside Residential Care Home,1634.80, 27-Oct-2015
331,Revenue,CCHD,Bed Purchasing - South,Permanent Residential,Wayside Residential Care Home,1195.00, 27-Oct-2015
332,Revenue,CCHD,Bed Purchasing - South,Permanent Nursing,Wayside Residential Care Home,1290.08, 27-Oct-2015
333,Revenue,CCHD,Bed Purchasing - South,Permanent Residential,Wayside Residential Care Home,1183.20, 27-Oct-2015
334,Revenue,CCHD,Bed Purchasing - South,Permanent Residential,Willows,1558.28, 27-Oct-2015
335,Revenue,CCHD,Bed Purchasing - North,Permanent Residential,5Th Floor Harlech Court,16769.20, 27-Oct-2015
336,Revenue,CCHD,Bed Purchasing - North,Permanent Nursing,ABI Development Limited,7046.44, 27-Oct-2015
337,Revenue,CCHD,Bed Purchasing - North,Permanent Residential,Ark Care Homes Ltd,10348.28, 27-Oct-2015
338,Revenue,CCHD,Bed Purchasing - North,Permanent Residential,Aspects 2 Limited,12856.32, 27-Oct-2015
339,Revenue,CCHD,Bed Purchasing - North,Permanent Residential,Beaufort House,1686.44, 27-Oct-2015
340,Revenue,CCHD,Bed Purchasing - North,Permanent Residential,Beaufort House,1839.84, 27-Oct-2015
341,Revenue,CCHD,Bed Purchasing - North,Permanent Residential,Beaufort House,1894.80, 27-Oct-2015
342,Revenue,CCHD,Bed Purchasing - North,Permanent Residential,Beaufort House,1421.10, 27-Oct-2015
343,Revenue,CCHD,Bed Purchasing - North,Permanent Residential,Beaufort House,2425.92, 27-Oct-2015
344,Revenue,CCHD,Bed Purchasing - North,Permanent Residential,Beaufort House,1395.68, 27-Oct-2015
345,Revenue,CCHD,Bed Purchasing - North,Permanent Residential,Beaufort House,1822.84, 27-Oct-2015
346,Revenue,CCHD,Bed Purchasing - North,Permanent Residential,Beaufort House,1365.16, 27-Oct-2015
347,Revenue,CCHD,Bed Purchasing - North,Permanent Residential,Beaufort House,2639.26, 27-Oct-2015
348,Revenue,CCHD,Bed Purchasing - North,Permanent Residential,Beaufort House,1960.72, 27-Oct-2015
349,Revenue,CCHD,Bed Purchasing - North,Permanent Residential,Beaufort House,1876.68, 27-Oct-2015
350,Revenue,CCHD,Bed Purchasing - North,Respite Planned - Residential,Beaufort House,857.14, 27-Oct-2015
351,Revenue,CCHD,Bed Purchasing - North,Respite Planned - Residential,Beaufort House,771.43, 27-Oct-2015
352,Revenue,CCHD,Bed Purchasing - North,Respite Planned - Residential,Beaufort House,600.00, 27-Oct-2015
353,Revenue,CCHD,Bed Purchasing - North,Permanent Nursing,Beech House,1663.92, 27-Oct-2015
354,Revenue,CCHD,Bed Purchasing - North,Permanent Nursing,Beech House,2115.56, 27-Oct-2015
355,Revenue,CCHD,Bed Purchasing - North,Permanent Residential,Beech House,1442.80, 27-Oct-2015
356,Revenue,CCHD,Bed Purchasing - North,Permanent Residential,Beech House,1413.56, 27-Oct-2015
357,Revenue,CCHD,Bed Purchasing - North,Permanent Nursing,Blossom Field,2747.96, 27-Oct-2015
358,Revenue,CCHD,Bed Purchasing - North,Permanent Nursing,Blossom Field,1835.00, 27-Oct-2015
359,Revenue,CCHD,Bed Purchasing - North,Permanent Nursing,Blossom Field,1393.52, 27-Oct-2015
360,Revenue,CCHD,Bed Purchasing - North,Permanent Nursing,Blossom Field,2850.96, 27-Oct-2015
361,Revenue,CCHD,Bed Purchasing - North,Permanent Nursing,Blossom Field,2729.24, 27-Oct-2015
362,Revenue,CCHD,Bed Purchasing - North,Permanent Nursing,Blossom Fields,1874.48, 06-Oct-2015
363,Revenue,CCHD,Bed Purchasing - North,Permanent Nursing,Blossom Fields,2616.92, 06-Oct-2015
364,Revenue,CCHD,Bed Purchasing - North,Permanent Nursing,Blossom Fields,1874.48, 27-Oct-2015
365,Revenue,CCHD,Bed Purchasing - North,Permanent Nursing,Blossom Fields,2616.92, 27-Oct-2015
366,Revenue,CCHD,Bed Purchasing - North,Permanent Residential,Bradley House,1546.32, 27-Oct-2015
367,Revenue,CCHD,Bed Purchasing - North,Permanent Residential,Bridge House Care Home,1533.60, 27-Oct-2015
368,Revenue,CCHD,Bed Purchasing - North,Permanent Residential,Bridge House Care Home,1079.20, 27-Oct-2015
369,Revenue,CCHD,Bed Purchasing - North,Permanent Residential,Bridge House Care Home,1531.48, 27-Oct-2015
370,Revenue,CCHD,Bed Purchasing - North,Respite Planned - Residential,Bridge House Care Home,580.00, 27-Oct-2015
371,Revenue,CCHD,Bed Purchasing - North,Permanent Residential,Bridge House Care Home,1544.60, 27-Oct-2015
372,Revenue,CCHD,Bed Purchasing - North,Permanent Nursing,Brunelcare,2420.91, 07-Oct-2015
373,Revenue,CCHD,Bed Purchasing - North,Permanent Nursing,Brunelcare,2435.14, 07-Oct-2015
374,Revenue,CCHD,Bed Purchasing - North,Permanent Nursing,Brunelcare,2493.00, 07-Oct-2015
375,Revenue,CCHD,Bed Purchasing - North,Respite Planned - Nursing,Brunelcare,1416.00, 07-Oct-2015
376,Revenue,CCHD,Bed Purchasing - North,Respite Planned - Nursing,Brunelcare,1618.29, 07-Oct-2015
377,Revenue,CCHD,Bed Purchasing - North,Permanent Nursing,Bupa Care Services  Bridge House,6002.40, 27-Oct-2015
378,Revenue,CCHD,Bed Purchasing - North,Permanent Residential,Bupa Care Services  Bridge House,1821.06, 27-Oct-2015
379,Revenue,CCHD,Bed Purchasing - North,Permanent Residential,Charlton House,919.52, 27-Oct-2015
380,Revenue,CCHD,Bed Purchasing - North,Permanent Residential,Church House,10621.16, 27-Oct-2015
381,Revenue,CCHD,Bed Purchasing - North,Permanent Residential,Church House,5984.56, 27-Oct-2015
382,Revenue,CCHD,Bed Purchasing - North,Permanent Residential,Creedy Court,12716.84, 27-Oct-2015
383,Revenue,CCHD,Bed Purchasing - North,Permanent Residential,East Court,2238.40, 27-Oct-2015
384,Revenue,CCHD,Bed Purchasing - North,Respite Planned - Residential,Edgecumbe Lodge,750.00, 27-Oct-2015
385,Revenue,CCHD,Bed Purchasing - North,Permanent Residential,Edgecumbe Lodge,1378.20, 27-Oct-2015
386,Revenue,CCHD,Bed Purchasing - North,Respite Emergency - Residential,Edgemont House Ltd,1205.14, 27-Oct-2015
387,Revenue,CCHD,Bed Purchasing - North,Permanent Residential,Edgemont House Ltd,1270.80, 27-Oct-2015
388,Revenue,CCHD,Bed Purchasing - North,Permanent Nursing,Edgemont View Nursing Home,1232.16, 27-Oct-2015
389,Revenue,CCHD,Bed Purchasing - North,Permanent Residential,Epworth House,1053.36, 27-Oct-2015
390,Revenue,CCHD,Bed Purchasing - North,Permanent Nursing,Fairview Court,9437.66, 27-Oct-2015
391,Revenue,CCHD,Bed Purchasing - North,Permanent Nursing,Fairview Court,2347.96, 27-Oct-2015
392,Revenue,CCHD,Bed Purchasing - North,Permanent Nursing,Fairview Court Care Home,1662.94, 28-Oct-2015
393,Revenue,CCHD,Bed Purchasing - North,Permanent Nursing,Fairview Court Care Home,1718.37, 28-Oct-2015
394,Revenue,CCHD,Bed Purchasing - North,Permanent Residential,Fernbank,7790.28, 27-Oct-2015
395,Revenue,CCHD,Bed Purchasing - North,Permanent Nursing,Field House Care Home,704.70, 27-Oct-2015
396,Revenue,CCHD,Bed Purchasing - North,Permanent Residential,Freeways Trust Ltd,2891.96, 27-Oct-2015
397,Revenue,CCHD,Bed Purchasing - North,Permanent Residential,Freeways Trust Ltd,3164.68, 27-Oct-2015
398,Revenue,CCHD,Bed Purchasing - North,Permanent Residential,Freeways Trust Ltd,2312.72, 27-Oct-2015
399,Revenue,CCHD,Bed Purchasing - North,Permanent Residential,Freeways Trust Ltd,2761.92, 27-Oct-2015
400,Revenue,CCHD,Bed Purchasing - North,Permanent Residential,Freeways Trust Ltd,2286.84, 27-Oct-2015
401,Revenue,CCHD,Bed Purchasing - North,Permanent Residential,Freeways Trust Ltd,2688.74, 27-Oct-2015
402,Revenue,CCHD,Bed Purchasing - North,Permanent Residential,Freeways Trust Ltd,3185.76, 27-Oct-2015
403,Revenue,CCHD,Bed Purchasing - North,Permanent Residential,Freeways Trust Ltd,3866.08, 27-Oct-2015
404,Revenue,CCHD,Bed Purchasing - North,Permanent Nursing,Fshc  1St Floor,1904.00, 27-Oct-2015
405,Revenue,CCHD,Bed Purchasing - North,Permanent Nursing,Fshc  1St Floor,1097.68, 27-Oct-2015
406,Revenue,CCHD,Bed Purchasing - North,Permanent Residential,Fshc  1St Floor,1270.80, 27-Oct-2015
407,Revenue,CCHD,Bed Purchasing - North,Permanent Nursing,Fshc  1St Floor,1026.60, 27-Oct-2015
408,Revenue,CCHD,Bed Purchasing - North,Respite Planned - Nursing,Fshc  1St Floor,612.00, 27-Oct-2015
409,Revenue,CCHD,Bed Purchasing - North,Permanent Residential,Fshc  1St Floor,1248.40, 27-Oct-2015
410,Revenue,CCHD,Bed Purchasing - North,Permanent Nursing,Fshc  1St Floor,545.84, 27-Oct-2015
411,Revenue,CCHD,Bed Purchasing - North,Permanent Nursing,Fshc  1St Floor,1501.92, 27-Oct-2015
412,Revenue,CCHD,Bed Purchasing - North,Permanent Nursing,Fshc  1St Floor,1270.20, 27-Oct-2015
413,Revenue,CCHD,Bed Purchasing - North,Permanent Nursing,Fshc  1St Floor,908.28, 27-Oct-2015
414,Revenue,CCHD,Bed Purchasing - North,Permanent Nursing,Fshc  1St Floor,1398.80, 27-Oct-2015
415,Revenue,CCHD,Bed Purchasing - North,Permanent Nursing,Fshc  1St Floor,1489.56, 27-Oct-2015
416,Revenue,CCHD,Bed Purchasing - North,Permanent Residential,Fshc  1St Floor,1421.84, 27-Oct-2015
417,Revenue,CCHD,Bed Purchasing - North,Permanent Nursing,Fshc  1St Floor,1007.00, 27-Oct-2015
418,Revenue,CCHD,Bed Purchasing - North,Permanent Residential,Fshc  1St Floor,1268.08, 27-Oct-2015
419,Revenue,CCHD,Bed Purchasing - North,Permanent Residential,Fshc  1St Floor,731.16, 27-Oct-2015
420,Revenue,CCHD,Bed Purchasing - North,Permanent Residential,Fshc  1St Floor,1421.60, 27-Oct-2015
421,Revenue,CCHD,Bed Purchasing - North,Permanent Nursing,Fshc  1St Floor,1602.80, 27-Oct-2015
422,Revenue,CCHD,Bed Purchasing - North,Permanent Nursing,Fshc  1St Floor,1398.80, 27-Oct-2015
423,Revenue,CCHD,Bed Purchasing - North,Permanent Nursing,Fshc  1St Floor,1478.44, 27-Oct-2015
424,Revenue,CCHD,Bed Purchasing - North,Permanent Nursing,Fshc  1St Floor,1019.44, 27-Oct-2015
425,Revenue,CCHD,Bed Purchasing - North,Permanent Nursing,Fshc  1St Floor,1433.84, 27-Oct-2015
426,Revenue,CCHD,Bed Purchasing - North,Permanent Nursing,Fshc  1St Floor,2147.71, 27-Oct-2015
427,Revenue,CCHD,Bed Purchasing - North,Permanent Nursing,Fshc  1St Floor,1503.40, 27-Oct-2015
428,Revenue,CCHD,Bed Purchasing - North,Permanent Nursing,Fshc  1St Floor,1287.04, 27-Oct-2015
429,Revenue,CCHD,Bed Purchasing - North,Permanent Nursing,Fshc  1St Floor,1023.84, 27-Oct-2015
430,Revenue,CCHD,Bed Purchasing - North,Permanent Residential,Fshc  1St Floor,3034.68, 27-Oct-2015
431,Revenue,CCHD,Bed Purchasing - North,Permanent Nursing,Fshc  1St Floor,1405.04, 27-Oct-2015
432,Revenue,CCHD,Bed Purchasing - North,Permanent Nursing,Fshc  1St Floor,689.48, 27-Oct-2015
433,Revenue,CCHD,Bed Purchasing - North,Permanent Residential,Fshc  1St Floor,968.32, 27-Oct-2015
434,Revenue,CCHD,Bed Purchasing - North,Permanent Residential,Fshc  1St Floor,1179.64, 27-Oct-2015
435,Revenue,CCHD,Bed Purchasing - North,Permanent Nursing,Fshc  1St Floor,1144.52, 27-Oct-2015
436,Revenue,CCHD,Bed Purchasing - North,Respite Planned - Residential,Fshc  1St Floor,888.00, 27-Oct-2015
437,Revenue,CCHD,Bed Purchasing - North,Permanent Residential,Fshc  1St Floor,1446.24, 27-Oct-2015
438,Revenue,CCHD,Bed Purchasing - North,Permanent Residential,Fshc  1St Floor,1233.32, 27-Oct-2015
439,Revenue,CCHD,Bed Purchasing - North,Respite Emergency - Residential,Fshc  1St Floor,1918.72, 27-Oct-2015
440,Revenue,CCHD,Bed Purchasing - North,Permanent Nursing,Fshc  1St Floor,1364.16, 27-Oct-2015
441,Revenue,CCHD,Bed Purchasing - North,Permanent Nursing,Fshc  1St Floor,845.84, 27-Oct-2015
442,Revenue,CCHD,Bed Purchasing - North,Permanent Nursing,Fshc  1St Floor,1506.80, 27-Oct-2015
443,Revenue,CCHD,Bed Purchasing - North,Permanent Nursing,Fshc  1St Floor,1245.80, 27-Oct-2015
444,Revenue,CCHD,Bed Purchasing - North,Permanent Nursing,Fshc  1St Floor,1374.32, 27-Oct-2015
445,Revenue,CCHD,Bed Purchasing - North,Permanent Nursing,Fshc  1St Floor,1302.52, 27-Oct-2015
446,Revenue,CCHD,Bed Purchasing - North,Permanent Nursing,Fshc  1St Floor,1162.96, 27-Oct-2015
447,Revenue,CCHD,Bed Purchasing - North,Permanent Nursing,Fshc  1St Floor,1411.28, 27-Oct-2015
448,Revenue,CCHD,Bed Purchasing - North,Permanent Nursing,Fshc  1St Floor,1360.87, 27-Oct-2015
449,Revenue,CCHD,Bed Purchasing - North,Permanent Residential,Fshc  1St Floor,1128.92, 27-Oct-2015
450,Revenue,CCHD,Bed Purchasing - North,Permanent Nursing,Fshc  1St Floor,2661.60, 27-Oct-2015
451,Revenue,CCHD,Bed Purchasing - North,Permanent Nursing,Fshc  1St Floor,1330.80, 27-Oct-2015
452,Revenue,CCHD,Bed Purchasing - North,Permanent Nursing,Fshc  1St Floor,1506.80, 27-Oct-2015
453,Revenue,CCHD,Bed Purchasing - North,Permanent Residential,Fshc  1St Floor,1050.88, 27-Oct-2015
454,Revenue,CCHD,Bed Purchasing - North,Permanent Residential,Glebe House Nursing Home,2163.16, 27-Oct-2015
455,Revenue,CCHD,Bed Purchasing - North,Permanent Nursing,Glebe House Nursing Home,2140.68, 27-Oct-2015
456,Revenue,CCHD,Bed Purchasing - North,Permanent Nursing,Glebe House Nursing Home,2257.08, 27-Oct-2015
457,Revenue,CCHD,Bed Purchasing - North,Permanent Nursing,Glebe House Nursing Home,2186.96, 27-Oct-2015
458,Revenue,CCHD,Bed Purchasing - North,Permanent Residential,Glebe House Nursing Home,2628.08, 27-Oct-2015
459,Revenue,CCHD,Bed Purchasing - North,Permanent Residential,Gordena Care Limited,4260.48, 27-Oct-2015
460,Revenue,CCHD,Bed Purchasing - North,Permanent Residential,Greensleeves,1344.52, 27-Oct-2015
461,Revenue,CCHD,Bed Purchasing - North,Permanent Nursing,Hambledon House,5976.72, 27-Oct-2015
462,Revenue,CCHD,Bed Purchasing - North,Permanent Nursing,Hc-One Ltd,1511.16, 27-Oct-2015
463,Revenue,CCHD,Bed Purchasing - North,Permanent Residential,Hc-One Ltd,1112.44, 27-Oct-2015
464,Revenue,CCHD,Bed Purchasing - North,Respite Emergency - Nursing,Hc-One Ltd,3945.86, 27-Oct-2015
465,Revenue,CCHD,Bed Purchasing - North,Permanent Nursing,Hc-One Ltd,822.84, 27-Oct-2015
466,Revenue,CCHD,Bed Purchasing - North,Permanent Nursing,Hc-One Ltd,1508.32, 27-Oct-2015
467,Revenue,CCHD,Bed Purchasing - North,Permanent Residential,Holmleigh Care Homes Ltd,4115.32, 27-Oct-2015
468,Revenue,CCHD,Bed Purchasing - North,Permanent Residential,Home Farm Trust Ltd  5-6 Brook Office Pa,2700.52, 27-Oct-2015
469,Revenue,CCHD,Bed Purchasing - North,Permanent Residential,Home Farm Trust Ltd  5-6 Brook Office Pa,3480.32, 27-Oct-2015
470,Revenue,CCHD,Bed Purchasing - North,Permanent Residential,Homes Caring For Autism Ltd  Churchill H,10015.24, 27-Oct-2015
471,Revenue,CCHD,Bed Purchasing - North,Respite Planned - Nursing,Horfield Care Limited,2291.08, 05-Oct-2015
472,Revenue,CCHD,Bed Purchasing - North,Permanent Nursing,Horfield Care Limited,1034.68, 05-Oct-2015
473,Revenue,CCHD,Bed Purchasing - North,Respite Planned - Nursing,Horfield Care Limited,2217.17, 26-Oct-2015
474,Revenue,CCHD,Bed Purchasing - North,Permanent Nursing,Kingfisher Lodge Care Centre,2531.88, 27-Oct-2015
475,Revenue,CCHD,Bed Purchasing - North,Permanent Residential,Kisimul Group,11512.80, 27-Oct-2015
476,Revenue,CCHD,Bed Purchasing - North,Permanent Nursing,Leonard Cheshire  National Account Centr,5090.88, 27-Oct-2015
477,Revenue,CCHD,Bed Purchasing - North,Permanent Residential,Leonard Cheshire  National Account Centr,2948.64, 27-Oct-2015
478,Revenue,CCHD,Bed Purchasing - North,Permanent Nursing,Leonard Cheshire  National Account Centr,3559.68, 27-Oct-2015
479,Revenue,CCHD,Bed Purchasing - North,Permanent Nursing,Leonard Cheshire  National Account Centr,2858.32, 27-Oct-2015
480,Revenue,CCHD,Bed Purchasing - North,Permanent Residential,Leonard Cheshire  National Account Centr,6024.88, 27-Oct-2015
481,Revenue,CCHD,Bed Purchasing - North,Permanent Residential,Leonard Cheshire  National Account Centr,6023.32, 27-Oct-2015
482,Revenue,CCHD,Bed Purchasing - North,Permanent Nursing,Leonard Cheshire  National Account Centr,2913.28, 27-Oct-2015
483,Revenue,CCHD,Bed Purchasing - North,Permanent Nursing,Leonard Cheshire  National Account Centr,3912.16, 27-Oct-2015
484,Revenue,CCHD,Bed Purchasing - North,Permanent Residential,Leonard Cheshire  National Account Centr,2965.36, 27-Oct-2015
485,Revenue,CCHD,Bed Purchasing - North,Permanent Nursing,Leonard Cheshire  National Account Centr,3306.84, 27-Oct-2015
486,Revenue,CCHD,Bed Purchasing - North,Permanent Nursing,Leonard Cheshire  National Account Centr,5663.60, 27-Oct-2015
487,Revenue,CCHD,Bed Purchasing - North,Permanent Nursing,Leonard Cheshire  National Account Centr,3363.96, 27-Oct-2015
488,Revenue,CCHD,Bed Purchasing - North,Permanent Nursing,Leonard Cheshire  National Account Centr,4167.96, 27-Oct-2015
489,Revenue,CCHD,Bed Purchasing - North,Permanent Residential,Little Croft,1230.92, 27-Oct-2015
490,Revenue,CCHD,Bed Purchasing - North,Permanent Residential,Little Croft,1217.96, 27-Oct-2015
491,Revenue,CCHD,Bed Purchasing - North,Permanent Residential,Little Croft,1075.60, 27-Oct-2015
492,Revenue,CCHD,Bed Purchasing - North,Permanent Residential,Little Croft,1408.44, 27-Oct-2015
493,Revenue,CCHD,Bed Purchasing - North,Permanent Residential,Littlecroft Residential Homes  Longcroft,6478.92, 27-Oct-2015
494,Revenue,CCHD,Bed Purchasing - North,Permanent Residential,Manton Hall Residential Home,1542.80, 27-Oct-2015
495,Revenue,CCHD,Bed Purchasing - North,Permanent Residential,Milestones - Unit 10,2677.84, 27-Oct-2015
496,Revenue,CCHD,Bed Purchasing - North,Permanent Residential,Milestones - Unit 10,3496.32, 27-Oct-2015
497,Revenue,CCHD,Bed Purchasing - North,Permanent Nursing,Milestones - Unit 10,1440.08, 27-Oct-2015
498,Revenue,CCHD,Bed Purchasing - North,Respite Emergency - Residential,Milestones - Unit 10,9188.88, 27-Oct-2015
499,Revenue,CCHD,Bed Purchasing - North,Permanent Nursing,Milestones - Unit 10,8493.60, 27-Oct-2015
500,Revenue,CCHD,Bed Purchasing - North,Permanent Residential,Milestones - Unit 10,4062.96, 27-Oct-2015
501,Revenue,CCHD,Bed Purchasing - North,Permanent Residential,Milestones - Unit 10,4685.96, 27-Oct-2015
502,Revenue,CCHD,Bed Purchasing - North,Permanent Residential,Milestones - Unit 10,4349.92, 27-Oct-2015
503,Revenue,CCHD,Bed Purchasing - North,Permanent Nursing,Milestones - Unit 10,6971.80, 27-Oct-2015
504,Revenue,CCHD,Bed Purchasing - North,Permanent Nursing,Milestones - Unit 10,1108.84, 27-Oct-2015
505,Revenue,CCHD,Bed Purchasing - North,Permanent Residential,Milestones - Unit 10,3162.44, 27-Oct-2015
506,Revenue,CCHD,Bed Purchasing - North,Permanent Nursing,Milestones - Unit 10,1330.80, 27-Oct-2015
507,Revenue,CCHD,Bed Purchasing - North,Permanent Nursing,Milestones - Unit 10,4642.14, 27-Oct-2015
508,Revenue,CCHD,Bed Purchasing - North,Permanent Nursing,Milestones - Unit 10,1460.24, 27-Oct-2015
509,Revenue,CCHD,Bed Purchasing - North,Permanent Nursing,Milestones - Unit 10,834.36, 27-Oct-2015
510,Revenue,CCHD,Bed Purchasing - North,Permanent Residential,Millennium House,1429.56, 27-Oct-2015
511,Revenue,CCHD,Bed Purchasing - North,Permanent Residential,Mostyn Lodge Residential Home,1239.80, 27-Oct-2015
512,Revenue,CCHD,Bed Purchasing - North,Permanent Residential,National Star College,5035.04, 27-Oct-2015
513,Revenue,CCHD,Bed Purchasing - North,Permanent Residential,Notaro Homes Ltd  Queensmead Court,2524.12, 27-Oct-2015
514,Revenue,CCHD,Bed Purchasing - North,Permanent Residential,Osbourne Court,2006.64, 27-Oct-2015
515,Revenue,CCHD,Bed Purchasing - North,Permanent Residential,Osbourne Court,9822.20, 27-Oct-2015
516,Revenue,CCHD,Bed Purchasing - North,Permanent Residential,Osbourne Court,2006.16, 27-Oct-2015
517,Revenue,CCHD,Bed Purchasing - North,Permanent Residential,Osbourne Court,2204.80, 27-Oct-2015
518,Revenue,CCHD,Bed Purchasing - North,Permanent Residential,Osbourne Court,1831.04, 27-Oct-2015
519,Revenue,CCHD,Bed Purchasing - North,Permanent Residential,Osbourne Court,2063.12, 27-Oct-2015
520,Revenue,CCHD,Bed Purchasing - North,Permanent Residential,Osbourne Court,2774.80, 27-Oct-2015
521,Revenue,CCHD,Bed Purchasing - North,Permanent Residential,Osbourne Court,1090.10, 27-Oct-2015
522,Revenue,CCHD,Bed Purchasing - North,Permanent Residential,Park Farm House,826.76, 27-Oct-2015
523,Revenue,CCHD,Bed Purchasing - North,Permanent Residential,Park Hall,5258.76, 27-Oct-2015
524,Revenue,CCHD,Bed Purchasing - North,Permanent Residential,Park Hall,4371.04, 27-Oct-2015
525,Revenue,CCHD,Bed Purchasing - North,Permanent Nursing,Ravenswood,2218.80, 27-Oct-2015
526,Revenue,CCHD,Bed Purchasing - North,Permanent Nursing,Regent House,2018.20, 27-Oct-2015
527,Revenue,CCHD,Bed Purchasing - North,Permanent Nursing,Regent House,2081.48, 27-Oct-2015
528,Revenue,CCHD,Bed Purchasing - North,Permanent Nursing,Regent House,2543.60, 27-Oct-2015
529,Revenue,CCHD,Bed Purchasing - North,Permanent Residential,Shaw Healthcare Ltd,4185.36, 27-Oct-2015
530,Revenue,CCHD,Bed Purchasing - North,Permanent Nursing,St George Nursing Home,1330.80, 27-Oct-2015
531,Revenue,CCHD,Bed Purchasing - North,Permanent Nursing,St George Nursing Home,617.87, 27-Oct-2015
532,Revenue,CCHD,Bed Purchasing - North,Permanent Residential,St George Nursing Home,985.16, 27-Oct-2015
533,Revenue,CCHD,Bed Purchasing - North,Permanent Nursing,St Georges Nursing Home,2162.12, 27-Oct-2015
534,Revenue,CCHD,Bed Purchasing - North,Permanent Nursing,Stanley House,6432.28, 27-Oct-2015
535,Revenue,CCHD,Bed Purchasing - North,Permanent Residential,The Beeches,1473.56, 27-Oct-2015
536,Revenue,CCHD,Bed Purchasing - North,Permanent Residential,The Cidermill,1442.80, 27-Oct-2015
537,Revenue,CCHD,Bed Purchasing - North,Permanent Nursing,The Cidermill,1397.44, 27-Oct-2015
538,Revenue,CCHD,Bed Purchasing - North,Respite Planned - Nursing,The Cidermill,503.00, 27-Oct-2015
539,Revenue,CCHD,Bed Purchasing - North,Permanent Nursing,The Cidermill,1098.88, 27-Oct-2015
540,Revenue,CCHD,Bed Purchasing - North,Permanent Nursing,The Cidermill,962.00, 27-Oct-2015
541,Revenue,CCHD,Bed Purchasing - North,Permanent Nursing,The Cidermill,1225.44, 27-Oct-2015
542,Revenue,CCHD,Bed Purchasing - North,Permanent Residential,The Elms,1419.04, 27-Oct-2015
543,Revenue,CCHD,Bed Purchasing - North,Permanent Residential,The Garden House,1905.72, 27-Oct-2015
544,Revenue,CCHD,Bed Purchasing - North,Permanent Residential,The Garden House,1411.36, 27-Oct-2015
545,Revenue,CCHD,Bed Purchasing - North,Permanent Residential,The Garden House,2830.24, 27-Oct-2015
546,Revenue,CCHD,Bed Purchasing - North,Permanent Residential,The Garden House,1280.84, 27-Oct-2015
547,Revenue,CCHD,Bed Purchasing - North,Permanent Residential,The Garden House,2447.00, 27-Oct-2015
548,Revenue,CCHD,Bed Purchasing - North,Permanent Residential,The Garden House,1328.56, 27-Oct-2015
549,Revenue,CCHD,Bed Purchasing - North,Permanent Residential,The Grove,2138.08, 27-Oct-2015
550,Revenue,CCHD,Bed Purchasing - North,Permanent Residential,The Grove,1333.60, 27-Oct-2015
551,Revenue,CCHD,Bed Purchasing - North,Permanent Residential,The Grove,2163.32, 27-Oct-2015
552,Revenue,CCHD,Bed Purchasing - North,Permanent Residential,The Grove,1932.40, 27-Oct-2015
553,Revenue,CCHD,Bed Purchasing - North,Permanent Residential,The Grove,26633.78, 27-Oct-2015
554,Revenue,CCHD,Bed Purchasing - North,Permanent Residential,The Grove,3476.31, 27-Oct-2015
555,Revenue,CCHD,Bed Purchasing - North,Permanent Residential,The Grove,1474.80, 27-Oct-2015
556,Revenue,CCHD,Bed Purchasing - North,Permanent Residential,The Grove,2015.60, 27-Oct-2015
557,Revenue,CCHD,Bed Purchasing - North,Permanent Nursing,The Heathers,914.80, 27-Oct-2015
558,Revenue,CCHD,Bed Purchasing - North,Permanent Nursing,The Heathers,1384.56, 27-Oct-2015
559,Revenue,CCHD,Bed Purchasing - North,Permanent Nursing,The Heathers,1277.64, 27-Oct-2015
560,Revenue,CCHD,Bed Purchasing - North,Permanent Nursing,The Heathers,999.68, 27-Oct-2015
561,Revenue,CCHD,Bed Purchasing - North,Permanent Nursing,The Hollies Nursing Home,1816.12, 27-Oct-2015
562,Revenue,CCHD,Bed Purchasing - North,Permanent Residential,The Manor House,23362.29, 27-Oct-2015
563,Revenue,CCHD,Bed Purchasing - North,Permanent Residential,The Manor House,3382.28, 27-Oct-2015
564,Revenue,CCHD,Bed Purchasing - North,Permanent Residential,The Manor House,4055.52, 27-Oct-2015
565,Revenue,CCHD,Bed Purchasing - North,Respite Planned - Residential,The Manor House,664.28, 27-Oct-2015
566,Revenue,CCHD,Bed Purchasing - North,Respite Planned - Residential,The Old Vicarage Residential Home,556.57, 27-Oct-2015
567,Revenue,CCHD,Bed Purchasing - North,Respite Planned - Residential,The Old Vicarage Residential Home,2922.00, 27-Oct-2015
568,Revenue,CCHD,Bed Purchasing - North,Permanent Residential,The Old Vicarage Residential Home,1179.68, 27-Oct-2015
569,Revenue,CCHD,Bed Purchasing - North,Permanent Residential,The Thomas Moore Project,1983.60, 27-Oct-2015
570,Revenue,CCHD,Bed Purchasing - North,Permanent Residential,The Worthies,1377.20, 27-Oct-2015
571,Revenue,CCHD,Bed Purchasing - North,Permanent Residential,The Worthies,1039.68, 27-Oct-2015
572,Revenue,CCHD,Bed Purchasing - North,Permanent Residential,Tracs Group Ltd,6436.40, 27-Oct-2015
573,Revenue,CCHD,Bed Purchasing - North,Permanent Residential,Tracs Group Ltd,4693.32, 27-Oct-2015
574,Revenue,CCHD,Bed Purchasing - North,Permanent Residential,Ty Hafod Tudor,3976.76, 27-Oct-2015
575,Revenue,CCHD,Bed Purchasing - North,Permanent Residential,Victoria Court,8965.88, 27-Oct-2015
576,Revenue,CCHD,Bed Purchasing - North,Permanent Residential,Voyage Care,8461.32, 27-Oct-2015
577,Revenue,CCHD,Bed Purchasing - North,Permanent Nursing,Wickwar Nursing Home  Castle House,1325.40, 27-Oct-2015
578,Revenue,CCHD,Bed Purchasing - North,Permanent Nursing,Wickwar Nursing Home  Castle House,1575.16, 27-Oct-2015
579,Revenue,CCHD,Bed Purchasing - North,Permanent Nursing,Wickwar Nursing Home  Castle House,814.64, 27-Oct-2015
580,Revenue,CCHD,Bed Purchasing - North,Permanent Nursing,Wickwar Nursing Home  Castle House,761.96, 27-Oct-2015
581,Revenue,CCHD,Bed Purchasing - North,Respite Planned - Nursing,Wickwar Nursing Home  Castle House,2156.44, 27-Oct-2015
582,Revenue,CCHD,Bed Purchasing - North,Permanent Residential,Wickwar Nursing Home  Castle House,1266.80, 27-Oct-2015
583,Revenue,CCHD,Bed Purchasing - North,Permanent Nursing,Wickwar Nursing Home  Castle House,1251.60, 27-Oct-2015
584,Revenue,CCHD,Bed Purchasing - North,Respite Planned - Residential,Wickwar Nursing Home  Castle House,1332.00, 27-Oct-2015
585,Revenue,CCHD,Bed Purchasing - North,Permanent Nursing,Willow Cottage,2082.12, 27-Oct-2015
586,Revenue,CCHD,Bed Purchasing - North,Permanent Nursing,Willow Cottage,2048.56, 27-Oct-2015
587,Revenue,CCHD,Bed Purchasing - North,Permanent Nursing,Willow Cottage,1424.96, 27-Oct-2015
588,Revenue,CCHD,Bed Purchasing - North,Permanent Nursing,Willow Cottage,1953.56, 27-Oct-2015
589,Revenue,CCHD,Bed Purchasing - North,Respite Planned - Residential,Willows,810.00, 27-Oct-2015
590,Revenue,CCHD,Bed Purchasing - North,Permanent Residential,Willows,1734.44, 27-Oct-2015
591,Revenue,CCHD,Bed Purchasing - North,Permanent Residential,Windmill House,1157.96, 27-Oct-2015
592,Revenue,CCHD,Bed Purchasing - North,Permanent Residential,Windmill House,1077.80, 27-Oct-2015
593,Revenue,CCHD,Bed Purchasing - North,Permanent Residential,Windmill House,8607.45, 27-Oct-2015
594,Revenue,CCHD,Bed Purchasing - North,Permanent Residential,Windmill House,1217.72, 27-Oct-2015
595,Revenue,CCHD,Bed Purchasing - North,Permanent Nursing,Woodlands Manor,1356.52, 27-Oct-2015
596,Revenue,CCHD,Bed Purchasing - North,Permanent Nursing,Woodlands Manor,2061.24, 27-Oct-2015
597,Revenue,CCHD,Bed Purchasing - Frenchay Hospital,Permanent Nursing,Horfield Care Limited,1366.92, 05-Oct-2015
598,Revenue,CCHD,Bed Purchasing - Frenchay Hospital,Permanent Nursing,Horfield Care Limited,1322.83, 26-Oct-2015
599,Revenue,CCHD,Bed Purchasing - Southmead Hospital,Permanent Residential,.,936.35, 27-Oct-2015
600,Revenue,CCHD,Bed Purchasing - Southmead Hospital,Permanent Nursing,2 Woodbrook Crescent,1554.80, 27-Oct-2015
601,Revenue,CCHD,Bed Purchasing - Southmead Hospital,Permanent Residential,Abbey Grange,682.20, 27-Oct-2015
602,Revenue,CCHD,Bed Purchasing - Southmead Hospital,Permanent Nursing,Bayview Nursing & Residential Home,1494.36, 27-Oct-2015
603,Revenue,CCHD,Bed Purchasing - Southmead Hospital,Permanent Nursing,Bayview Nursing & Residential Home,879.84, 27-Oct-2015
604,Revenue,CCHD,Bed Purchasing - Southmead Hospital,Permanent Residential,Beaufort House,1270.48, 27-Oct-2015
605,Revenue,CCHD,Bed Purchasing - Southmead Hospital,Permanent Residential,Beaufort House,1543.28, 27-Oct-2015
606,Revenue,CCHD,Bed Purchasing - Southmead Hospital,Permanent Nursing,Blossom Field,2586.92, 27-Oct-2015
607,Revenue,CCHD,Bed Purchasing - Southmead Hospital,Permanent Nursing,Blossom Fields,2111.72, 06-Oct-2015
608,Revenue,CCHD,Bed Purchasing - Southmead Hospital,Permanent Nursing,Blossom Fields,2111.72, 27-Oct-2015
609,Revenue,CCHD,Bed Purchasing - Southmead Hospital,Permanent Nursing,Brandon Trust,4603.08, 27-Oct-2015
610,Revenue,CCHD,Bed Purchasing - Southmead Hospital,Permanent Nursing,Brunel Care  Saffron Gardens,4367.23, 27-Oct-2015
611,Revenue,CCHD,Bed Purchasing - Southmead Hospital,Permanent Nursing,Brunel Care  Saffron Gardens,1166.80, 27-Oct-2015
612,Revenue,CCHD,Bed Purchasing - Southmead Hospital,Permanent Nursing,Brunel Care  Saffron Gardens,2072.60, 27-Oct-2015
613,Revenue,CCHD,Bed Purchasing - Southmead Hospital,Permanent Nursing,Brunelcare,2181.04, 07-Oct-2015
614,Revenue,CCHD,Bed Purchasing - Southmead Hospital,Permanent Nursing,Brunelcare,2417.61, 07-Oct-2015
615,Revenue,CCHD,Bed Purchasing - Southmead Hospital,Permanent Nursing,Brunelcare,1389.09, 07-Oct-2015
616,Revenue,CCHD,Bed Purchasing - Southmead Hospital,Permanent Nursing,Brunelcare,2381.74, 07-Oct-2015
617,Revenue,CCHD,Bed Purchasing - Southmead Hospital,Permanent Nursing,Brunelcare,2322.99, 07-Oct-2015
618,Revenue,CCHD,Bed Purchasing - Southmead Hospital,Permanent Nursing,Brunelcare,2493.00, 07-Oct-2015
619,Revenue,CCHD,Bed Purchasing - Southmead Hospital,Permanent Nursing,Brunelcare,2398.29, 07-Oct-2015
620,Revenue,CCHD,Bed Purchasing - Southmead Hospital,Permanent Nursing,Bupa Care Services  Bridge House,1924.68, 27-Oct-2015
621,Revenue,CCHD,Bed Purchasing - Southmead Hospital,Permanent Nursing,Bupa Care Services  Bridge House,1696.32, 27-Oct-2015
622,Revenue,CCHD,Bed Purchasing - Southmead Hospital,Permanent Nursing,Cholwell House Nursing Home Ltd,1989.76, 27-Oct-2015
623,Revenue,CCHD,Bed Purchasing - Southmead Hospital,Permanent Nursing,Churchill Property Services,1698.04, 27-Oct-2015
624,Revenue,CCHD,Bed Purchasing - Southmead Hospital,Permanent Residential,Cleeve Lodge,1475.80, 27-Oct-2015
625,Revenue,CCHD,Bed Purchasing - Southmead Hospital,Permanent Residential,Coombs Wood House,1192.80, 27-Oct-2015
626,Revenue,CCHD,Bed Purchasing - Southmead Hospital,Permanent Residential,Edgecumbe Lodge,1776.00, 27-Oct-2015
627,Revenue,CCHD,Bed Purchasing - Southmead Hospital,Permanent Residential,Edgecumbe Lodge,1617.48, 27-Oct-2015
628,Revenue,CCHD,Bed Purchasing - Southmead Hospital,Permanent Residential,Edgecumbe Lodge,2021.60, 27-Oct-2015
629,Revenue,CCHD,Bed Purchasing - Southmead Hospital,Permanent Residential,Edgecumbe Lodge,1546.32, 27-Oct-2015
630,Revenue,CCHD,Bed Purchasing - Southmead Hospital,Permanent Nursing,Fairview Court,1896.04, 27-Oct-2015
631,Revenue,CCHD,Bed Purchasing - Southmead Hospital,Permanent Nursing,Fairview Court,1204.96, 27-Oct-2015
632,Revenue,CCHD,Bed Purchasing - Southmead Hospital,Permanent Residential,Fairview House,1043.16, 27-Oct-2015
633,Revenue,CCHD,Bed Purchasing - Southmead Hospital,Permanent Residential,Fairview House,1270.80, 27-Oct-2015
634,Revenue,CCHD,Bed Purchasing - Southmead Hospital,Permanent Residential,Fairview House,1084.40, 27-Oct-2015
635,Revenue,CCHD,Bed Purchasing - Southmead Hospital,Permanent Residential,Fairview House,1407.12, 27-Oct-2015
636,Revenue,CCHD,Bed Purchasing - Southmead Hospital,Permanent Residential,Faith House,560.04, 27-Oct-2015
637,Revenue,CCHD,Bed Purchasing - Southmead Hospital,Permanent Residential,Faith House,1252.12, 27-Oct-2015
638,Revenue,CCHD,Bed Purchasing - Southmead Hospital,Permanent Nursing,Frenchay Park Nursing Home,2200.00, 27-Oct-2015
639,Revenue,CCHD,Bed Purchasing - Southmead Hospital,Permanent Residential,Fshc  1St Floor,896.92, 27-Oct-2015
640,Revenue,CCHD,Bed Purchasing - Southmead Hospital,Permanent Nursing,Fshc  1St Floor,1308.48, 27-Oct-2015
641,Revenue,CCHD,Bed Purchasing - Southmead Hospital,Permanent Nursing,Fshc  1St Floor,1362.80, 27-Oct-2015
642,Revenue,CCHD,Bed Purchasing - Southmead Hospital,Permanent Nursing,Fshc  1St Floor,1398.80, 27-Oct-2015
643,Revenue,CCHD,Bed Purchasing - Southmead Hospital,Permanent Nursing,Fshc  1St Floor,1398.80, 27-Oct-2015
644,Revenue,CCHD,Bed Purchasing - Southmead Hospital,Permanent Nursing,Fshc  1St Floor,1064.28, 27-Oct-2015
645,Revenue,CCHD,Bed Purchasing - Southmead Hospital,Permanent Nursing,Fshc  1St Floor,1210.12, 27-Oct-2015
646,Revenue,CCHD,Bed Purchasing - Southmead Hospital,Permanent Residential,Fshc  1St Floor,1161.32, 27-Oct-2015
647,Revenue,CCHD,Bed Purchasing - Southmead Hospital,Permanent Nursing,Fshc  1St Floor,1398.80, 27-Oct-2015
648,Revenue,CCHD,Bed Purchasing - Southmead Hospital,Permanent Nursing,Fshc  1St Floor,1382.44, 27-Oct-2015
649,Revenue,CCHD,Bed Purchasing - Southmead Hospital,Permanent Nursing,Fshc  1St Floor,1398.80, 27-Oct-2015
650,Revenue,CCHD,Bed Purchasing - Southmead Hospital,Permanent Residential,Fshc  1St Floor,546.36, 27-Oct-2015
651,Revenue,CCHD,Bed Purchasing - Southmead Hospital,Permanent Nursing,Fshc  1St Floor,1398.80, 27-Oct-2015
652,Revenue,CCHD,Bed Purchasing - Southmead Hospital,Permanent Nursing,Fshc  1St Floor,1207.68, 27-Oct-2015
653,Revenue,CCHD,Bed Purchasing - Southmead Hospital,Permanent Nursing,Fshc  1St Floor,1398.80, 27-Oct-2015
654,Revenue,CCHD,Bed Purchasing - Southmead Hospital,Permanent Nursing,Fshc  1St Floor,1023.00, 27-Oct-2015
655,Revenue,CCHD,Bed Purchasing - Southmead Hospital,Permanent Nursing,Fshc  1St Floor,1622.04, 27-Oct-2015
656,Revenue,CCHD,Bed Purchasing - Southmead Hospital,Permanent Nursing,Fshc  1St Floor,1237.56, 27-Oct-2015
657,Revenue,CCHD,Bed Purchasing - Southmead Hospital,Permanent Nursing,Fshc  1St Floor,6311.52, 27-Oct-2015
658,Revenue,CCHD,Bed Purchasing - Southmead Hospital,Permanent Nursing,Fshc  1St Floor,935.04, 27-Oct-2015
659,Revenue,CCHD,Bed Purchasing - Southmead Hospital,Permanent Nursing,Fshc  1St Floor,535.24, 27-Oct-2015
660,Revenue,CCHD,Bed Purchasing - Southmead Hospital,Permanent Residential,Fshc  1St Floor,1158.00, 27-Oct-2015
661,Revenue,CCHD,Bed Purchasing - Southmead Hospital,Permanent Nursing,Fshc  1St Floor,1112.44, 27-Oct-2015
662,Revenue,CCHD,Bed Purchasing - Southmead Hospital,Permanent Nursing,Fshc  1St Floor,1132.12, 27-Oct-2015
663,Revenue,CCHD,Bed Purchasing - Southmead Hospital,Permanent Nursing,Fshc  1St Floor,1304.24, 27-Oct-2015
664,Revenue,CCHD,Bed Purchasing - Southmead Hospital,Permanent Nursing,Fshc  1St Floor,1398.80, 27-Oct-2015
665,Revenue,CCHD,Bed Purchasing - Southmead Hospital,Permanent Nursing,Fshc  1St Floor,1130.76, 27-Oct-2015
666,Revenue,CCHD,Bed Purchasing - Southmead Hospital,Permanent Nursing,Fshc  1St Floor,2080.00, 27-Oct-2015
667,Revenue,CCHD,Bed Purchasing - Southmead Hospital,Permanent Nursing,Fshc  1St Floor,1393.24, 27-Oct-2015
668,Revenue,CCHD,Bed Purchasing - Southmead Hospital,Permanent Nursing,Fshc  1St Floor,1398.80, 27-Oct-2015
669,Revenue,CCHD,Bed Purchasing - Southmead Hospital,Permanent Residential,Fshc  1St Floor,619.48, 27-Oct-2015
670,Revenue,CCHD,Bed Purchasing - Southmead Hospital,Permanent Nursing,Fshc  1St Floor,1385.72, 27-Oct-2015
671,Revenue,CCHD,Bed Purchasing - Southmead Hospital,Permanent Nursing,Fshc  1St Floor,7441.31, 27-Oct-2015
672,Revenue,CCHD,Bed Purchasing - Southmead Hospital,Permanent Nursing,Fshc  1St Floor,1108.28, 27-Oct-2015
673,Revenue,CCHD,Bed Purchasing - Southmead Hospital,Permanent Nursing,Fshc  1St Floor,1197.88, 27-Oct-2015
674,Revenue,CCHD,Bed Purchasing - Southmead Hospital,Respite Planned - Nursing,Fshc  1St Floor,2924.00, 27-Oct-2015
675,Revenue,CCHD,Bed Purchasing - Southmead Hospital,Respite Planned - Nursing,Fshc  1St Floor,1904.00, 27-Oct-2015
676,Revenue,CCHD,Bed Purchasing - Southmead Hospital,Permanent Residential,Fshc  1St Floor,1171.20, 27-Oct-2015
677,Revenue,CCHD,Bed Purchasing - Southmead Hospital,Permanent Nursing,Fshc  1St Floor,1344.04, 27-Oct-2015
678,Revenue,CCHD,Bed Purchasing - Southmead Hospital,Permanent Nursing,Fshc  1St Floor,1398.80, 27-Oct-2015
679,Revenue,CCHD,Bed Purchasing - Southmead Hospital,Permanent Nursing,Fshc  1St Floor,582.08, 27-Oct-2015
680,Revenue,CCHD,Bed Purchasing - Southmead Hospital,Permanent Nursing,Fshc  1St Floor,1398.80, 27-Oct-2015
681,Revenue,CCHD,Bed Purchasing - Southmead Hospital,Permanent Nursing,Fshc  1St Floor,1398.80, 27-Oct-2015
682,Revenue,CCHD,Bed Purchasing - Southmead Hospital,Permanent Nursing,Fshc  1St Floor,874.00, 27-Oct-2015
683,Revenue,CCHD,Bed Purchasing - Southmead Hospital,Permanent Nursing,Fshc  1St Floor,1398.80, 27-Oct-2015
684,Revenue,CCHD,Bed Purchasing - Southmead Hospital,Permanent Nursing,Fshc  1St Floor,1329.40, 27-Oct-2015
685,Revenue,CCHD,Bed Purchasing - Southmead Hospital,Permanent Nursing,Fshc  1St Floor,1271.84, 27-Oct-2015
686,Revenue,CCHD,Bed Purchasing - Southmead Hospital,Permanent Nursing,Fshc  1St Floor,1107.64, 27-Oct-2015
687,Revenue,CCHD,Bed Purchasing - Southmead Hospital,Permanent Nursing,Fshc  1St Floor,1848.92, 27-Oct-2015
688,Revenue,CCHD,Bed Purchasing - Southmead Hospital,Permanent Nursing,Fshc  1St Floor,1335.04, 27-Oct-2015
689,Revenue,CCHD,Bed Purchasing - Southmead Hospital,Permanent Residential,Fshc  1St Floor,1494.80, 27-Oct-2015
690,Revenue,CCHD,Bed Purchasing - Southmead Hospital,Permanent Nursing,Fshc  1St Floor,1398.80, 27-Oct-2015
691,Revenue,CCHD,Bed Purchasing - Southmead Hospital,Permanent Nursing,Fshc  1St Floor,1252.64, 27-Oct-2015
692,Revenue,CCHD,Bed Purchasing - Southmead Hospital,Permanent Nursing,Fshc  1St Floor,1304.40, 27-Oct-2015
693,Revenue,CCHD,Bed Purchasing - Southmead Hospital,Permanent Nursing,Fshc  1St Floor,1398.80, 27-Oct-2015
694,Revenue,CCHD,Bed Purchasing - Southmead Hospital,Permanent Nursing,Fshc  1St Floor,1398.80, 27-Oct-2015
695,Revenue,CCHD,Bed Purchasing - Southmead Hospital,Permanent Nursing,Fshc  1St Floor,1324.72, 27-Oct-2015
696,Revenue,CCHD,Bed Purchasing - Southmead Hospital,Permanent Residential,Fshc  1St Floor,1484.16, 27-Oct-2015
697,Revenue,CCHD,Bed Purchasing - Southmead Hospital,Permanent Nursing,Fshc  1St Floor,1398.80, 27-Oct-2015
698,Revenue,CCHD,Bed Purchasing - Southmead Hospital,Permanent Residential,Fshc  1St Floor,1131.52, 27-Oct-2015
699,Revenue,CCHD,Bed Purchasing - Southmead Hospital,Permanent Nursing,Fshc  1St Floor,813.60, 27-Oct-2015
700,Revenue,CCHD,Bed Purchasing - Southmead Hospital,Permanent Nursing,Fshc  1St Floor,1240.64, 27-Oct-2015
701,Revenue,CCHD,Bed Purchasing - Southmead Hospital,Permanent Nursing,Fshc  1St Floor,956.72, 27-Oct-2015
702,Revenue,CCHD,Bed Purchasing - Southmead Hospital,Permanent Nursing,Fshc  1St Floor,1566.40, 27-Oct-2015
703,Revenue,CCHD,Bed Purchasing - Southmead Hospital,Permanent Nursing,Fshc  1St Floor,1398.80, 27-Oct-2015
704,Revenue,CCHD,Bed Purchasing - Southmead Hospital,Permanent Nursing,Fshc  1St Floor,4439.94, 27-Oct-2015
705,Revenue,CCHD,Bed Purchasing - Southmead Hospital,Permanent Nursing,Fshc  1St Floor,894.72, 27-Oct-2015
706,Revenue,CCHD,Bed Purchasing - Southmead Hospital,Permanent Nursing,Fshc  1St Floor,936.48, 27-Oct-2015
707,Revenue,CCHD,Bed Purchasing - Southmead Hospital,Permanent Nursing,Fshc  1St Floor,1355.76, 27-Oct-2015
708,Revenue,CCHD,Bed Purchasing - Southmead Hospital,Permanent Nursing,Fshc  1St Floor,1506.80, 27-Oct-2015
709,Revenue,CCHD,Bed Purchasing - Southmead Hospital,Permanent Nursing,Fshc  1St Floor,1574.80, 27-Oct-2015
710,Revenue,CCHD,Bed Purchasing - Southmead Hospital,Permanent Residential,Fshc  1St Floor,1250.68, 27-Oct-2015
711,Revenue,CCHD,Bed Purchasing - Southmead Hospital,Permanent Nursing,Fshc  1St Floor,2946.14, 27-Oct-2015
712,Revenue,CCHD,Bed Purchasing - Southmead Hospital,Permanent Nursing,Fshc  1St Floor,2012.00, 27-Oct-2015
713,Revenue,CCHD,Bed Purchasing - Southmead Hospital,Permanent Nursing,Fshc  1St Floor,1382.28, 27-Oct-2015
714,Revenue,CCHD,Bed Purchasing - Southmead Hospital,Permanent Nursing,Fshc  1St Floor,1242.28, 27-Oct-2015
715,Revenue,CCHD,Bed Purchasing - Southmead Hospital,Permanent Nursing,Fshc  1St Floor,950.80, 27-Oct-2015
716,Revenue,CCHD,Bed Purchasing - Southmead Hospital,Permanent Nursing,Fshc  1St Floor,1574.80, 27-Oct-2015
717,Revenue,CCHD,Bed Purchasing - Southmead Hospital,Permanent Nursing,Fshc  1St Floor,1101.28, 27-Oct-2015
718,Revenue,CCHD,Bed Purchasing - Southmead Hospital,Permanent Residential,Fshc  1St Floor,808.44, 27-Oct-2015
719,Revenue,CCHD,Bed Purchasing - Southmead Hospital,Permanent Nursing,Gracefields Nursing Home,1733.76, 27-Oct-2015
720,Revenue,CCHD,Bed Purchasing - Southmead Hospital,Permanent Nursing,Gracefields Nursing Home,1655.96, 27-Oct-2015
721,Revenue,CCHD,Bed Purchasing - Southmead Hospital,Permanent Nursing,Gracefields Nursing Home,883.28, 27-Oct-2015
722,Revenue,CCHD,Bed Purchasing - Southmead Hospital,Permanent Nursing,Gracefields Nursing Home,1586.56, 27-Oct-2015
723,Revenue,CCHD,Bed Purchasing - Southmead Hospital,Permanent Nursing,Gracefields Nursing Home,1539.00, 27-Oct-2015
724,Revenue,CCHD,Bed Purchasing - Southmead Hospital,Permanent Residential,Granada House Residential Home,620.97, 27-Oct-2015
725,Revenue,CCHD,Bed Purchasing - Southmead Hospital,Permanent Residential,Gwendoline House,1282.04, 27-Oct-2015
726,Revenue,CCHD,Bed Purchasing - Southmead Hospital,Permanent Nursing,Hc-One Ltd,1648.40, 27-Oct-2015
727,Revenue,CCHD,Bed Purchasing - Southmead Hospital,Permanent Nursing,Hc-One Ltd,1540.80, 27-Oct-2015
728,Revenue,CCHD,Bed Purchasing - Southmead Hospital,Permanent Residential,High Border Lodge,1442.40, 27-Oct-2015
729,Revenue,CCHD,Bed Purchasing - Southmead Hospital,Permanent Residential,Highfield House,2092.56, 27-Oct-2015
730,Revenue,CCHD,Bed Purchasing - Southmead Hospital,Permanent Residential,Highgate Studios,1179.08, 27-Oct-2015
731,Revenue,CCHD,Bed Purchasing - Southmead Hospital,Respite Planned - Nursing,Horfield Care Limited,2247.64, 05-Oct-2015
732,Revenue,CCHD,Bed Purchasing - Southmead Hospital,Permanent Nursing,Horfield Care Limited,1476.22, 05-Oct-2015
733,Revenue,CCHD,Bed Purchasing - Southmead Hospital,Permanent Nursing,Horfield Care Limited,1847.56, 05-Oct-2015
734,Revenue,CCHD,Bed Purchasing - Southmead Hospital,Respite Planned - Nursing,Horfield Care Limited,2291.08, 05-Oct-2015
735,Revenue,CCHD,Bed Purchasing - Southmead Hospital,Permanent Nursing,Horfield Care Limited,1428.60, 26-Oct-2015
736,Revenue,CCHD,Bed Purchasing - Southmead Hospital,Permanent Nursing,Horfield Care Limited,1787.96, 26-Oct-2015
737,Revenue,CCHD,Bed Purchasing - Southmead Hospital,Respite Planned - Nursing,Horfield Care Limited,2217.17, 26-Oct-2015
738,Revenue,CCHD,Bed Purchasing - Southmead Hospital,Permanent Residential,Kenver House Residential Home,1664.04, 27-Oct-2015
739,Revenue,CCHD,Bed Purchasing - Southmead Hospital,Permanent Residential,Kenver House Residential Home,1685.08, 27-Oct-2015
740,Revenue,CCHD,Bed Purchasing - Southmead Hospital,Respite Planned - Residential,Kenver House Residential Home,2190.28, 27-Oct-2015
741,Revenue,CCHD,Bed Purchasing - Southmead Hospital,Permanent Residential,Kenver House Residential Home,1685.00, 27-Oct-2015
742,Revenue,CCHD,Bed Purchasing - Southmead Hospital,Permanent Nursing,Leonard Cheshire  National Account Centr,3075.12, 27-Oct-2015
743,Revenue,CCHD,Bed Purchasing - Southmead Hospital,Permanent Residential,Little Croft,1085.24, 27-Oct-2015
744,Revenue,CCHD,Bed Purchasing - Southmead Hospital,Permanent Residential,Little Croft,1269.32, 27-Oct-2015
745,Revenue,CCHD,Bed Purchasing - Southmead Hospital,Permanent Residential,Little Croft,1278.80, 27-Oct-2015
746,Revenue,CCHD,Bed Purchasing - Southmead Hospital,Respite Planned - Residential,Little Croft,5892.85, 27-Oct-2015
747,Revenue,CCHD,Bed Purchasing - Southmead Hospital,Permanent Residential,Little Croft,1394.32, 27-Oct-2015
748,Revenue,CCHD,Bed Purchasing - Southmead Hospital,Respite Planned - Residential,Little Croft,2200.00, 27-Oct-2015
749,Revenue,CCHD,Bed Purchasing - Southmead Hospital,Permanent Residential,Little Croft,1763.48, 27-Oct-2015
750,Revenue,CCHD,Bed Purchasing - Southmead Hospital,Permanent Residential,Little Croft,1478.80, 27-Oct-2015
751,Revenue,CCHD,Bed Purchasing - Southmead Hospital,Permanent Residential,Little Croft,1442.80, 27-Oct-2015
752,Revenue,CCHD,Bed Purchasing - Southmead Hospital,Permanent Residential,Little Croft,1233.68, 27-Oct-2015
753,Revenue,CCHD,Bed Purchasing - Southmead Hospital,Permanent Residential,Little Croft,1270.80, 27-Oct-2015
754,Revenue,CCHD,Bed Purchasing - Southmead Hospital,Permanent Residential,Little Croft,1270.80, 27-Oct-2015
755,Revenue,CCHD,Bed Purchasing - Southmead Hospital,Permanent Residential,Little Croft,1494.80, 27-Oct-2015
756,Revenue,CCHD,Bed Purchasing - Southmead Hospital,Permanent Nursing,Majestic 3 Limited,1004.20, 27-Oct-2015
757,Revenue,CCHD,Bed Purchasing - Southmead Hospital,Permanent Residential,Manor Cottage,1270.80, 27-Oct-2015
758,Revenue,CCHD,Bed Purchasing - Southmead Hospital,Permanent Residential,Manor Cottage,1041.92, 27-Oct-2015
759,Revenue,CCHD,Bed Purchasing - Southmead Hospital,Permanent Nursing,Milestones - Unit 10,1368.08, 27-Oct-2015
760,Revenue,CCHD,Bed Purchasing - Southmead Hospital,Permanent Residential,Mostyn Lodge Residential Home,1143.20, 27-Oct-2015
761,Revenue,CCHD,Bed Purchasing - Southmead Hospital,Permanent Residential,Nashley House Retirement Home,1270.80, 27-Oct-2015
762,Revenue,CCHD,Bed Purchasing - Southmead Hospital,Respite Emergency - Residential,Notaro Homes Ltd  Queensmead Court,3080.00, 27-Oct-2015
763,Revenue,CCHD,Bed Purchasing - Southmead Hospital,Permanent Residential,Notaro Homes Ltd  Queensmead Court,1399.96, 27-Oct-2015
764,Revenue,CCHD,Bed Purchasing - Southmead Hospital,Permanent Residential,Osbourne Court,973.08, 27-Oct-2015
765,Revenue,CCHD,Bed Purchasing - Southmead Hospital,Permanent Nursing,Palm Court Nursing Home,1617.72, 27-Oct-2015
766,Revenue,CCHD,Bed Purchasing - Southmead Hospital,Permanent Residential,Park Farm House,2600.00, 27-Oct-2015
767,Revenue,CCHD,Bed Purchasing - Southmead Hospital,Permanent Nursing,Regent House,1306.84, 27-Oct-2015
768,Revenue,CCHD,Bed Purchasing - Southmead Hospital,Permanent Nursing,Regent House,2007.40, 27-Oct-2015
769,Revenue,CCHD,Bed Purchasing - Southmead Hospital,Permanent Nursing,Regent House,1036.76, 27-Oct-2015
770,Revenue,CCHD,Bed Purchasing - Southmead Hospital,Permanent Nursing,Riversway Nursing Home,896.00, 27-Oct-2015
771,Revenue,CCHD,Bed Purchasing - Southmead Hospital,Permanent Nursing,Riversway Nursing Home,2715.32, 27-Oct-2015
772,Revenue,CCHD,Bed Purchasing - Southmead Hospital,Permanent Residential,Sanctuary Care Ltd,1924.64, 27-Oct-2015
773,Revenue,CCHD,Bed Purchasing - Southmead Hospital,Permanent Nursing,St George Nursing Home,1330.80, 27-Oct-2015
774,Revenue,CCHD,Bed Purchasing - Southmead Hospital,Permanent Nursing,St George Nursing Home,713.47, 27-Oct-2015
775,Revenue,CCHD,Bed Purchasing - Southmead Hospital,Permanent Nursing,St George Nursing Home,1330.80, 27-Oct-2015
776,Revenue,CCHD,Bed Purchasing - Southmead Hospital,Permanent Nursing,St George Nursing Home,1311.36, 27-Oct-2015
777,Revenue,CCHD,Bed Purchasing - Southmead Hospital,Permanent Nursing,St George Nursing Home,1350.80, 27-Oct-2015
778,Revenue,CCHD,Bed Purchasing - Southmead Hospital,Permanent Nursing,St George Nursing Home,1330.80, 27-Oct-2015
779,Revenue,CCHD,Bed Purchasing - Southmead Hospital,Permanent Nursing,St Monicas Trust,1687.27, 27-Oct-2015
780,Revenue,CCHD,Bed Purchasing - Southmead Hospital,Permanent Nursing,St Teresa`S Nursing Home,2009.88, 27-Oct-2015
781,Revenue,CCHD,Bed Purchasing - Southmead Hospital,Permanent Nursing,St Teresa`S Nursing Home,919.72, 27-Oct-2015
782,Revenue,CCHD,Bed Purchasing - Southmead Hospital,Permanent Residential,The Beeches,1563.64, 27-Oct-2015
783,Revenue,CCHD,Bed Purchasing - Southmead Hospital,Permanent Residential,The Cidermill,978.04, 27-Oct-2015
784,Revenue,CCHD,Bed Purchasing - Southmead Hospital,Permanent Residential,The Gables Residential Home,1385.20, 27-Oct-2015
785,Revenue,CCHD,Bed Purchasing - Southmead Hospital,Permanent Residential,The Gables Residential Home,982.80, 27-Oct-2015
786,Revenue,CCHD,Bed Purchasing - Southmead Hospital,Permanent Residential,The Grove,1997.68, 27-Oct-2015
787,Revenue,CCHD,Bed Purchasing - Southmead Hospital,Permanent Nursing,The Heathers,1346.80, 27-Oct-2015
788,Revenue,CCHD,Bed Purchasing - Southmead Hospital,Permanent Nursing,The Heathers,1230.72, 27-Oct-2015
789,Revenue,CCHD,Bed Purchasing - Southmead Hospital,Permanent Nursing,The Heathers,1287.92, 27-Oct-2015
790,Revenue,CCHD,Bed Purchasing - Southmead Hospital,Permanent Nursing,The Heathers,1330.80, 27-Oct-2015
791,Revenue,CCHD,Bed Purchasing - Southmead Hospital,Permanent Nursing,The Heathers,1731.72, 27-Oct-2015
792,Revenue,CCHD,Bed Purchasing - Southmead Hospital,Permanent Residential,The Worthies,2773.36, 27-Oct-2015
793,Revenue,CCHD,Bed Purchasing - Southmead Hospital,Permanent Residential,The Worthies,1159.00, 27-Oct-2015
794,Revenue,CCHD,Bed Purchasing - Southmead Hospital,Permanent Residential,The Worthies,1460.48, 27-Oct-2015
795,Revenue,CCHD,Bed Purchasing - Southmead Hospital,Permanent Residential,Warley House,924.72, 27-Oct-2015
796,Revenue,CCHD,Bed Purchasing - Southmead Hospital,Permanent Residential,Wayside Residential Care Home,1497.96, 27-Oct-2015
797,Revenue,CCHD,Bed Purchasing - Southmead Hospital,Permanent Residential,Wellingore Hall,5440.42, 27-Oct-2015
798,Revenue,CCHD,Bed Purchasing - Southmead Hospital,Permanent Nursing,Wickwar Nursing Home  Castle House,1323.88, 27-Oct-2015
799,Revenue,CCHD,Bed Purchasing - Southmead Hospital,Permanent Nursing,Wickwar Nursing Home  Castle House,1459.40, 27-Oct-2015
800,Revenue,CCHD,Bed Purchasing - Southmead Hospital,Respite Planned - Nursing,Wickwar Nursing Home  Castle House,1836.00, 27-Oct-2015
801,Revenue,CCHD,Bed Purchasing - Southmead Hospital,Permanent Nursing,Wickwar Nursing Home  Castle House,1836.00, 27-Oct-2015
802,Revenue,CCHD,Bed Purchasing - Southmead Hospital,Permanent Nursing,Wickwar Nursing Home  Castle House,1627.84, 27-Oct-2015
803,Revenue,CCHD,Bed Purchasing - Southmead Hospital,Permanent Nursing,Wickwar Nursing Home  Castle House,1218.16, 27-Oct-2015
804,Revenue,CCHD,Bed Purchasing - Southmead Hospital,Permanent Residential,Wickwar Nursing Home  Castle House,1718.56, 27-Oct-2015
805,Revenue,CCHD,Bed Purchasing - Southmead Hospital,Permanent Nursing,Wickwar Nursing Home  Castle House,1010.84, 27-Oct-2015
806,Revenue,CCHD,Bed Purchasing - Southmead Hospital,Permanent Nursing,Wickwar Nursing Home  Castle House,1052.72, 27-Oct-2015
807,Revenue,CCHD,Bed Purchasing - Southmead Hospital,Permanent Nursing,Wickwar Nursing Home  Castle House,768.84, 27-Oct-2015
808,Revenue,CCHD,Bed Purchasing - Southmead Hospital,Permanent Nursing,Wickwar Nursing Home  Castle House,832.72, 27-Oct-2015
809,Revenue,CCHD,Bed Purchasing - Southmead Hospital,Permanent Nursing,Willow Cottage,1776.64, 27-Oct-2015
810,Revenue,CCHD,Bed Purchasing - Southmead Hospital,Permanent Nursing,Willow Cottage,1402.60, 27-Oct-2015
811,Revenue,CCHD,Bed Purchasing - Southmead Hospital,Permanent Nursing,Willow Cottage,1202.72, 27-Oct-2015
812,Revenue,CCHD,Bed Purchasing - Southmead Hospital,Permanent Nursing,Willow Cottage,1330.40, 27-Oct-2015
813,Revenue,CCHD,Bed Purchasing - Southmead Hospital,Permanent Residential,Willows,1570.00, 27-Oct-2015
814,Revenue,CCHD,Bed Purchasing - Southmead Hospital,Permanent Residential,Willows,1449.60, 27-Oct-2015
815,Revenue,CCHD,Bed Purchasing - Southmead Hospital,Permanent Residential,Windmill House,1270.80, 27-Oct-2015
816,Revenue,CCHD,Bed Purchasing - Southmead Hospital,Permanent Residential,Windmill House,778.68, 27-Oct-2015
817,Revenue,CCHD,Bed Purchasing - Southmead Hospital,Permanent Nursing,Woodland Health Care  Pinetree Court,1330.80, 27-Oct-2015
818,Revenue,CCHD,Bed Purchasing - Southmead Hospital,Permanent Nursing,Woodlands Manor,1077.84, 27-Oct-2015
819,Revenue,CCHD,Bed Purchasing - Southmead Hospital,Permanent Nursing,Woodlands Manor,1334.80, 27-Oct-2015
820,Revenue,CCHD,Bed Purchasing - Southmead Hospital,Permanent Nursing,Woodlands Manor,570.34, 27-Oct-2015
821,Revenue,CCHD,Intermediate Care Accommodation,Other Supplies & Services,Merlin Housing Society,613.91, 27-Oct-2015
822,Revenue,CCHD,South Glos Users in South Glos Homes,Permanent Nursing,Beaufort Grange Care Home,1232.00, 27-Oct-2015
823,Revenue,CCHD,South Glos Users in South Glos Homes,Permanent Nursing,Beaufort Grange Care Home,1664.00, 27-Oct-2015
824,Revenue,CCHD,South Glos Users in South Glos Homes,Permanent Nursing,Beech House,1520.00, 27-Oct-2015
825,Revenue,CCHD,South Glos Users in South Glos Homes,Permanent Nursing,Blossom Field,624.00, 27-Oct-2015
826,Revenue,CCHD,South Glos Users in South Glos Homes,Permanent Nursing,Blossom Field,656.00, 27-Oct-2015
827,Revenue,CCHD,South Glos Users in South Glos Homes,Permanent Nursing,Blossom Field,2784.00, 27-Oct-2015
828,Revenue,CCHD,South Glos Users in South Glos Homes,Permanent Nursing,Brunel Care  Saffron Gardens,1088.00, 27-Oct-2015
829,Revenue,CCHD,South Glos Users in South Glos Homes,Permanent Nursing,Brunel Care  Saffron Gardens,2736.00, 27-Oct-2015
830,Revenue,CCHD,South Glos Users in South Glos Homes,Permanent Nursing,Fshc  1St Floor,816.00, 27-Oct-2015
831,Revenue,CCHD,South Glos Users in South Glos Homes,Permanent Nursing,Fshc  1St Floor,944.00, 27-Oct-2015
832,Revenue,CCHD,South Glos Users in South Glos Homes,Permanent Nursing,Fshc  1St Floor,1968.00, 27-Oct-2015
833,Revenue,CCHD,South Glos Users in South Glos Homes,Permanent Nursing,Fshc  1St Floor,2752.00, 27-Oct-2015
834,Revenue,CCHD,South Glos Users in South Glos Homes,Permanent Nursing,Fshc  1St Floor,3104.00, 27-Oct-2015
835,Revenue,CCHD,South Glos Users in South Glos Homes,Permanent Nursing,Fshc  1St Floor,1568.00, 27-Oct-2015
836,Revenue,CCHD,South Glos Users in South Glos Homes,Permanent Nursing,Fshc  1St Floor,1869.29, 27-Oct-2015
837,Revenue,CCHD,South Glos Users in South Glos Homes,Permanent Nursing,Fshc  1St Floor,640.00, 27-Oct-2015
838,Revenue,CCHD,South Glos Users in South Glos Homes,Permanent Nursing,Glebe House Nursing Home,784.00, 27-Oct-2015
839,Revenue,CCHD,South Glos Users in South Glos Homes,Permanent Nursing,Glebe House Nursing Home,640.00, 27-Oct-2015
840,Revenue,CCHD,South Glos Users in South Glos Homes,Permanent Nursing,Milestones - Unit 10,560.00, 27-Oct-2015
841,Revenue,CCHD,South Glos Users in South Glos Homes,Permanent Nursing,Regent House,1008.00, 27-Oct-2015
842,Revenue,CCHD,South Glos Users in South Glos Homes,Permanent Nursing,Regent House,896.00, 27-Oct-2015
843,Revenue,CCHD,South Glos Users in South Glos Homes,Permanent Nursing,Regent House,1216.00, 27-Oct-2015
844,Revenue,CCHD,South Glos Users in South Glos Homes,Permanent Nursing,The Heathers,1680.00, 27-Oct-2015
845,Revenue,CCHD,South Glos Users in South Glos Homes,Permanent Nursing,Wickwar Nursing Home  Castle House,864.00, 27-Oct-2015
846,Revenue,CCHD,South Glos Users in South Glos Homes,Permanent Nursing,Wickwar Nursing Home  Castle House,2493.80, 27-Oct-2015
847,Revenue,CCHD,South Glos Users in South Glos Homes,Permanent Nursing,Wickwar Nursing Home  Castle House,1536.00, 27-Oct-2015
848,Revenue,CCHD,South Glos Users in South Glos Homes,Permanent Nursing,Wickwar Nursing Home  Castle House,1996.02, 27-Oct-2015
849,Revenue,CCHD,South Glos Users in South Glos Homes,Permanent Nursing,Wickwar Nursing Home  Castle House,1819.38, 27-Oct-2015
850,Revenue,CCHD,South Glos Users in South Glos Homes,Permanent Nursing,Willow Cottage,2208.00, 27-Oct-2015
851,Revenue,CCHD,South Glos Users in South Glos Homes,Permanent Nursing,Woodlands Manor,1344.00, 27-Oct-2015
852,Revenue,CCHD,South Glos Users in South Glos Homes,Permanent Nursing,Woodlands Manor,656.00, 27-Oct-2015
853,Revenue,CCHD,South Glos Users in South Glos Homes,Permanent Nursing,Woodlands Manor,1072.00, 27-Oct-2015
854,Revenue,CCHD,South Glos Users in South Glos Homes,Permanent Nursing,Woodlands Manor,1056.00, 27-Oct-2015
855,Revenue,CCHD,Pathway 2 - (Interim Beds),Permanent Nursing,Avon Lodge Care Centre,10200.00, 07-Oct-2015
856,Revenue,CCHD,Pathway 2 - (Interim Beds),Permanent Nursing,Avon Lodge Care Centre,10200.00, 19-Oct-2015
857,Revenue,CCHD,Pathway 2 - (Interim Beds),Permanent Nursing,Brunelcare,54600.00, 14-Oct-2015
858,Revenue,CCHD,Pathway 2 - (Interim Beds),Permanent Nursing,Brunelcare,15200.00, 07-Oct-2015
859,Revenue,CCHD,Pathway 2 - (Interim Beds),Permanent Nursing,Brunelcare,15200.00, 30-Oct-2015
860,Revenue,CCHD,Pathway 2 - (Interim Beds),Permanent Nursing,Fairview Court Care Home,10200.00, 08-Oct-2015
861,Revenue,CCHD,Pathway 2 - (Interim Beds),Permanent Nursing,Fairview Court Care Home,10200.00, 28-Oct-2015
862,Revenue,CCHD,Pathway 2 - (Interim Beds),Permanent Nursing,Windmill Care Limited,13040.00, 14-Oct-2015
863,Revenue,CCHD,Pathway 2 - (Interim Beds),Permanent Nursing,Windmill Care Limited,13040.00, 27-Oct-2015
864,Revenue,CCHD,South Glos Users in all other LA Homes,Permanent Nursing,Bupa Care Services  Bridge House,616.56, 27-Oct-2015
865,Revenue,CCHD,South Glos Users in all other LA Homes,Permanent Nursing,Leonard Cheshire  National Account Centr,616.56, 27-Oct-2015
866,Revenue,CCHD,Swift Dump Code,Permanent Residential,Brunel Care  Saffron Gardens,3421.74, 27-Oct-2015
867,Revenue,CCHD,Swift Dump Code,Permanent Residential,Bupa Care Services  Bridge House,8139.28, 27-Oct-2015
868,Revenue,CCHD,Swift Dump Code,Permanent Residential,Gwendoline House,1212.20, 27-Oct-2015
869,Revenue,CCHD,Swift Dump Code,Permanent Residential,Osbourne Court,1598.97, 27-Oct-2015
870,Revenue,CCHD,Swift Dump Code,Permanent Residential,The Heathers,920.95, 27-Oct-2015
871,Revenue,CCHD,Swift Dump Code,Permanent Residential,Windmill House,22721.30, 27-Oct-2015
872,Revenue,CCHD,Swift Dump Code,Permanent Residential,Woodlands Manor,952.14, 27-Oct-2015
873,Revenue,CCHD,Older People's Commissioned Se,Grants to Voluntary Bodies,Action for Blind People,24242.25, 01-Oct-2015
874,Revenue,CCHD,Older People's Commissioned Se,Grants to Voluntary Bodies,Bristol Area Stroke Foundation,15749.00, 01-Oct-2015
875,Revenue,CCHD,Older People's Commissioned Se,Grants to Voluntary Bodies,Overseas Chinese Association Elderly Peoples Club,975.00, 01-Oct-2015
876,Revenue,CCHD,Older People's Commissioned Se,Grants to Voluntary Bodies,Shopmobility South Gloucestershire,1250.00, 01-Oct-2015
877,Revenue,CCHD,Older People's Commissioned Se,Grants to Voluntary Bodies,The Care Forum,4375.00, 01-Oct-2015
878,Revenue,CCHD,Older People's Commissioned Se,Grants to Voluntary Bodies,The Care Forum,4550.00, 01-Oct-2015
879,Revenue,CCHD,Older People's Commissioned Se,Grants to Voluntary Bodies,The Care Forum,40534.25, 01-Oct-2015
880,Revenue,CCHD,Older People's Commissioned Se,Grants to Voluntary Bodies,The Care Forum,25109.25, 01-Oct-2015
881,Revenue,CCHD,Older People's Commissioned Se,Grants to Voluntary Bodies,The Care Forum,5985.00, 01-Oct-2015
882,Revenue,CCHD,Older People's Commissioned Se,Grants to Voluntary Bodies,Womankind,2625.00, 01-Oct-2015
883,Revenue,CCHD,Home Care - Elderly - South,Day Care / Social Activities,3 Trees Community Support Ltd,198.88, 09-Oct-2015
884,Revenue,CCHD,Home Care - Elderly - South,Day Care / Social Activities,3 Trees Community Support Ltd,90.40, 09-Oct-2015
885,Revenue,CCHD,Home Care - Elderly - South,Day Care / Social Activities,3 Trees Community Support Ltd,90.40, 09-Oct-2015
886,Revenue,CCHD,Home Care - Elderly - South,Day Care / Social Activities,3 Trees Community Support Ltd,189.84, 09-Oct-2015
887,Revenue,CCHD,Home Care - Elderly - South,Other Small Contracts,Agincare Chippenham,1867.25, 08-Oct-2015
888,Revenue,CCHD,Home Care - Elderly - South,Other Small Contracts,Agincare Chippenham,1848.00, 14-Oct-2015
889,Revenue,CCHD,Home Care - Elderly - South,Other Small Contracts,Agincare Chippenham,1844.15, 14-Oct-2015
890,Revenue,CCHD,Home Care - Elderly - South,Other Small Contracts,Agincare Chippenham,1890.35, 27-Oct-2015
891,Revenue,CCHD,Home Care - Elderly - South,Other Small Contracts,Agincare Chippenham,1851.85, 27-Oct-2015
892,Revenue,CCHD,Home Care - Elderly - South,Other Small Contracts,Agincare UK Limited,323.40, 14-Oct-2015
893,Revenue,CCHD,Home Care - Elderly - South,Other Small Contracts,Agincare UK Limited,292.60, 19-Oct-2015
894,Revenue,CCHD,Home Care - Elderly - South,Other Small Contracts,Agincare UK Limited,673.75, 19-Oct-2015
895,Revenue,CCHD,Home Care - Elderly - South,Other Small Contracts,Agincare UK Limited,754.60, 19-Oct-2015
896,Revenue,CCHD,Home Care - Elderly - South,Other Small Contracts,Agincare UK Limited,800.80, 27-Oct-2015
897,Revenue,CCHD,Home Care - Elderly - South,Other Small Contracts,Agincare UK Nutfield,53.90, 14-Oct-2015
898,Revenue,CCHD,Home Care - Elderly - South,Other Small Contracts,Agincare UK Nutfield,53.90, 27-Oct-2015
899,Revenue,CCHD,Home Care - Elderly - South,Other Small Contracts,Agincare UK Nutfield,57.75, 19-Oct-2015
900,Revenue,CCHD,Home Care - Elderly - South,Other Small Contracts,Agincare UK Nutfield,53.90, 14-Oct-2015
901,Revenue,CCHD,Home Care - Elderly - South,Other Small Contracts,AliMo Care Ltd,1203.84, 02-Oct-2015
902,Revenue,CCHD,Home Care - Elderly - South,Other Small Contracts,AliMo Care Ltd,1199.66, 07-Oct-2015
903,Revenue,CCHD,Home Care - Elderly - South,Other Small Contracts,AliMo Care Ltd,1224.74, 15-Oct-2015
904,Revenue,CCHD,Home Care - Elderly - South,Other Small Contracts,AliMo Care Ltd,1233.10, 22-Oct-2015
905,Revenue,CCHD,Home Care - Elderly - South,Other Small Contracts,AliMo Care Ltd,1216.38, 28-Oct-2015
906,Revenue,CCHD,Home Care - Elderly - South,Day Care / Social Activities,Britannia House,693.60, 27-Oct-2015
907,Revenue,CCHD,Home Care - Elderly - South,Day Care / Social Activities,Britannia House,1156.00, 27-Oct-2015
908,Revenue,CCHD,Home Care - Elderly - South,Day Care / Social Activities,Britannia House,693.60, 27-Oct-2015
909,Revenue,CCHD,Home Care - Elderly - South,Day Care / Social Activities,Britannia House,693.60, 27-Oct-2015
910,Revenue,CCHD,Home Care - Elderly - South,Day Care / Social Activities,Britannia House,693.60, 27-Oct-2015
911,Revenue,CCHD,Home Care - Elderly - South,Other Small Contracts,Brunelcare,2932.30, 08-Oct-2015
912,Revenue,CCHD,Home Care - Elderly - South,Other Small Contracts,Brunelcare,5608.54, 08-Oct-2015
913,Revenue,CCHD,Home Care - Elderly - South,Supported Living,Camphill Communities Thornbury Limited,220.64, 01-Oct-2015
914,Revenue,CCHD,Home Care - Elderly - South,Supported Living,Camphill Communities Thornbury Limited,216.70, 07-Oct-2015
915,Revenue,CCHD,Home Care - Elderly - South,Supported Living,Camphill Communities Thornbury Limited,220.64, 14-Oct-2015
916,Revenue,CCHD,Home Care - Elderly - South,Supported Living,Camphill Communities Thornbury Limited,216.70, 21-Oct-2015
917,Revenue,CCHD,Home Care - Elderly - South,Supported Living,Camphill Communities Thornbury Limited,216.70, 30-Oct-2015
918,Revenue,CCHD,Home Care - Elderly - South,Other Small Contracts,Care 1st Homecare,4781.25, 02-Oct-2015
919,Revenue,CCHD,Home Care - Elderly - South,Other Small Contracts,Care 1st Homecare,4908.75, 02-Oct-2015
920,Revenue,CCHD,Home Care - Elderly - South,Other Small Contracts,Care 1st Homecare,4717.50, 02-Oct-2015
921,Revenue,CCHD,Home Care - Elderly - South,Supported Living,Care 1st Homecare,21.25, 02-Oct-2015
922,Revenue,CCHD,Home Care - Elderly - South,Other Small Contracts,Care Horizons Limited,423.00, 02-Oct-2015
923,Revenue,CCHD,Home Care - Elderly - South,Other Small Contracts,Care Horizons Limited,441.00, 02-Oct-2015
924,Revenue,CCHD,Home Care - Elderly - South,Other Small Contracts,Care UK,3501.54, 07-Oct-2015
925,Revenue,CCHD,Home Care - Elderly - South,Other Small Contracts,Care UK,3700.04, 26-Oct-2015
926,Revenue,CCHD,Home Care - Elderly - South,Other Small Contracts,Care UK,3783.41, 26-Oct-2015
927,Revenue,CCHD,Home Care - Elderly - South,Other Small Contracts,Care UK,3815.17, 26-Oct-2015
928,Revenue,CCHD,Home Care - Elderly - South,Other Small Contracts,Carers R Us (Bristol) Limited,654.48, 26-Oct-2015
929,Revenue,CCHD,Home Care - Elderly - South,Other Small Contracts,Carers R Us (Bristol) Limited,662.56, 26-Oct-2015
930,Revenue,CCHD,Home Care - Elderly - South,Other Small Contracts,Carers R Us (Bristol) Limited,682.76, 26-Oct-2015
931,Revenue,CCHD,Home Care - Elderly - South,Other Small Contracts,Carers R Us (Bristol) Limited,650.44, 26-Oct-2015
932,Revenue,CCHD,Home Care - Elderly - South,Other Small Contracts,Cherish Able Care Limited,4827.68, 02-Oct-2015
933,Revenue,CCHD,Home Care - Elderly - South,Other Small Contracts,Cherish Able Care Limited,4853.00, 08-Oct-2015
934,Revenue,CCHD,Home Care - Elderly - South,Other Small Contracts,Cherish Able Care Limited,4971.16, 15-Oct-2015
935,Revenue,CCHD,Home Care - Elderly - South,Other Small Contracts,Cherish Able Care Limited,5030.24, 22-Oct-2015
936,Revenue,CCHD,Home Care - Elderly - South,Other Small Contracts,Cherish Able Care Limited,4975.38, 29-Oct-2015
937,Revenue,CCHD,Home Care - Elderly - South,Supported Living,Design House,3177.76, 27-Oct-2015
938,Revenue,CCHD,Home Care - Elderly - South,Supported Living,Design House,3246.88, 27-Oct-2015
939,Revenue,CCHD,Home Care - Elderly - South,Supported Living,Design House,2794.08, 27-Oct-2015
940,Revenue,CCHD,Home Care - Elderly - South,Supported Living,Design House,2463.04, 27-Oct-2015
941,Revenue,CCHD,Home Care - Elderly - South,Supported Living,Design House,2463.04, 27-Oct-2015
942,Revenue,CCHD,Home Care - Elderly - South,Supported Living,Design House,2186.24, 27-Oct-2015
943,Revenue,CCHD,Home Care - Elderly - South,Supported Living,Design House,3972.52, 27-Oct-2015
944,Revenue,CCHD,Home Care - Elderly - South,Supported Living,Design House,2707.24, 27-Oct-2015
945,Revenue,CCHD,Home Care - Elderly - South,Supported Living,Design House,2756.08, 27-Oct-2015
946,Revenue,CCHD,Home Care - Elderly - South,Supported Living,Design House,2107.28, 27-Oct-2015
947,Revenue,CCHD,Home Care - Elderly - South,Supported Living,Design House,2186.24, 27-Oct-2015
948,Revenue,CCHD,Home Care - Elderly - South,Supported Living,Design House,2107.28, 27-Oct-2015
949,Revenue,CCHD,Home Care - Elderly - South,Day Care / Social Activities,Dhek Bhal,196.00, 02-Oct-2015
950,Revenue,CCHD,Home Care - Elderly - South,Other Small Contracts,Dhek Bhal,279.30, 02-Oct-2015
951,Revenue,CCHD,Home Care - Elderly - South,Day Care / Social Activities,Dhek Bhal,196.00, 09-Oct-2015
952,Revenue,CCHD,Home Care - Elderly - South,Other Small Contracts,Dhek Bhal,274.40, 09-Oct-2015
953,Revenue,CCHD,Home Care - Elderly - South,Day Care / Social Activities,DoCare Ltd,45.27, 14-Oct-2015
954,Revenue,CCHD,Home Care - Elderly - South,Other Small Contracts,DoCare Ltd,1810.81, 14-Oct-2015
955,Revenue,CCHD,Home Care - Elderly - South,Day Care / Social Activities,DoCare Ltd,40.24, 14-Oct-2015
956,Revenue,CCHD,Home Care - Elderly - South,Other Small Contracts,DoCare Ltd,1760.50, 14-Oct-2015
957,Revenue,CCHD,Home Care - Elderly - South,Day Care / Social Activities,DoCare Ltd,40.24, 14-Oct-2015
958,Revenue,CCHD,Home Care - Elderly - South,Other Small Contracts,DoCare Ltd,1886.26, 14-Oct-2015
959,Revenue,CCHD,Home Care - Elderly - South,Day Care / Social Activities,Easton Community Centre,526.08, 27-Oct-2015
960,Revenue,CCHD,Home Care - Elderly - South,Day Care / Social Activities,Easton Community Centre,526.08, 27-Oct-2015
961,Revenue,CCHD,Home Care - Elderly - South,Day Care / Social Activities,Eclipse Office Park,743.04, 27-Oct-2015
962,Revenue,CCHD,Home Care - Elderly - South,Day Care / Social Activities,Eclipse Office Park,619.20, 27-Oct-2015
963,Revenue,CCHD,Home Care - Elderly - South,Day Care / Social Activities,Eclipse Office Park,743.04, 27-Oct-2015
964,Revenue,CCHD,Home Care - Elderly - South,Day Care / Social Activities,Eclipse Office Park,866.88, 27-Oct-2015
965,Revenue,CCHD,Home Care - Elderly - South,Day Care / Social Activities,Eclipse Office Park,743.04, 27-Oct-2015
966,Revenue,CCHD,Home Care - Elderly - South,Day Care / Social Activities,Eclipse Office Park,866.88, 27-Oct-2015
967,Revenue,CCHD,Home Care - Elderly - South,Day Care / Social Activities,Eclipse Office Park,1238.40, 27-Oct-2015
968,Revenue,CCHD,Home Care - Elderly - South,Day Care / Social Activities,Eclipse Office Park,743.04, 27-Oct-2015
969,Revenue,CCHD,Home Care - Elderly - South,Day Care / Social Activities,Eclipse Office Park,866.88, 27-Oct-2015
970,Revenue,CCHD,Home Care - Elderly - South,Day Care / Social Activities,Eclipse Office Park,990.72, 27-Oct-2015
971,Revenue,CCHD,Home Care - Elderly - South,Day Care / Social Activities,Elite Home Care Ltd,35.36, 14-Oct-2015
972,Revenue,CCHD,Home Care - Elderly - South,Other Small Contracts,Elite Home Care Ltd,6068.66, 14-Oct-2015
973,Revenue,CCHD,Home Care - Elderly - South,Day Care / Social Activities,Elite Home Care Ltd,35.36, 21-Oct-2015
974,Revenue,CCHD,Home Care - Elderly - South,Other Small Contracts,Elite Home Care Ltd,6126.12, 21-Oct-2015
975,Revenue,CCHD,Home Care - Elderly - South,Other Small Contracts,Everycare (Bristol) Ltd,4252.70, 20-Oct-2015
976,Revenue,CCHD,Home Care - Elderly - South,Other Small Contracts,Everycare (Bristol) Ltd,4390.30, 19-Oct-2015
977,Revenue,CCHD,Home Care - Elderly - South,Day Care / Social Activities,Headway Bristol,315.60, 07-Oct-2015
978,Revenue,CCHD,Home Care - Elderly - South,Day Care / Social Activities,Headway Bristol,420.80, 12-Oct-2015
979,Revenue,CCHD,Home Care - Elderly - South,Day Care / Social Activities,Headway Bristol,504.96, 19-Oct-2015
980,Revenue,CCHD,Home Care - Elderly - South,Day Care / Social Activities,Headway Bristol,420.80, 27-Oct-2015
981,Revenue,CCHD,Home Care - Elderly - South,Day Care / Social Activities,Helping Hands Homecare,35.64, 14-Oct-2015
982,Revenue,CCHD,Home Care - Elderly - South,Other Small Contracts,Helping Hands Homecare,1587.96, 14-Oct-2015
983,Revenue,CCHD,Home Care - Elderly - South,Day Care / Social Activities,Helping Hands Homecare,158.40, 21-Oct-2015
984,Revenue,CCHD,Home Care - Elderly - South,Other Small Contracts,Helping Hands Homecare,1722.60, 21-Oct-2015
985,Revenue,CCHD,Home Care - Elderly - South,Day Care / Social Activities,Helping Hands Homecare,158.40, 21-Oct-2015
986,Revenue,CCHD,Home Care - Elderly - South,Other Small Contracts,Helping Hands Homecare,1884.96, 21-Oct-2015
987,Revenue,CCHD,Home Care - Elderly - South,Day Care / Social Activities,Helping Hands Homecare,154.44, 14-Oct-2015
988,Revenue,CCHD,Home Care - Elderly - South,Other Small Contracts,Helping Hands Homecare,1853.28, 14-Oct-2015
989,Revenue,CCHD,Home Care - Elderly - South,Day Care / Social Activities,Helping Hands Homecare,154.44, 21-Oct-2015
990,Revenue,CCHD,Home Care - Elderly - South,Other Small Contracts,Helping Hands Homecare,1492.92, 21-Oct-2015
991,Revenue,CCHD,Home Care - Elderly - South,Day Care / Social Activities,Helping Hands Homecare,162.36, 23-Oct-2015
992,Revenue,CCHD,Home Care - Elderly - South,Other Small Contracts,Helping Hands Homecare,1540.44, 23-Oct-2015
993,Revenue,CCHD,Home Care - Elderly - South,Day Care / Social Activities,Helping Hands Homecare,150.48, 30-Oct-2015
994,Revenue,CCHD,Home Care - Elderly - South,Other Small Contracts,Helping Hands Homecare,1560.24, 30-Oct-2015
995,Revenue,CCHD,Home Care - Elderly - South,Other Small Contracts,Homecare 4U,737.84, 14-Oct-2015
996,Revenue,CCHD,Home Care - Elderly - South,Other Small Contracts,Homecare 4U,733.83, 14-Oct-2015
997,Revenue,CCHD,Home Care - Elderly - South,Other Small Contracts,Homecare 4U,713.78, 14-Oct-2015
998,Revenue,CCHD,Home Care - Elderly - South,Other Small Contracts,Homecare 4U,701.75, 14-Oct-2015
999,Revenue,CCHD,Home Care - Elderly - South,Other Small Contracts,Homecare 4U,721.80, 27-Oct-2015
1000,Revenue,CCHD,Home Care - Elderly - South,Other Small Contracts,Homecare 4U,721.80, 27-Oct-2015
1001,Revenue,CCHD,Home Care - Elderly - South,Other Small Contracts,Homecare 4U,705.76, 27-Oct-2015
1002,Revenue,CCHD,Home Care - Elderly - South,Other Small Contracts,Homecare 4U,2161.60, 28-Oct-2015
1003,Revenue,CCHD,Home Care - Elderly - South,Private & Voluntary Home Care,Housing & Care 21,9098.35, 01-Oct-2015
1004,Revenue,CCHD,Home Care - Elderly - South,Private & Voluntary Home Care,Housing 21,24541.48, 01-Oct-2015
1005,Revenue,CCHD,Home Care - Elderly - South,Private & Voluntary Home Care,Housing 21,24541.48, 30-Oct-2015
1006,Revenue,CCHD,Home Care - Elderly - South,Supported Living,Julia Simone- Supp. Ind.,1178.36, 27-Oct-2015
1007,Revenue,CCHD,Home Care - Elderly - South,Other Small Contracts,Kensington Community Care,916.56, 08-Oct-2015
1008,Revenue,CCHD,Home Care - Elderly - South,Other Small Contracts,Kensington Community Care,924.60, 14-Oct-2015
1009,Revenue,CCHD,Home Care - Elderly - South,Other Small Contracts,Kensington Community Care,928.62, 14-Oct-2015
1010,Revenue,CCHD,Home Care - Elderly - South,Other Small Contracts,Kensington Community Care,936.66, 19-Oct-2015
1011,Revenue,CCHD,Home Care - Elderly - South,Other Small Contracts,Kensington Community Care,980.88, 26-Oct-2015
1012,Revenue,CCHD,Home Care - Elderly - South,Other Small Contracts,Kensington Community Care,928.62, 29-Oct-2015
1013,Revenue,CCHD,Home Care - Elderly - South,Other Small Contracts,Kumari Care Limited,2080.12, 02-Oct-2015
1014,Revenue,CCHD,Home Care - Elderly - South,Other Small Contracts,Kumari Care Limited,2041.02, 09-Oct-2015
1015,Revenue,CCHD,Home Care - Elderly - South,Other Small Contracts,Kumari Care Limited,2017.56, 20-Oct-2015
1016,Revenue,CCHD,Home Care - Elderly - South,Day Care / Social Activities,Lloyds TSB Commercial Finance Limited,4603.17, 29-Oct-2015
1017,Revenue,CCHD,Home Care - Elderly - South,Other Small Contracts,Lloyds TSB Commercial Finance Limited,3872.44, 29-Oct-2015
1018,Revenue,CCHD,Home Care - Elderly - South,Supported Living,Lloyds TSB Commercial Finance Limited,7543.46, 29-Oct-2015
1019,Revenue,CCHD,Home Care - Elderly - South,Day Care / Social Activities,Lloyds TSB Commercial Finance Limited,4322.34, 28-Oct-2015
1020,Revenue,CCHD,Home Care - Elderly - South,Other Small Contracts,Lloyds TSB Commercial Finance Limited,3750.01, 28-Oct-2015
1021,Revenue,CCHD,Home Care - Elderly - South,Supported Living,Lloyds TSB Commercial Finance Limited,7671.53, 28-Oct-2015
1022,Revenue,CCHD,Home Care - Elderly - South,Day Care / Social Activities,Lloyds TSB Commercial Finance Limited,4566.54, 28-Oct-2015
1023,Revenue,CCHD,Home Care - Elderly - South,Other Small Contracts,Lloyds TSB Commercial Finance Limited,3704.47, 28-Oct-2015
1024,Revenue,CCHD,Home Care - Elderly - South,Supported Living,Lloyds TSB Commercial Finance Limited,7478.30, 28-Oct-2015
1025,Revenue,CCHD,Home Care - Elderly - South,Day Care / Social Activities,Lloyds TSB Commercial Finance Limited,4281.64, 29-Oct-2015
1026,Revenue,CCHD,Home Care - Elderly - South,Other Small Contracts,Lloyds TSB Commercial Finance Limited,3723.83, 29-Oct-2015
1027,Revenue,CCHD,Home Care - Elderly - South,Supported Living,Lloyds TSB Commercial Finance Limited,7013.40, 29-Oct-2015
1028,Revenue,CCHD,Home Care - Elderly - South,Day Care / Social Activities,Lloyds TSB Commercial Finance Limited,4301.99, 29-Oct-2015
1029,Revenue,CCHD,Home Care - Elderly - South,Other Small Contracts,Lloyds TSB Commercial Finance Limited,3838.89, 29-Oct-2015
1030,Revenue,CCHD,Home Care - Elderly - South,Supported Living,Lloyds TSB Commercial Finance Limited,6820.10, 29-Oct-2015
1031,Revenue,CCHD,Home Care - Elderly - South,Supported Living,Maples Community Care Limited,1400.00, 27-Oct-2015
1032,Revenue,CCHD,Home Care - Elderly - South,Supported Living,Maples Community Care Limited,1400.00, 27-Oct-2015
1033,Revenue,CCHD,Home Care - Elderly - South,Day Care / Social Activities,Mears Care,89.70, 14-Oct-2015
1034,Revenue,CCHD,Home Care - Elderly - South,Other Small Contracts,Mears Care,1271.40, 14-Oct-2015
1035,Revenue,CCHD,Home Care - Elderly - South,Day Care / Social Activities,Mears Care,78.00, 28-Oct-2015
1036,Revenue,CCHD,Home Care - Elderly - South,Other Small Contracts,Mears Care,1279.20, 28-Oct-2015
1037,Revenue,CCHD,Home Care - Elderly - South,Day Care / Social Activities,Mears Care,89.70, 28-Oct-2015
1038,Revenue,CCHD,Home Care - Elderly - South,Other Small Contracts,Mears Care,1314.30, 28-Oct-2015
1039,Revenue,CCHD,Home Care - Elderly - South,Day Care / Social Activities,Mears Care,85.80, 28-Oct-2015
1040,Revenue,CCHD,Home Care - Elderly - South,Other Small Contracts,Mears Care,1443.00, 28-Oct-2015
1041,Revenue,CCHD,Home Care - Elderly - South,Private & Voluntary Home Care,Mears Care,49219.00, 28-Oct-2015
1042,Revenue,CCHD,Home Care - Elderly - South,Other Small Contracts,Medacs Home Care,329.22, 19-Oct-2015
1043,Revenue,CCHD,Home Care - Elderly - South,Other Small Contracts,Medacs Home Care,336.30, 19-Oct-2015
1044,Revenue,CCHD,Home Care - Elderly - South,Other Small Contracts,Medacs Home Care,343.38, 19-Oct-2015
1045,Revenue,CCHD,Home Care - Elderly - South,Other Small Contracts,Medacs Home Care,357.54, 19-Oct-2015
1046,Revenue,CCHD,Home Care - Elderly - South,Other Small Contracts,Medacs Home Care,261.96, 19-Oct-2015
1047,Revenue,CCHD,Home Care - Elderly - South,Other Small Contracts,Medacs Home Care,223.02, 20-Oct-2015
1048,Revenue,CCHD,Home Care - Elderly - South,Other Small Contracts,Medacs Home Care,155.76, 19-Oct-2015
1049,Revenue,CCHD,Home Care - Elderly - South,Other Small Contracts,Medacs Home Care,95.58, 19-Oct-2015
1050,Revenue,CCHD,Home Care - Elderly - South,Supported Living,Mike Durrant - Cherry Orchards,1394.88, 27-Oct-2015
1051,Revenue,CCHD,Home Care - Elderly - South,Supported Living,Milestones - Unit 10,3631.76, 27-Oct-2015
1052,Revenue,CCHD,Home Care - Elderly - South,Supported Living,Milestones - Unit 10,3631.76, 27-Oct-2015
1053,Revenue,CCHD,Home Care - Elderly - South,Supported Living,Milestones - Unit 10,3643.60, 27-Oct-2015
1054,Revenue,CCHD,Home Care - Elderly - South,Supported Living,Milestones - Unit 10,2317.68, 27-Oct-2015
1055,Revenue,CCHD,Home Care - Elderly - South,Supported Living,Milestones - Unit 10,1251.04, 27-Oct-2015
1056,Revenue,CCHD,Home Care - Elderly - South,Supported Living,Milestones - Unit 10,2232.52, 27-Oct-2015
1057,Revenue,CCHD,Home Care - Elderly - South,Supported Living,Milestones - Unit 10,1251.04, 27-Oct-2015
1058,Revenue,CCHD,Home Care - Elderly - South,Day Care / Social Activities,Milestones Homecare & Dementia Service,31.44, 09-Oct-2015
1059,Revenue,CCHD,Home Care - Elderly - South,Other Small Contracts,Milestones Homecare & Dementia Service,1630.95, 09-Oct-2015
1060,Revenue,CCHD,Home Care - Elderly - South,Day Care / Social Activities,Milestones Homecare & Dementia Service,31.44, 19-Oct-2015
1061,Revenue,CCHD,Home Care - Elderly - South,Other Small Contracts,Milestones Homecare & Dementia Service,1634.88, 19-Oct-2015
1062,Revenue,CCHD,Home Care - Elderly - South,Day Care / Social Activities,Milestones Supported Living Services,7201.20, 09-Oct-2015
1063,Revenue,CCHD,Home Care - Elderly - South,Other Small Contracts,Milestones Supported Living Services,726.17, 09-Oct-2015
1064,Revenue,CCHD,Home Care - Elderly - South,Supported Living,Milestones Supported Living Services,4640.58, 09-Oct-2015
1065,Revenue,CCHD,Home Care - Elderly - South,Day Care / Social Activities,Milestones Supported Living Services,8250.62, 09-Oct-2015
1066,Revenue,CCHD,Home Care - Elderly - South,Other Small Contracts,Milestones Supported Living Services,681.56, 09-Oct-2015
1067,Revenue,CCHD,Home Care - Elderly - South,Supported Living,Milestones Supported Living Services,4916.66, 09-Oct-2015
1068,Revenue,CCHD,Home Care - Elderly - South,Day Care / Social Activities,Milestones Supported Living Services,7487.18, 20-Oct-2015
1069,Revenue,CCHD,Home Care - Elderly - South,Other Small Contracts,Milestones Supported Living Services,1879.26, 20-Oct-2015
1070,Revenue,CCHD,Home Care - Elderly - South,Supported Living,Milestones Supported Living Services,3463.18, 20-Oct-2015
1071,Revenue,CCHD,Home Care - Elderly - South,Day Care / Social Activities,Milestones Supported Living Services,8215.19, 21-Oct-2015
1072,Revenue,CCHD,Home Care - Elderly - South,Other Small Contracts,Milestones Supported Living Services,1591.45, 21-Oct-2015
1073,Revenue,CCHD,Home Care - Elderly - South,Supported Living,Milestones Supported Living Services,2675.54, 21-Oct-2015
1074,Revenue,CCHD,Home Care - Elderly - South,Day Care / Social Activities,Mrs B Kimber -  CM2000,1732.16, 14-Oct-2015
1075,Revenue,CCHD,Home Care - Elderly - South,Other Small Contracts,Mrs B Kimber -  CM2000,10324.48, 14-Oct-2015
1076,Revenue,CCHD,Home Care - Elderly - South,Supported Living,Mrs B Kimber -  CM2000,33.28, 14-Oct-2015
1077,Revenue,CCHD,Home Care - Elderly - South,Day Care / Social Activities,Mrs B Kimber -  CM2000,1988.16, 14-Oct-2015
1078,Revenue,CCHD,Home Care - Elderly - South,Other Small Contracts,Mrs B Kimber -  CM2000,10200.00, 14-Oct-2015
1079,Revenue,CCHD,Home Care - Elderly - South,Supported Living,Mrs B Kimber -  CM2000,33.28, 14-Oct-2015
1080,Revenue,CCHD,Home Care - Elderly - South,Day Care / Social Activities,Mrs B Kimber -  CM2000,2048.32, 14-Oct-2015
1081,Revenue,CCHD,Home Care - Elderly - South,Other Small Contracts,Mrs B Kimber -  CM2000,10245.44, 14-Oct-2015
1082,Revenue,CCHD,Home Care - Elderly - South,Supported Living,Mrs B Kimber -  CM2000,33.28, 14-Oct-2015
1083,Revenue,CCHD,Home Care - Elderly - South,Day Care / Social Activities,Mrs B Kimber -  CM2000,2016.96, 21-Oct-2015
1084,Revenue,CCHD,Home Care - Elderly - South,Other Small Contracts,Mrs B Kimber -  CM2000,9788.48, 21-Oct-2015
1085,Revenue,CCHD,Home Care - Elderly - South,Supported Living,Mrs B Kimber -  CM2000,33.28, 21-Oct-2015
1086,Revenue,CCHD,Home Care - Elderly - South,Day Care / Social Activities,Nestor T/A Allied Healthcare,69.30, 14-Oct-2015
1087,Revenue,CCHD,Home Care - Elderly - South,Other Small Contracts,Nestor T/A Allied Healthcare,2696.44, 14-Oct-2015
1088,Revenue,CCHD,Home Care - Elderly - South,Day Care / Social Activities,Nestor T/A Allied Healthcare,69.30, 08-Oct-2015
1089,Revenue,CCHD,Home Care - Elderly - South,Other Small Contracts,Nestor T/A Allied Healthcare,2785.16, 08-Oct-2015
1090,Revenue,CCHD,Home Care - Elderly - South,Day Care / Social Activities,Nestor T/A Allied Healthcare,69.30, 14-Oct-2015
1091,Revenue,CCHD,Home Care - Elderly - South,Other Small Contracts,Nestor T/A Allied Healthcare,2731.05, 14-Oct-2015
1092,Revenue,CCHD,Home Care - Elderly - South,Day Care / Social Activities,Nestor T/A Allied Healthcare,69.30, 14-Oct-2015
1093,Revenue,CCHD,Home Care - Elderly - South,Other Small Contracts,Nestor T/A Allied Healthcare,2700.38, 14-Oct-2015
1094,Revenue,CCHD,Home Care - Elderly - South,Day Care / Social Activities,Nursing Solutions Limited,27.79, 19-Oct-2015
1095,Revenue,CCHD,Home Care - Elderly - South,Other Small Contracts,Nursing Solutions Limited,2393.91, 19-Oct-2015
1096,Revenue,CCHD,Home Care - Elderly - South,Day Care / Social Activities,Nursing Solutions Limited,134.98, 19-Oct-2015
1097,Revenue,CCHD,Home Care - Elderly - South,Other Small Contracts,Nursing Solutions Limited,1794.44, 19-Oct-2015
1098,Revenue,CCHD,Home Care - Elderly - South,Day Care / Social Activities,Nursing Solutions Limited,95.28, 19-Oct-2015
1099,Revenue,CCHD,Home Care - Elderly - South,Other Small Contracts,Nursing Solutions Limited,1635.64, 19-Oct-2015
1100,Revenue,CCHD,Home Care - Elderly - South,Day Care / Social Activities,Nursing Solutions Limited,19.85, 19-Oct-2015
1101,Revenue,CCHD,Home Care - Elderly - South,Other Small Contracts,Nursing Solutions Limited,1560.21, 19-Oct-2015
1102,Revenue,CCHD,Home Care - Elderly - South,Other Small Contracts,Prestige Nursing,531.60, 14-Oct-2015
1103,Revenue,CCHD,Home Care - Elderly - South,Other Small Contracts,Prestige Nursing,487.30, 19-Oct-2015
1104,Revenue,CCHD,Home Care - Elderly - South,Other Small Contracts,Prestige Nursing,540.46, 08-Oct-2015
1105,Revenue,CCHD,Home Care - Elderly - South,Other Small Contracts,Prestige Nursing,593.62, 19-Oct-2015
1106,Revenue,CCHD,Home Care - Elderly - South,Other Small Contracts,Prestige Nursing,527.17, 19-Oct-2015
1107,Revenue,CCHD,Home Care - Elderly - South,Other Small Contracts,Prestige Nursing,447.43, 29-Oct-2015
1108,Revenue,CCHD,Home Care - Elderly - South,Other Small Contracts,Prestige Nursing,509.45, 29-Oct-2015
1109,Revenue,CCHD,Home Care - Elderly - South,Supported Living,Selborrne House,1820.92, 27-Oct-2015
1110,Revenue,CCHD,Home Care - Elderly - South,Supported Living,Selborrne House,3491.36, 27-Oct-2015
1111,Revenue,CCHD,Home Care - Elderly - South,Supported Living,Selborrne House,3491.36, 27-Oct-2015
1112,Revenue,CCHD,Home Care - Elderly - South,Supported Living,Selborrne House,1820.92, 27-Oct-2015
1113,Revenue,CCHD,Home Care - Elderly - South,Day Care / Social Activities,Smile Independent Living Support Limited,457.66, 14-Oct-2015
1114,Revenue,CCHD,Home Care - Elderly - South,Other Small Contracts,Smile Independent Living Support Limited,275.53, 14-Oct-2015
1115,Revenue,CCHD,Home Care - Elderly - South,Day Care / Social Activities,Smile Independent Living Support Limited,420.30, 14-Oct-2015
1116,Revenue,CCHD,Home Care - Elderly - South,Other Small Contracts,Smile Independent Living Support Limited,270.86, 14-Oct-2015
1117,Revenue,CCHD,Home Care - Elderly - South,Day Care / Social Activities,Smile Independent Living Support Limited,569.74, 22-Oct-2015
1118,Revenue,CCHD,Home Care - Elderly - South,Other Small Contracts,Smile Independent Living Support Limited,322.23, 22-Oct-2015
1119,Revenue,CCHD,Home Care - Elderly - South,Day Care / Social Activities,St George Nursing Home,606.48, 27-Oct-2015
1120,Revenue,CCHD,Home Care - Elderly - South,Day Care / Social Activities,The Brandon Trust,4045.62, 14-Oct-2015
1121,Revenue,CCHD,Home Care - Elderly - South,Day Care / Social Activities,The Brandon Trust,3611.01, 15-Oct-2015
1122,Revenue,CCHD,Home Care - Elderly - South,Day Care / Social Activities,The Brandon Trust,3934.30, 21-Oct-2015
1123,Revenue,CCHD,Home Care - Elderly - South,Day Care / Social Activities,The Brandon Trust,4360.13, 28-Oct-2015
1124,Revenue,CCHD,Home Care - Elderly - South,Day Care / Social Activities,The Manor House,1487.20, 27-Oct-2015
1125,Revenue,CCHD,Home Care - Elderly - South,Day Care / Social Activities,The Manor House,1426.44, 27-Oct-2015
1126,Revenue,CCHD,Home Care - Elderly - South,Day Care / Social Activities,The Manor House,2359.20, 27-Oct-2015
1127,Revenue,CCHD,Home Care - Elderly - South,Day Care / Social Activities,The Manor House,1396.72, 27-Oct-2015
1128,Revenue,CCHD,Home Care - Elderly - South,Day Care / Social Activities,The Manor House,1396.12, 27-Oct-2015
1129,Revenue,CCHD,Home Care - Elderly - South,Supported Living,The Oaks,3064.56, 27-Oct-2015
1130,Revenue,CCHD,Home Care - Elderly - North,Day Care / Social Activities,3 Trees Community Support Ltd,2648.72, 09-Oct-2015
1131,Revenue,CCHD,Home Care - Elderly - North,Other Small Contracts,3 Trees Community Support Ltd,108.48, 09-Oct-2015
1132,Revenue,CCHD,Home Care - Elderly - North,Supported Living,3 Trees Community Support Ltd,6915.24, 09-Oct-2015
1133,Revenue,CCHD,Home Care - Elderly - North,Day Care / Social Activities,3 Trees Community Support Ltd,2662.28, 09-Oct-2015
1134,Revenue,CCHD,Home Care - Elderly - North,Other Small Contracts,3 Trees Community Support Ltd,54.24, 09-Oct-2015
1135,Revenue,CCHD,Home Care - Elderly - North,Supported Living,3 Trees Community Support Ltd,7579.60, 09-Oct-2015
1136,Revenue,CCHD,Home Care - Elderly - North,Day Care / Social Activities,3 Trees Community Support Ltd,2671.32, 09-Oct-2015
1137,Revenue,CCHD,Home Care - Elderly - North,Supported Living,3 Trees Community Support Ltd,8035.73, 09-Oct-2015
1138,Revenue,CCHD,Home Care - Elderly - North,Day Care / Social Activities,3 Trees Community Support Ltd,2544.76, 09-Oct-2015
1139,Revenue,CCHD,Home Care - Elderly - North,Supported Living,3 Trees Community Support Ltd,7394.36, 09-Oct-2015
1140,Revenue,CCHD,Home Care - Elderly - North,Other Small Contracts,3 Trees Community Support Ltd,19244.68, 28-Oct-2015
1141,Revenue,CCHD,Home Care - Elderly - North,Other Small Contracts,3 Trees Community Support Ltd,32942.05, 28-Oct-2015
1142,Revenue,CCHD,Home Care - Elderly - North,Other Small Contracts,Agincare UK Limited,165.55, 14-Oct-2015
1143,Revenue,CCHD,Home Care - Elderly - North,Other Small Contracts,Agincare UK Limited,150.15, 19-Oct-2015
1144,Revenue,CCHD,Home Care - Elderly - North,Other Small Contracts,Agincare UK Limited,500.50, 19-Oct-2015
1145,Revenue,CCHD,Home Care - Elderly - North,Other Small Contracts,Agincare UK Limited,473.55, 19-Oct-2015
1146,Revenue,CCHD,Home Care - Elderly - North,Other Small Contracts,Agincare UK Limited,492.80, 27-Oct-2015
1147,Revenue,CCHD,Home Care - Elderly - North,Other Small Contracts,Agincare UK Nutfield,1162.70, 14-Oct-2015
1148,Revenue,CCHD,Home Care - Elderly - North,Other Small Contracts,Agincare UK Nutfield,1262.80, 27-Oct-2015
1149,Revenue,CCHD,Home Care - Elderly - North,Other Small Contracts,Agincare UK Nutfield,1309.00, 19-Oct-2015
1150,Revenue,CCHD,Home Care - Elderly - North,Other Small Contracts,Agincare UK Nutfield,916.30, 14-Oct-2015
1151,Revenue,CCHD,Home Care - Elderly - North,Other Small Contracts,AliMo Care Ltd,8.36, 07-Oct-2015
1152,Revenue,CCHD,Home Care - Elderly - North,Other Small Contracts,Bluebird Care (South Gloucestershire),1742.89, 08-Oct-2015
1153,Revenue,CCHD,Home Care - Elderly - North,Other Small Contracts,Bluebird Care (South Gloucestershire),2153.74, 19-Oct-2015
1154,Revenue,CCHD,Home Care - Elderly - North,Other Small Contracts,Bluebird Care (South Gloucestershire),2232.94, 28-Oct-2015
1155,Revenue,CCHD,Home Care - Elderly - North,Other Small Contracts,Bluebird Care (South Gloucestershire),1683.49, 08-Oct-2015
1156,Revenue,CCHD,Home Care - Elderly - North,Other Small Contracts,Bluebird Care (South Gloucestershire),5005.43, 06-Oct-2015
1157,Revenue,CCHD,Home Care - Elderly - North,Other Small Contracts,Bradley House Home Care Services,812.16, 08-Oct-2015
1158,Revenue,CCHD,Home Care - Elderly - North,Other Small Contracts,Bradley House Home Care Services,820.80, 14-Oct-2015
1159,Revenue,CCHD,Home Care - Elderly - North,Other Small Contracts,Bradley House Home Care Services,816.48, 28-Oct-2015
1160,Revenue,CCHD,Home Care - Elderly - North,Other Small Contracts,Bradley House Home Care Services,786.24, 28-Oct-2015
1161,Revenue,CCHD,Home Care - Elderly - North,SU Employment Support,Britannia House,693.60, 27-Oct-2015
1162,Revenue,CCHD,Home Care - Elderly - North,Day Care / Social Activities,Britannia House,924.80, 27-Oct-2015
1163,Revenue,CCHD,Home Care - Elderly - North,Day Care / Social Activities,Britannia House,693.60, 27-Oct-2015
1164,Revenue,CCHD,Home Care - Elderly - North,Day Care / Social Activities,Britannia House,693.60, 27-Oct-2015
1165,Revenue,CCHD,Home Care - Elderly - North,Day Care / Social Activities,Britannia House,924.80, 27-Oct-2015
1166,Revenue,CCHD,Home Care - Elderly - North,Private & Voluntary Home Care,Brunelcare,23503.00, 05-Oct-2015
1167,Revenue,CCHD,Home Care - Elderly - North,Private & Voluntary Home Care,Brunelcare,23503.00, 12-Oct-2015
1168,Revenue,CCHD,Home Care - Elderly - North,Private & Voluntary Home Care,Brunelcare,23503.00, 19-Oct-2015
1169,Revenue,CCHD,Home Care - Elderly - North,Private & Voluntary Home Care,Brunelcare,23503.00, 26-Oct-2015
1170,Revenue,CCHD,Home Care - Elderly - North,Other Small Contracts,Brunelcare,2564.73, 08-Oct-2015
1171,Revenue,CCHD,Home Care - Elderly - North,Other Small Contracts,Brunelcare,5418.56, 08-Oct-2015
1172,Revenue,CCHD,Home Care - Elderly - North,Private & Voluntary Home Care,Brunelcare,73863.42, 29-Oct-2015
1173,Revenue,CCHD,Home Care - Elderly - North,Day Care / Social Activities,Camphill Communities Thornbury Limited,1115.02, 01-Oct-2015
1174,Revenue,CCHD,Home Care - Elderly - North,Supported Living,Camphill Communities Thornbury Limited,918.02, 01-Oct-2015
1175,Revenue,CCHD,Home Care - Elderly - North,Day Care / Social Activities,Camphill Communities Thornbury Limited,1233.22, 07-Oct-2015
1176,Revenue,CCHD,Home Care - Elderly - North,Other Small Contracts,Camphill Communities Thornbury Limited,200.94, 07-Oct-2015
1177,Revenue,CCHD,Home Care - Elderly - North,Supported Living,Camphill Communities Thornbury Limited,1138.66, 07-Oct-2015
1178,Revenue,CCHD,Home Care - Elderly - North,Day Care / Social Activities,Camphill Communities Thornbury Limited,1217.46, 14-Oct-2015
1179,Revenue,CCHD,Home Care - Elderly - North,Other Small Contracts,Camphill Communities Thornbury Limited,197.00, 14-Oct-2015
1180,Revenue,CCHD,Home Care - Elderly - North,Supported Living,Camphill Communities Thornbury Limited,1402.64, 14-Oct-2015
1181,Revenue,CCHD,Home Care - Elderly - North,Day Care / Social Activities,Camphill Communities Thornbury Limited,816.65, 21-Oct-2015
1182,Revenue,CCHD,Home Care - Elderly - North,Other Small Contracts,Camphill Communities Thornbury Limited,200.94, 21-Oct-2015
1183,Revenue,CCHD,Home Care - Elderly - North,Supported Living,Camphill Communities Thornbury Limited,1390.82, 21-Oct-2015
1184,Revenue,CCHD,Home Care - Elderly - North,Day Care / Social Activities,Camphill Communities Thornbury Limited,1241.10, 30-Oct-2015
1185,Revenue,CCHD,Home Care - Elderly - North,Other Small Contracts,Camphill Communities Thornbury Limited,197.00, 30-Oct-2015
1186,Revenue,CCHD,Home Care - Elderly - North,Supported Living,Camphill Communities Thornbury Limited,1464.30, 30-Oct-2015
1187,Revenue,CCHD,Home Care - Elderly - North,One-off Planned Direct Payment,Care 1st Homecare,42.50, 02-Oct-2015
1188,Revenue,CCHD,Home Care - Elderly - North,Other Small Contracts,Care 1st Homecare,3833.50, 02-Oct-2015
1189,Revenue,CCHD,Home Care - Elderly - North,One-off Planned Direct Payment,Care 1st Homecare,21.25, 02-Oct-2015
1190,Revenue,CCHD,Home Care - Elderly - North,Other Small Contracts,Care 1st Homecare,3625.25, 02-Oct-2015
1191,Revenue,CCHD,Home Care - Elderly - North,One-off Planned Direct Payment,Care 1st Homecare,51.00, 02-Oct-2015
1192,Revenue,CCHD,Home Care - Elderly - North,Other Small Contracts,Care 1st Homecare,3612.50, 02-Oct-2015
1193,Revenue,CCHD,Home Care - Elderly - North,Day Care / Social Activities,Care Horizons Limited,157.50, 02-Oct-2015
1194,Revenue,CCHD,Home Care - Elderly - North,Other Small Contracts,Care Horizons Limited,391.50, 02-Oct-2015
1195,Revenue,CCHD,Home Care - Elderly - North,Day Care / Social Activities,Care Horizons Limited,157.50, 02-Oct-2015
1196,Revenue,CCHD,Home Care - Elderly - North,Other Small Contracts,Care Horizons Limited,396.00, 02-Oct-2015
1197,Revenue,CCHD,Home Care - Elderly - North,Other Small Contracts,Care UK,1290.25, 07-Oct-2015
1198,Revenue,CCHD,Home Care - Elderly - North,Other Small Contracts,Care UK,1460.96, 26-Oct-2015
1199,Revenue,CCHD,Home Care - Elderly - North,Other Small Contracts,Care UK,1429.20, 26-Oct-2015
1200,Revenue,CCHD,Home Care - Elderly - North,Other Small Contracts,Care UK,1476.84, 26-Oct-2015
1201,Revenue,CCHD,Home Care - Elderly - North,Other Small Contracts,Carers R Us (Bristol) Limited,193.92, 26-Oct-2015
1202,Revenue,CCHD,Home Care - Elderly - North,Other Small Contracts,Carers R Us (Bristol) Limited,202.00, 26-Oct-2015
1203,Revenue,CCHD,Home Care - Elderly - North,Other Small Contracts,Carers R Us (Bristol) Limited,202.00, 26-Oct-2015
1204,Revenue,CCHD,Home Care - Elderly - North,Other Small Contracts,Carers R Us (Bristol) Limited,202.00, 26-Oct-2015
1205,Revenue,CCHD,Home Care - Elderly - North,Other Small Contracts,Cherish Able Care Limited,2342.66, 02-Oct-2015
1206,Revenue,CCHD,Home Care - Elderly - North,Other Small Contracts,Cherish Able Care Limited,2338.44, 08-Oct-2015
1207,Revenue,CCHD,Home Care - Elderly - North,Other Small Contracts,Cherish Able Care Limited,2342.66, 15-Oct-2015
1208,Revenue,CCHD,Home Care - Elderly - North,Other Small Contracts,Cherish Able Care Limited,2346.88, 22-Oct-2015
1209,Revenue,CCHD,Home Care - Elderly - North,Other Small Contracts,Cherish Able Care Limited,2342.66, 29-Oct-2015
1210,Revenue,CCHD,Home Care - Elderly - North,Other Small Contracts,Dhek Bhal,117.60, 02-Oct-2015
1211,Revenue,CCHD,Home Care - Elderly - North,Other Small Contracts,Dhek Bhal,117.60, 09-Oct-2015
1212,Revenue,CCHD,Home Care - Elderly - North,Other Small Contracts,DoCare Ltd,5955.52, 14-Oct-2015
1213,Revenue,CCHD,Home Care - Elderly - North,Other Small Contracts,DoCare Ltd,5517.91, 14-Oct-2015
1214,Revenue,CCHD,Home Care - Elderly - North,Other Small Contracts,DoCare Ltd,5422.34, 14-Oct-2015
1215,Revenue,CCHD,Home Care - Elderly - North,Day Care / Social Activities,Easton Community Centre,526.08, 27-Oct-2015
1216,Revenue,CCHD,Home Care - Elderly - North,Day Care / Social Activities,Easton Community Centre,526.08, 27-Oct-2015
1217,Revenue,CCHD,Home Care - Elderly - North,Day Care / Social Activities,Eclipse Office Park,990.72, 27-Oct-2015
1218,Revenue,CCHD,Home Care - Elderly - North,Other Small Contracts,Elite Home Care Ltd,335.92, 14-Oct-2015
1219,Revenue,CCHD,Home Care - Elderly - North,Other Small Contracts,Elite Home Care Ltd,349.18, 21-Oct-2015
1220,Revenue,CCHD,Home Care - Elderly - North,Day Care / Social Activities,Everycare (Bristol) Ltd,60.20, 20-Oct-2015
1221,Revenue,CCHD,Home Care - Elderly - North,Other Small Contracts,Everycare (Bristol) Ltd,1057.80, 20-Oct-2015
1222,Revenue,CCHD,Home Care - Elderly - North,Day Care / Social Activities,Everycare (Bristol) Ltd,86.00, 19-Oct-2015
1223,Revenue,CCHD,Home Care - Elderly - North,Other Small Contracts,Everycare (Bristol) Ltd,1199.70, 19-Oct-2015
1224,Revenue,CCHD,Home Care - Elderly - North,Day Care / Social Activities,Frenchay Beckspool Building,622.72, 27-Oct-2015
1225,Revenue,CCHD,Home Care - Elderly - North,Day Care / Social Activities,Headway Bristol,483.92, 07-Oct-2015
1226,Revenue,CCHD,Home Care - Elderly - North,Other Small Contracts,Headway Bristol,126.24, 07-Oct-2015
1227,Revenue,CCHD,Home Care - Elderly - North,Day Care / Social Activities,Headway Bristol,436.58, 12-Oct-2015
1228,Revenue,CCHD,Home Care - Elderly - North,Day Care / Social Activities,Headway Bristol,778.48, 19-Oct-2015
1229,Revenue,CCHD,Home Care - Elderly - North,Day Care / Social Activities,Headway Bristol,699.58, 27-Oct-2015
1230,Revenue,CCHD,Home Care - Elderly - North,Day Care / Social Activities,Helping Hands Homecare,201.96, 14-Oct-2015
1231,Revenue,CCHD,Home Care - Elderly - North,Other Small Contracts,Helping Hands Homecare,2217.60, 14-Oct-2015
1232,Revenue,CCHD,Home Care - Elderly - North,Day Care / Social Activities,Helping Hands Homecare,201.96, 21-Oct-2015
1233,Revenue,CCHD,Home Care - Elderly - North,Other Small Contracts,Helping Hands Homecare,2059.20, 21-Oct-2015
1234,Revenue,CCHD,Home Care - Elderly - North,Day Care / Social Activities,Helping Hands Homecare,174.24, 21-Oct-2015
1235,Revenue,CCHD,Home Care - Elderly - North,Other Small Contracts,Helping Hands Homecare,1877.04, 21-Oct-2015
1236,Revenue,CCHD,Home Care - Elderly - North,Day Care / Social Activities,Helping Hands Homecare,47.52, 14-Oct-2015
1237,Revenue,CCHD,Home Care - Elderly - North,Other Small Contracts,Helping Hands Homecare,2181.96, 14-Oct-2015
1238,Revenue,CCHD,Home Care - Elderly - North,Day Care / Social Activities,Helping Hands Homecare,201.96, 21-Oct-2015
1239,Revenue,CCHD,Home Care - Elderly - North,Other Small Contracts,Helping Hands Homecare,1995.84, 21-Oct-2015
1240,Revenue,CCHD,Home Care - Elderly - North,Day Care / Social Activities,Helping Hands Homecare,205.92, 23-Oct-2015
1241,Revenue,CCHD,Home Care - Elderly - North,Other Small Contracts,Helping Hands Homecare,2185.92, 23-Oct-2015
1242,Revenue,CCHD,Home Care - Elderly - North,Day Care / Social Activities,Helping Hands Homecare,194.04, 30-Oct-2015
1243,Revenue,CCHD,Home Care - Elderly - North,Other Small Contracts,Helping Hands Homecare,2174.04, 30-Oct-2015
1244,Revenue,CCHD,Home Care - Elderly - North,Other Small Contracts,Homecare 4U,693.73, 14-Oct-2015
1245,Revenue,CCHD,Home Care - Elderly - North,Other Small Contracts,Homecare 4U,721.80, 14-Oct-2015
1246,Revenue,CCHD,Home Care - Elderly - North,Other Small Contracts,Homecare 4U,769.92, 14-Oct-2015
1247,Revenue,CCHD,Home Care - Elderly - North,Other Small Contracts,Homecare 4U,577.44, 14-Oct-2015
1248,Revenue,CCHD,Home Care - Elderly - North,Other Small Contracts,Homecare 4U,441.10, 27-Oct-2015
1249,Revenue,CCHD,Home Care - Elderly - North,Other Small Contracts,Homecare 4U,705.76, 27-Oct-2015
1250,Revenue,CCHD,Home Care - Elderly - North,Other Small Contracts,Homecare 4U,922.30, 27-Oct-2015
1251,Revenue,CCHD,Home Care - Elderly - North,Private & Voluntary Home Care,Housing & Care 21,9098.35, 01-Oct-2015
1252,Revenue,CCHD,Home Care - Elderly - North,Private & Voluntary Home Care,Housing 21,38183.98, 09-Oct-2015
1253,Revenue,CCHD,Home Care - Elderly - North,Supported Living,Julia Simone- Supp. Ind.,1212.32, 27-Oct-2015
1254,Revenue,CCHD,Home Care - Elderly - North,Other Small Contracts,Kensington Community Care,3481.32, 08-Oct-2015
1255,Revenue,CCHD,Home Care - Elderly - North,Other Small Contracts,Kensington Community Care,3557.70, 14-Oct-2015
1256,Revenue,CCHD,Home Care - Elderly - North,Other Small Contracts,Kensington Community Care,3541.62, 14-Oct-2015
1257,Revenue,CCHD,Home Care - Elderly - North,Other Small Contracts,Kensington Community Care,3517.50, 19-Oct-2015
1258,Revenue,CCHD,Home Care - Elderly - North,Other Small Contracts,Kensington Community Care,3308.46, 26-Oct-2015
1259,Revenue,CCHD,Home Care - Elderly - North,Other Small Contracts,Kensington Community Care,3746.64, 29-Oct-2015
1260,Revenue,CCHD,Home Care - Elderly - North,Other Small Contracts,Kumari Care Limited,834.36, 02-Oct-2015
1261,Revenue,CCHD,Home Care - Elderly - North,Other Small Contracts,Kumari Care Limited,833.96, 09-Oct-2015
1262,Revenue,CCHD,Home Care - Elderly - North,Other Small Contracts,Kumari Care Limited,833.86, 20-Oct-2015
1263,Revenue,CCHD,Home Care - Elderly - North,Day Care / Social Activities,Lloyds TSB Commercial Finance Limited,394.79, 29-Oct-2015
1264,Revenue,CCHD,Home Care - Elderly - North,Supported Living,Lloyds TSB Commercial Finance Limited,1823.36, 29-Oct-2015
1265,Revenue,CCHD,Home Care - Elderly - North,Day Care / Social Activities,Lloyds TSB Commercial Finance Limited,48.84, 28-Oct-2015
1266,Revenue,CCHD,Home Care - Elderly - North,Supported Living,Lloyds TSB Commercial Finance Limited,1245.42, 28-Oct-2015
1267,Revenue,CCHD,Home Care - Elderly - North,Day Care / Social Activities,Lloyds TSB Commercial Finance Limited,48.84, 28-Oct-2015
1268,Revenue,CCHD,Home Care - Elderly - North,Supported Living,Lloyds TSB Commercial Finance Limited,1831.50, 28-Oct-2015
1269,Revenue,CCHD,Home Care - Elderly - North,Day Care / Social Activities,Lloyds TSB Commercial Finance Limited,48.84, 29-Oct-2015
1270,Revenue,CCHD,Home Care - Elderly - North,Supported Living,Lloyds TSB Commercial Finance Limited,1827.43, 29-Oct-2015
1271,Revenue,CCHD,Home Care - Elderly - North,Day Care / Social Activities,Lloyds TSB Commercial Finance Limited,48.84, 29-Oct-2015
1272,Revenue,CCHD,Home Care - Elderly - North,Supported Living,Lloyds TSB Commercial Finance Limited,1440.78, 29-Oct-2015
1273,Revenue,CCHD,Home Care - Elderly - North,Day Care / Social Activities,Lower Kilcott,1481.84, 27-Oct-2015
1274,Revenue,CCHD,Home Care - Elderly - North,Day Care / Social Activities,Lower Kilcott,710.16, 27-Oct-2015
1275,Revenue,CCHD,Home Care - Elderly - North,Day Care / Social Activities,Lower Kilcott,566.68, 27-Oct-2015
1276,Revenue,CCHD,Home Care - Elderly - North,Other Small Contracts,Mears Care,3042.00, 14-Oct-2015
1277,Revenue,CCHD,Home Care - Elderly - North,Other Small Contracts,Mears Care,2991.30, 28-Oct-2015
1278,Revenue,CCHD,Home Care - Elderly - North,Other Small Contracts,Mears Care,2940.60, 28-Oct-2015
1279,Revenue,CCHD,Home Care - Elderly - North,Other Small Contracts,Mears Care,2991.30, 28-Oct-2015
1280,Revenue,CCHD,Home Care - Elderly - North,Other Small Contracts,Medacs Home Care,417.72, 19-Oct-2015
1281,Revenue,CCHD,Home Care - Elderly - North,Other Small Contracts,Medacs Home Care,400.02, 19-Oct-2015
1282,Revenue,CCHD,Home Care - Elderly - North,Other Small Contracts,Medacs Home Care,421.26, 19-Oct-2015
1283,Revenue,CCHD,Home Care - Elderly - North,Other Small Contracts,Medacs Home Care,410.64, 19-Oct-2015
1284,Revenue,CCHD,Home Care - Elderly - North,Other Small Contracts,Medacs Home Care,414.18, 19-Oct-2015
1285,Revenue,CCHD,Home Care - Elderly - North,Other Small Contracts,Medacs Home Care,417.72, 20-Oct-2015
1286,Revenue,CCHD,Home Care - Elderly - North,Other Small Contracts,Medacs Home Care,651.36, 19-Oct-2015
1287,Revenue,CCHD,Home Care - Elderly - North,Other Small Contracts,Medacs Home Care,619.50, 19-Oct-2015
1288,Revenue,CCHD,Home Care - Elderly - North,Supported Living,Milestones - Unit 10,4340.08, 27-Oct-2015
1289,Revenue,CCHD,Home Care - Elderly - North,Other Small Contracts,Milestones Homecare & Dementia Service,1988.76, 09-Oct-2015
1290,Revenue,CCHD,Home Care - Elderly - North,Other Small Contracts,Milestones Homecare & Dementia Service,1759.44, 19-Oct-2015
1291,Revenue,CCHD,Home Care - Elderly - North,Day Care / Social Activities,Milestones Supported Living Services,3229.67, 09-Oct-2015
1292,Revenue,CCHD,Home Care - Elderly - North,Other Small Contracts,Milestones Supported Living Services,243.84, 09-Oct-2015
1293,Revenue,CCHD,Home Care - Elderly - North,Supported Living,Milestones Supported Living Services,162.40, 09-Oct-2015
1294,Revenue,CCHD,Home Care - Elderly - North,Day Care / Social Activities,Milestones Supported Living Services,3181.00, 09-Oct-2015
1295,Revenue,CCHD,Home Care - Elderly - North,Other Small Contracts,Milestones Supported Living Services,284.48, 09-Oct-2015
1296,Revenue,CCHD,Home Care - Elderly - North,Supported Living,Milestones Supported Living Services,121.80, 09-Oct-2015
1297,Revenue,CCHD,Home Care - Elderly - North,Day Care / Social Activities,Milestones Supported Living Services,3247.11, 20-Oct-2015
1298,Revenue,CCHD,Home Care - Elderly - North,Other Small Contracts,Milestones Supported Living Services,284.48, 20-Oct-2015
1299,Revenue,CCHD,Home Care - Elderly - North,Supported Living,Milestones Supported Living Services,162.40, 20-Oct-2015
1300,Revenue,CCHD,Home Care - Elderly - North,Day Care / Social Activities,Milestones Supported Living Services,3157.64, 21-Oct-2015
1301,Revenue,CCHD,Home Care - Elderly - North,Other Small Contracts,Milestones Supported Living Services,284.48, 21-Oct-2015
1302,Revenue,CCHD,Home Care - Elderly - North,Supported Living,Milestones Supported Living Services,162.40, 21-Oct-2015
1303,Revenue,CCHD,Home Care - Elderly - North,Day Care / Social Activities,Mrs B Kimber -  CM2000,382.72, 14-Oct-2015
1304,Revenue,CCHD,Home Care - Elderly - North,Other Small Contracts,Mrs B Kimber -  CM2000,5353.92, 14-Oct-2015
1305,Revenue,CCHD,Home Care - Elderly - North,Day Care / Social Activities,Mrs B Kimber -  CM2000,341.12, 14-Oct-2015
1306,Revenue,CCHD,Home Care - Elderly - North,Other Small Contracts,Mrs B Kimber -  CM2000,5923.84, 14-Oct-2015
1307,Revenue,CCHD,Home Care - Elderly - North,Day Care / Social Activities,Mrs B Kimber -  CM2000,436.80, 14-Oct-2015
1308,Revenue,CCHD,Home Care - Elderly - North,Other Small Contracts,Mrs B Kimber -  CM2000,6044.48, 14-Oct-2015
1309,Revenue,CCHD,Home Care - Elderly - North,Day Care / Social Activities,Mrs B Kimber -  CM2000,345.28, 21-Oct-2015
1310,Revenue,CCHD,Home Care - Elderly - North,Other Small Contracts,Mrs B Kimber -  CM2000,5857.28, 21-Oct-2015
1311,Revenue,CCHD,Home Care - Elderly - North,Other Small Contracts,Nestor T/A Allied Healthcare,7226.45, 14-Oct-2015
1312,Revenue,CCHD,Home Care - Elderly - North,Other Small Contracts,Nestor T/A Allied Healthcare,7134.05, 08-Oct-2015
1313,Revenue,CCHD,Home Care - Elderly - North,Other Small Contracts,Nestor T/A Allied Healthcare,6995.45, 14-Oct-2015
1314,Revenue,CCHD,Home Care - Elderly - North,Other Small Contracts,Nestor T/A Allied Healthcare,7384.30, 14-Oct-2015
1315,Revenue,CCHD,Home Care - Elderly - North,Other Small Contracts,Nursing Solutions Limited,524.04, 19-Oct-2015
1316,Revenue,CCHD,Home Care - Elderly - North,Other Small Contracts,Nursing Solutions Limited,265.99, 19-Oct-2015
1317,Revenue,CCHD,Home Care - Elderly - North,Other Small Contracts,Nursing Solutions Limited,222.32, 19-Oct-2015
1318,Revenue,CCHD,Home Care - Elderly - North,Day Care / Social Activities,Premier Homecare Limited,138.30, 02-Oct-2015
1319,Revenue,CCHD,Home Care - Elderly - North,Other Small Contracts,Premier Homecare Limited,15180.73, 02-Oct-2015
1320,Revenue,CCHD,Home Care - Elderly - North,Day Care / Social Activities,Premier Homecare Limited,142.91, 02-Oct-2015
1321,Revenue,CCHD,Home Care - Elderly - North,Other Small Contracts,Premier Homecare Limited,14507.67, 02-Oct-2015
1322,Revenue,CCHD,Home Care - Elderly - North,Day Care / Social Activities,Premier Homecare Limited,138.30, 19-Oct-2015
1323,Revenue,CCHD,Home Care - Elderly - North,Other Small Contracts,Premier Homecare Limited,13530.36, 19-Oct-2015
1324,Revenue,CCHD,Home Care - Elderly - North,Day Care / Social Activities,Premier Homecare Limited,138.30, 19-Oct-2015
1325,Revenue,CCHD,Home Care - Elderly - North,Other Small Contracts,Premier Homecare Limited,12576.08, 19-Oct-2015
1326,Revenue,CCHD,Home Care - Elderly - North,Day Care / Social Activities,Premier Homecare Limited,82.98, 29-Oct-2015
1327,Revenue,CCHD,Home Care - Elderly - North,Other Small Contracts,Premier Homecare Limited,12253.38, 29-Oct-2015
1328,Revenue,CCHD,Home Care - Elderly - North,Day Care / Social Activities,Premier Homecare Limited,82.98, 29-Oct-2015
1329,Revenue,CCHD,Home Care - Elderly - North,Other Small Contracts,Premier Homecare Limited,12470.05, 29-Oct-2015
1330,Revenue,CCHD,Home Care - Elderly - North,Other Small Contracts,Prestige Nursing,2273.03, 14-Oct-2015
1331,Revenue,CCHD,Home Care - Elderly - North,Other Small Contracts,Prestige Nursing,2217.87, 19-Oct-2015
1332,Revenue,CCHD,Home Care - Elderly - North,Other Small Contracts,Prestige Nursing,2226.73, 08-Oct-2015
1333,Revenue,CCHD,Home Care - Elderly - North,Other Small Contracts,Prestige Nursing,2367.59, 19-Oct-2015
1334,Revenue,CCHD,Home Care - Elderly - North,Other Small Contracts,Prestige Nursing,1942.39, 19-Oct-2015
1335,Revenue,CCHD,Home Care - Elderly - North,Other Small Contracts,Prestige Nursing,2110.32, 29-Oct-2015
1336,Revenue,CCHD,Home Care - Elderly - North,Other Small Contracts,Prestige Nursing,2194.31, 29-Oct-2015
1337,Revenue,CCHD,Home Care - Elderly - North,Supported Living,Smile Ind Living Support Limited,3060.80, 27-Oct-2015
1338,Revenue,CCHD,Home Care - Elderly - North,Supported Living,Smile Ind Living Support Limited,3060.80, 27-Oct-2015
1339,Revenue,CCHD,Home Care - Elderly - North,Supported Living,Smile Ind Living Support Limited,3060.80, 27-Oct-2015
1340,Revenue,CCHD,Home Care - Elderly - North,Day Care / Social Activities,Smile Independent Living Support Limited,737.86, 14-Oct-2015
1341,Revenue,CCHD,Home Care - Elderly - North,Supported Living,Smile Independent Living Support Limited,210.15, 14-Oct-2015
1342,Revenue,CCHD,Home Care - Elderly - North,Day Care / Social Activities,Smile Independent Living Support Limited,723.85, 14-Oct-2015
1343,Revenue,CCHD,Home Care - Elderly - North,Supported Living,Smile Independent Living Support Limited,210.15, 14-Oct-2015
1344,Revenue,CCHD,Home Care - Elderly - North,Day Care / Social Activities,Smile Independent Living Support Limited,742.53, 22-Oct-2015
1345,Revenue,CCHD,Home Care - Elderly - North,Supported Living,Smile Independent Living Support Limited,205.48, 22-Oct-2015
1346,Revenue,CCHD,Home Care - Elderly - North,Day Care / Social Activities,St Monicas Trust,1615.68, 16-Oct-2015
1347,Revenue,CCHD,Home Care - Elderly - North,Day Care / Social Activities,The Ann Coleman Centre,2301.60, 27-Oct-2015
1348,Revenue,CCHD,Home Care - Elderly - North,Day Care / Social Activities,The Ann Coleman Centre,3378.20, 27-Oct-2015
1349,Revenue,CCHD,Home Care - Elderly - North,Day Care / Social Activities,The Brandon Trust,122.92, 14-Oct-2015
1350,Revenue,CCHD,Home Care - Elderly - North,Other Small Contracts,The Brandon Trust,144.87, 14-Oct-2015
1351,Revenue,CCHD,Home Care - Elderly - North,Supported Living,The Brandon Trust,1939.28, 14-Oct-2015
1352,Revenue,CCHD,Home Care - Elderly - North,Day Care / Social Activities,The Brandon Trust,65.85, 15-Oct-2015
1353,Revenue,CCHD,Home Care - Elderly - North,Other Small Contracts,The Brandon Trust,140.48, 15-Oct-2015
1354,Revenue,CCHD,Home Care - Elderly - North,Supported Living,The Brandon Trust,1939.28, 15-Oct-2015
1355,Revenue,CCHD,Home Care - Elderly - North,Day Care / Social Activities,The Brandon Trust,566.31, 21-Oct-2015
1356,Revenue,CCHD,Home Care - Elderly - North,Other Small Contracts,The Brandon Trust,140.48, 21-Oct-2015
1357,Revenue,CCHD,Home Care - Elderly - North,Supported Living,The Brandon Trust,1939.28, 21-Oct-2015
1358,Revenue,CCHD,Home Care - Elderly - North,Day Care / Social Activities,The Brandon Trust,535.58, 28-Oct-2015
1359,Revenue,CCHD,Home Care - Elderly - North,Other Small Contracts,The Brandon Trust,140.48, 28-Oct-2015
1360,Revenue,CCHD,Home Care - Elderly - North,Supported Living,The Brandon Trust,1838.78, 28-Oct-2015
1361,Revenue,CCHD,Home Care - Elderly - North,Day Care / Social Activities,The Cottage,660.72, 27-Oct-2015
1362,Revenue,CCHD,Home Care - Elderly - North,Day Care / Social Activities,The Cottage,540.72, 27-Oct-2015
1363,Revenue,CCHD,Home Care - Elderly - North,Supported Living,The Hatch Camphill Community,2038.56, 27-Oct-2015
1364,Revenue,CCHD,Home Care - Elderly - North,Supported Living,The Hatch Camphill Community,2162.60, 27-Oct-2015
1365,Revenue,CCHD,Home Care - Elderly - North,Supported Living,The Hatch Camphill Community,1224.92, 27-Oct-2015
1366,Revenue,CCHD,Home Care - Elderly - North,Supported Living,The Hatch Camphill Community,2322.40, 27-Oct-2015
1367,Revenue,CCHD,Home Care - Elderly - North,Supported Living,The Hatch Camphill Community,2309.76, 27-Oct-2015
1368,Revenue,CCHD,Home Care - Elderly - North,Supported Living,The Hatch Camphill Community,2283.28, 27-Oct-2015
1369,Revenue,CCHD,Home Care - Elderly - North,Supported Living,The Hatch Camphill Community,1815.28, 27-Oct-2015
1370,Revenue,CCHD,Home Care - Elderly - North,Supported Living,The Hatch Camphill Community,2078.52, 27-Oct-2015
1371,Revenue,CCHD,Home Care - Elderly - North,Supported Living,The Hatch Camphill Community,1893.52, 27-Oct-2015
1372,Revenue,CCHD,Home Care - Elderly - North,Supported Living,The Hatch Camphill Community,1716.88, 27-Oct-2015
1373,Revenue,CCHD,Home Care - Elderly - North,Supported Living,The Hatch Camphill Community,2080.60, 27-Oct-2015
1374,Revenue,CCHD,Home Care - Elderly - North,Supported Living,The Hatch Camphill Community,1272.88, 27-Oct-2015
1375,Revenue,CCHD,Home Care - Elderly - North,Supported Living,The Hatch Camphill Community,1859.84, 27-Oct-2015
1376,Revenue,CCHD,Home Care - Elderly - North,Supported Living,The Hatch Camphill Community,1583.16, 27-Oct-2015
1377,Revenue,CCHD,Home Care - Elderly - North,Supported Living,The Hatch Camphill Community,2147.32, 27-Oct-2015
1378,Revenue,CCHD,Home Care - Elderly - North,Supported Living,The Hatch Camphill Community,13490.42, 27-Oct-2015
1379,Revenue,CCHD,Home Care - Elderly - North,Supported Living,The Hatch Camphill Community,1957.16, 27-Oct-2015
1380,Revenue,CCHD,Home Care - Elderly - North,Supported Living,The Hatch Camphill Community,1666.44, 27-Oct-2015
1381,Revenue,CCHD,Home Care - Elderly - North,Supported Living,The Hatch Camphill Community,1288.00, 27-Oct-2015
1382,Revenue,CCHD,Home Care - Elderly - North,Supported Living,The Hatch Camphill Community,2078.52, 27-Oct-2015
1383,Revenue,CCHD,Home Care - Elderly - North,Supported Living,The Hatch Camphill Community,2044.88, 27-Oct-2015
1384,Revenue,CCHD,Home Care - Elderly - North,Day Care / Social Activities,The Manor House,2096.32, 27-Oct-2015
1385,Revenue,CCHD,Home Care - Elderly - North,Day Care / Social Activities,The Manor House,1396.12, 27-Oct-2015
1386,Revenue,CCHD,Home Care - Elderly - North,Day Care / Social Activities,The Manor House,1703.40, 27-Oct-2015
1387,Revenue,CCHD,Home Care - Elderly - North,Day Care / Social Activities,The Old School House,574.40, 27-Oct-2015
1388,Revenue,CCHD,Home Care - Elderly - North,Day Care / Social Activities,The Old School House,861.60, 27-Oct-2015
1389,Revenue,CCHD,Home Care - Elderly - North,Day Care / Social Activities,The Old School House,574.40, 27-Oct-2015
1390,Revenue,CCHD,Home Care - Elderly - North,Day Care / Social Activities,The Vassall Centre,1061.28, 27-Oct-2015
1391,Revenue,CCHD,Home Care - Elderly - North,Day Care / Social Activities,The Vassall Centre,1591.92, 27-Oct-2015
1392,Revenue,CCHD,Home Care - Elderly - North,Day Care / Social Activities,The Vassall Centre,2939.60, 27-Oct-2015
1393,Revenue,CCHD,Home Care - Elderly - North,Other Small Contracts,Unit 1  Sheldon Business Park,6841.28, 27-Oct-2015
1394,Revenue,CCHD,Home Care - Elderly - North,Supported Living,Willowbank,955.48, 27-Oct-2015
1395,Revenue,CCHD,Home Care - Elderly - North,Supported Living,Willowbank,1577.80, 27-Oct-2015
1396,Revenue,CCHD,Home Care - Elderly - North,Supported Living,Willowbank,1304.80, 27-Oct-2015
1397,Revenue,CCHD,Home Care - Elderly - North,Supported Living,Willowbank,1433.20, 27-Oct-2015
1398,Revenue,CCHD,Home Care - Elderly - North,Supported Living,Willowbank,851.56, 27-Oct-2015
1399,Revenue,CCHD,Home Care - Elderly - North,Supported Living,Willowbank,3821.92, 27-Oct-2015
1400,Revenue,CCHD,Home Care - Elderly - North,Supported Living,Willowbank,2736.88, 27-Oct-2015
1401,Revenue,CCHD,Home Care Monitoring (CM2000),Other Supplies & Services,Care Monitoring 2000 Limited,10047.12, 21-Oct-2015
1402,Revenue,CCHD,Home Care Monitoring (CM2000),Other Supplies & Services,Care Monitoring 2000 Limited,3257.00, 06-Oct-2015
1403,Revenue,CCHD,Home Care Monitoring (CM2000),Other Supplies & Services,Care Monitoring 2000 Limited,9538.54, 21-Oct-2015
1404,Revenue,CCHD,Home Care Monitoring (CM2000),Other Supplies & Services,Care Monitoring 2000 Limited,1308.00, 15-Oct-2015
1405,Revenue,CCHD,Day Care - South,Day Care / Social Activities,About Me Care and Support Limited,1274.11, 12-Oct-2015
1406,Revenue,CCHD,Day Care - South,Day Care / Social Activities,About Me Care and Support Limited,780.19, 12-Oct-2015
1407,Revenue,CCHD,Day Care - South,Day Care / Social Activities,Action on Hearing Loss,871.00, 12-Oct-2015
1408,Revenue,CCHD,Day Care - South,Day Care / Social Activities,Brunelcare,28.91, 08-Oct-2015
1409,Revenue,CCHD,Day Care - South,Day Care / Social Activities,Brunelcare,57.82, 08-Oct-2015
1410,Revenue,CCHD,Day Care - South,Day Care / Social Activities,Kenver House,992.00, 16-Oct-2015
1411,Revenue,CCHD,Day Care - South,Day Care / Social Activities,Milestones Supported Living Services,109.44, 09-Oct-2015
1412,Revenue,CCHD,Day Care - South,Day Care / Social Activities,Milestones Supported Living Services,72.96, 09-Oct-2015
1413,Revenue,CCHD,Day Care - South,Day Care / Social Activities,Milestones Supported Living Services,109.44, 20-Oct-2015
1414,Revenue,CCHD,Day Care - South,Day Care / Social Activities,Milestones Supported Living Services,72.96, 21-Oct-2015
1415,Revenue,CCHD,Day Care - South,Day Care / Social Activities,Moving On,1090.98, 16-Oct-2015
1416,Revenue,CCHD,Day Care - South,Day Care / Social Activities,Moving On,1124.04, 16-Oct-2015
1417,Revenue,CCHD,Day Care - South,Day Care / Social Activities,Prestige Nursing,124.04, 14-Oct-2015
1418,Revenue,CCHD,Day Care - South,Day Care / Social Activities,Prestige Nursing,124.04, 19-Oct-2015
1419,Revenue,CCHD,Day Care - South,Day Care / Social Activities,Prestige Nursing,124.04, 08-Oct-2015
1420,Revenue,CCHD,Day Care - South,Day Care / Social Activities,Prestige Nursing,124.04, 19-Oct-2015
1421,Revenue,CCHD,Day Care - South,Day Care / Social Activities,Prestige Nursing,124.04, 19-Oct-2015
1422,Revenue,CCHD,Day Care - South,Day Care / Social Activities,Prestige Nursing,124.04, 29-Oct-2015
1423,Revenue,CCHD,Day Care - South,Day Care / Social Activities,Prestige Nursing,119.61, 29-Oct-2015
1424,Revenue,CCHD,Day Care - South,Day Care / Social Activities,Supporting Options,608.40, 26-Oct-2015
1425,Revenue,CCHD,Day Care - South,Day Care / Social Activities,Supporting Options,2484.30, 26-Oct-2015
1426,Revenue,CCHD,Day Care - South,Day Care / Social Activities,Supporting Options,633.75, 20-Oct-2015
1427,Revenue,CCHD,Day Care - North,Day Care / Social Activities,Alison Keith,560.00, 30-Oct-2015
1428,Revenue,CCHD,Day Care - North,Day Care / Social Activities,Bristol & Avon Chinese Womens Group,528.66, 21-Oct-2015
1429,Revenue,CCHD,Day Care - North,Day Care / Social Activities,Helping Hands Homecare,95.04, 14-Oct-2015
1430,Revenue,CCHD,Day Care - North,Day Care / Social Activities,Helping Hands Homecare,87.12, 21-Oct-2015
1431,Revenue,CCHD,Day Care - North,Day Care / Social Activities,Helping Hands Homecare,87.12, 21-Oct-2015
1432,Revenue,CCHD,Day Care - North,Day Care / Social Activities,Helping Hands Homecare,91.08, 14-Oct-2015
1433,Revenue,CCHD,Day Care - North,Day Care / Social Activities,Helping Hands Homecare,63.36, 21-Oct-2015
1434,Revenue,CCHD,Day Care - North,Day Care / Social Activities,Helping Hands Homecare,31.68, 23-Oct-2015
1435,Revenue,CCHD,Day Care - North,Day Care / Social Activities,Helping Hands Homecare,79.20, 30-Oct-2015
1436,Revenue,CCHD,Day Care - North,Day Care / Social Activities,Lifeways Community Care (Gloucester) Ltd,4505.00, 21-Oct-2015
1437,Revenue,CCHD,Day Care - North,Day Care / Social Activities,Milestones Supported Living Services,163.28, 09-Oct-2015
1438,Revenue,CCHD,Day Care - North,Day Care / Social Activities,Milestones Supported Living Services,167.84, 09-Oct-2015
1439,Revenue,CCHD,Day Care - North,Day Care / Social Activities,Milestones Supported Living Services,163.28, 20-Oct-2015
1440,Revenue,CCHD,Day Care - North,Day Care / Social Activities,Milestones Supported Living Services,172.40, 21-Oct-2015
1441,Revenue,CCHD,Day Care - North,Day Care / Social Activities,Nestor T/A Allied Healthcare,69.30, 14-Oct-2015
1442,Revenue,CCHD,Day Care - North,Day Care / Social Activities,Nestor T/A Allied Healthcare,69.30, 08-Oct-2015
1443,Revenue,CCHD,Day Care - North,Day Care / Social Activities,Nestor T/A Allied Healthcare,69.30, 14-Oct-2015
1444,Revenue,CCHD,Day Care - North,Day Care / Social Activities,Nestor T/A Allied Healthcare,69.30, 14-Oct-2015
1445,Revenue,CCHD,Day Care - North,Day Care / Social Activities,Silva Care Limited,972.73, 21-Oct-2015
1446,Revenue,CCHD,Direct Payments - Phys Dis - North,Grants to Voluntary Bodies,Aquarium Card Management Solutions Ltd,2039.00, 29-Oct-2015
1447,Revenue,CCHD,Direct Payments - Phys Dis - North,Grants to Voluntary Bodies,Aquarium Card Management Solutions Ltd,2044.50, 30-Oct-2015
1448,Revenue,CCHD,Direct Payments - Phys Dis - North,One-off Planned Direct Payment,Miss Naomi Jade Barnes,576.26, 23-Oct-2015
1449,Revenue,CCHD,Bed purchasing - Elderly S117 - South,Permanent Residential,Ash View House,6246.76, 27-Oct-2015
1450,Revenue,CCHD,Bed purchasing - Elderly S117 - South,Permanent Nursing,Blossom Field,4352.00, 27-Oct-2015
1451,Revenue,CCHD,Bed purchasing - Elderly S117 - South,Permanent Nursing,Brunelcare,3034.29, 07-Oct-2015
1452,Revenue,CCHD,Bed purchasing - Elderly S117 - South,Permanent Nursing,Fairview Court,2012.00, 27-Oct-2015
1453,Revenue,CCHD,Bed purchasing - Elderly S117 - South,Permanent Nursing,Fairview Court Care Home,2555.61, 28-Oct-2015
1454,Revenue,CCHD,Bed purchasing - Elderly S117 - South,Permanent Nursing,Fairview Court Care Home,2640.80, 28-Oct-2015
1455,Revenue,CCHD,Bed purchasing - Elderly S117 - South,Permanent Residential,Fairview House,1937.56, 27-Oct-2015
1456,Revenue,CCHD,Bed purchasing - Elderly S117 - South,Permanent Nursing,Fshc  1St Floor,1904.00, 27-Oct-2015
1457,Revenue,CCHD,Bed purchasing - Elderly S117 - South,Permanent Nursing,Fshc  1St Floor,2080.00, 27-Oct-2015
1458,Revenue,CCHD,Bed purchasing - Elderly S117 - South,Permanent Nursing,Gracefields Nursing Home,2381.88, 27-Oct-2015
1459,Revenue,CCHD,Bed purchasing - Elderly S117 - South,Permanent Nursing,Meadow Care Home,2420.00, 27-Oct-2015
1460,Revenue,CCHD,Bed purchasing - Elderly S117 - South,Permanent Nursing,Milestones - Unit 10,2012.00, 27-Oct-2015
1461,Revenue,CCHD,Bed purchasing - Elderly S117 - South,Permanent Residential,Osprey Court,11450.92, 27-Oct-2015
1462,Revenue,CCHD,Bed purchasing - Elderly S117 - South,Permanent Residential,The Gables Residential Home,2271.16, 27-Oct-2015
1463,Revenue,CCHD,Bed purchasing - Elderly S117 - South,Permanent Residential,The Grove,2381.88, 27-Oct-2015
1464,Revenue,CCHD,Bed purchasing - Elderly S117 - South,Permanent Residential,The Grove,2830.24, 27-Oct-2015
1465,Revenue,CCHD,Bed purchasing - Elderly S117 - South,Permanent Residential,The Old Vicarage Residential Home,2100.00, 27-Oct-2015
1466,Revenue,CCHD,Bed purchasing - Elderly S117 - South,Permanent Residential,Wayside Residential Care Home,2122.68, 27-Oct-2015
1467,Revenue,CCHD,MH Purchasing - Younger,Permanent Residential,Brightbow,1503.92, 27-Oct-2015
1468,Revenue,CCHD,MH Purchasing - Younger,Permanent Residential,Dunraven House,1875.40, 27-Oct-2015
1469,Revenue,CCHD,MH Purchasing - Younger,Permanent Residential,Milestones - Unit 10,866.80, 27-Oct-2015
1470,Revenue,CCHD,MH Purchasing - Younger,Permanent Residential,Milestones - Unit 10,1050.20, 27-Oct-2015
1471,Revenue,CCHD,MH Purchasing - Younger,Permanent Nursing,Milestones - Unit 10,950.96, 27-Oct-2015
1472,Revenue,CCHD,MH Purchasing - Younger,Permanent Nursing,Milestones - Unit 10,958.80, 27-Oct-2015
1473,Revenue,CCHD,MH Purchasing - Younger,Respite Planned - Residential,Milestones - Unit 10,3774.80, 27-Oct-2015
1474,Revenue,CCHD,MH Purchasing - Younger,Permanent Residential,Notaro Homes Ltd  Queensmead Court,3032.40, 27-Oct-2015
1475,Revenue,CCHD,MH Purchasing - Younger,Permanent Nursing,Stanley House,4422.40, 27-Oct-2015
1476,Revenue,CCHD,MH Purchasing - Younger,Permanent Residential,Ventura Residential Care Home,1400.32, 27-Oct-2015
1477,Revenue,CCHD,Bed Purchasing - Elderly S117- North,Permanent Nursing,Beaufort Grange Care Home,650.29, 27-Oct-2015
1478,Revenue,CCHD,Bed Purchasing - Elderly S117- North,Permanent Nursing,Blossom Field,2012.00, 27-Oct-2015
1479,Revenue,CCHD,Bed Purchasing - Elderly S117- North,Permanent Nursing,Brunelcare,3034.29, 07-Oct-2015
1480,Revenue,CCHD,Bed Purchasing - Elderly S117- North,Permanent Nursing,Brunelcare,3034.29, 07-Oct-2015
1481,Revenue,CCHD,Bed Purchasing - Elderly S117- North,Permanent Nursing,Brunelcare,3034.29, 07-Oct-2015
1482,Revenue,CCHD,Bed Purchasing - Elderly S117- North,Permanent Residential,Canjayor,2359.24, 27-Oct-2015
1483,Revenue,CCHD,Bed Purchasing - Elderly S117- North,Permanent Residential,Citibase Watford,9028.60, 27-Oct-2015
1484,Revenue,CCHD,Bed Purchasing - Elderly S117- North,Permanent Nursing,Danshell Healthcare Group,11653.52, 27-Oct-2015
1485,Revenue,CCHD,Bed Purchasing - Elderly S117- North,Permanent Nursing,Fshc  1St Floor,2012.00, 27-Oct-2015
1486,Revenue,CCHD,Bed Purchasing - Elderly S117- North,Permanent Nursing,Meadow Care Home,3800.00, 27-Oct-2015
1487,Revenue,CCHD,Bed Purchasing - Elderly S117- North,Permanent Nursing,Meadow Care Home,3528.57, 27-Oct-2015
1488,Revenue,CCHD,Bed Purchasing - Elderly S117- North,Permanent Residential,Osbourne Court,1948.00, 27-Oct-2015
1489,Revenue,CCHD,Bed Purchasing - Elderly S117- North,Permanent Residential,Real Life Options,6704.28, 27-Oct-2015
1490,Revenue,CCHD,Bed Purchasing - Elderly S117- North,Permanent Nursing,Redholme Memory Care Limited,2013.36, 27-Oct-2015
1491,Revenue,CCHD,Bed Purchasing - Elderly S117- North,Permanent Nursing,Shaw Healthcare Ltd,2872.00, 27-Oct-2015
1492,Revenue,CCHD,Bed Purchasing - Elderly S117- North,Permanent Residential,Templemore Care Home,2256.68, 27-Oct-2015
1493,Revenue,CCHD,Bed Purchasing - Elderly S117- North,Permanent Residential,The Grove,2148.16, 27-Oct-2015
1494,Revenue,CCHD,Bed Purchasing - Elderly S117- North,Permanent Residential,The Grove,2800.00, 27-Oct-2015
1495,Revenue,CCHD,Bed Purchasing - Elderly S117- North,Permanent Residential,The Old Vicarage Residential Home,1948.00, 27-Oct-2015
1496,Revenue,CCHD,Bed Purchasing - Elderly S117- North,Permanent Residential,Windmill House,1776.00, 27-Oct-2015
1497,Revenue,CCHD,Bed Purchasing - Elderly S117- North,Permanent Nursing,Woodspring Stadium,2922.24, 27-Oct-2015
1498,Revenue,CCHD,Section 117 Placements MH Younger,Permanent Residential,Ash View House,6565.76, 27-Oct-2015
1499,Revenue,CCHD,Section 117 Placements MH Younger,Permanent Nursing,Beaufort Grange Care Home,7000.00, 27-Oct-2015
1500,Revenue,CCHD,Section 117 Placements MH Younger,Permanent Residential,Bedrock Lodge,1885.04, 27-Oct-2015
1501,Revenue,CCHD,Section 117 Placements MH Younger,Permanent Residential,Church House,7649.04, 27-Oct-2015
1502,Revenue,CCHD,Section 117 Placements MH Younger,Permanent Residential,Gladstone House,2792.00, 27-Oct-2015
1503,Revenue,CCHD,Section 117 Placements MH Younger,Permanent Residential,Milestones - Unit 10,1372.00, 27-Oct-2015
1504,Revenue,CCHD,Section 117 Placements MH Younger,Permanent Residential,Milestones - Unit 10,1372.00, 27-Oct-2015
1505,Revenue,CCHD,Section 117 Placements MH Younger,Day Care / Social Activities,Moving On,1537.29, 16-Oct-2015
1506,Revenue,CCHD,Section 117 Placements MH Younger,Day Care / Social Activities,Moving On,1537.29, 16-Oct-2015
1507,Revenue,CCHD,Section 117 Placements MH Younger,Permanent Nursing,Oaklands,6154.56, 27-Oct-2015
1508,Revenue,CCHD,Section 117 Placements MH Younger,Day Care / Social Activities,Supported Independence Ltd,2236.52, 23-Oct-2015
1509,Revenue,CCHD,Section 117 Placements MH Younger,Day Care / Social Activities,Supported Independence Ltd,566.72, 01-Oct-2015
1510,Revenue,CCHD,Section 117 Placements MH Younger,Day Care / Social Activities,Supported Independence Ltd,2494.58, 02-Oct-2015
1511,Revenue,CCHD,Section 117 Placements MH Younger,Day Care / Social Activities,Supported Independence Ltd,1558.48, 01-Oct-2015
1512,Revenue,CCHD,Section 117 Placements MH Younger,Day Care / Social Activities,Supported Independence Ltd,607.20, 28-Oct-2015
1513,Revenue,CCHD,Section 117 Placements MH Younger,Day Care / Social Activities,Supported Independence Ltd,546.48, 28-Oct-2015
1514,Revenue,CCHD,Section 117 Placements MH Younger,Day Care / Social Activities,Supported Independence Ltd,2474.34, 23-Oct-2015
1515,Revenue,CCHD,Section 117 Placements MH Younger,Day Care / Social Activities,Supported Independence Ltd,1467.40, 28-Oct-2015
1516,Revenue,CCHD,Mental Capacity Act - Advocacy,Training Expenses,Edge Training & Consultancy Limited,1155.00, 07-Oct-2015
1517,Revenue,CCHD,Mental Capacity Act - Advocacy,Radio Pager/Mobile Phones,Vodafone Corporate Limited,86.71, 01-Oct-2015
1518,Revenue,CCHD,Under 65s -MH  Home Care Purch,Other Small Contracts,Helping Hands Homecare,31.68, 14-Oct-2015
1519,Revenue,CCHD,Under 65s -MH  Home Care Purch,Other Small Contracts,Helping Hands Homecare,31.68, 21-Oct-2015
1520,Revenue,CCHD,Under 65s -MH  Home Care Purch,Other Small Contracts,Helping Hands Homecare,31.68, 14-Oct-2015
1521,Revenue,CCHD,Under 65s -MH  Home Care Purch,Other Small Contracts,Helping Hands Homecare,31.68, 21-Oct-2015
1522,Revenue,CCHD,Under 65s -MH  Home Care Purch,Other Small Contracts,Helping Hands Homecare,31.68, 23-Oct-2015
1523,Revenue,CCHD,Under 65s -MH  Home Care Purch,Other Small Contracts,Helping Hands Homecare,23.76, 30-Oct-2015
1524,Revenue,CCHD,Under 65s -MH  Home Care Purch,Other Small Contracts,Mears Care,120.90, 14-Oct-2015
1525,Revenue,CCHD,Under 65s -MH  Home Care Purch,Other Small Contracts,Mears Care,113.10, 28-Oct-2015
1526,Revenue,CCHD,Under 65s -MH  Home Care Purch,Other Small Contracts,Mears Care,105.30, 28-Oct-2015
1527,Revenue,CCHD,Under 65s -MH  Home Care Purch,Other Small Contracts,Mears Care,117.00, 28-Oct-2015
1528,Revenue,CCHD,Under 65s -MH  Home Care Purch,Other Small Contracts,Mrs B Kimber -  CM2000,66.56, 14-Oct-2015
1529,Revenue,CCHD,Under 65s -MH  Home Care Purch,Other Small Contracts,Mrs B Kimber -  CM2000,66.56, 14-Oct-2015
1530,Revenue,CCHD,Under 65s -MH  Home Care Purch,Other Small Contracts,Mrs B Kimber -  CM2000,66.56, 14-Oct-2015
1531,Revenue,CCHD,Under 65s -MH  Home Care Purch,Other Small Contracts,Mrs B Kimber -  CM2000,66.56, 21-Oct-2015
1532,Revenue,CCHD,Younger MH non-res purchasing,Supported Living,Julia Simone- Supp. Ind.,1178.36, 27-Oct-2015
1533,Revenue,CCHD,Younger MH non-res purchasing,Supported Living,Julia Simone- Supp. Ind.,1178.20, 27-Oct-2015
1534,Revenue,CCHD,Younger MH non-res purchasing,Other Small Contracts,Lloyds TSB Commercial Finance Limited,10615.26, 29-Oct-2015
1535,Revenue,CCHD,Younger MH non-res purchasing,Supported Living,Lloyds TSB Commercial Finance Limited,105.20, 29-Oct-2015
1536,Revenue,CCHD,Younger MH non-res purchasing,Other Small Contracts,Lloyds TSB Commercial Finance Limited,10594.22, 28-Oct-2015
1537,Revenue,CCHD,Younger MH non-res purchasing,Supported Living,Lloyds TSB Commercial Finance Limited,105.20, 28-Oct-2015
1538,Revenue,CCHD,Younger MH non-res purchasing,Other Small Contracts,Lloyds TSB Commercial Finance Limited,10646.66, 28-Oct-2015
1539,Revenue,CCHD,Younger MH non-res purchasing,Supported Living,Lloyds TSB Commercial Finance Limited,105.20, 28-Oct-2015
1540,Revenue,CCHD,Younger MH non-res purchasing,Other Small Contracts,Lloyds TSB Commercial Finance Limited,10673.12, 29-Oct-2015
1541,Revenue,CCHD,Younger MH non-res purchasing,Supported Living,Lloyds TSB Commercial Finance Limited,105.20, 29-Oct-2015
1542,Revenue,CCHD,Younger MH non-res purchasing,Other Small Contracts,Lloyds TSB Commercial Finance Limited,10625.78, 29-Oct-2015
1543,Revenue,CCHD,Younger MH non-res purchasing,Supported Living,Lloyds TSB Commercial Finance Limited,84.16, 29-Oct-2015
1544,Revenue,CCHD,Younger MH non-res purchasing,Supported Living,Maples Community Care Limited,1400.00, 27-Oct-2015
1545,Revenue,CCHD,Younger MH non-res purchasing,Supported Living,Maples Community Care Limited,1400.00, 27-Oct-2015
1546,Revenue,CCHD,Younger MH non-res purchasing,Supported Living,Maples Community Care Limited,1400.00, 27-Oct-2015
1547,Revenue,CCHD,Younger MH non-res purchasing,Day Care / Social Activities,Milestones Supported Living Services,31.92, 09-Oct-2015
1548,Revenue,CCHD,Younger MH non-res purchasing,Day Care / Social Activities,Milestones Supported Living Services,27.36, 09-Oct-2015
1549,Revenue,CCHD,Younger MH non-res purchasing,Day Care / Social Activities,Milestones Supported Living Services,31.92, 20-Oct-2015
1550,Revenue,CCHD,Younger MH non-res purchasing,Day Care / Social Activities,Milestones Supported Living Services,31.92, 21-Oct-2015
1551,Revenue,CCHD,Younger MH non-res purchasing,Day Care / Social Activities,Supported Independence Ltd,1345.96, 01-Oct-2015
1552,Revenue,CCHD,Younger MH non-res purchasing,Day Care / Social Activities,Supported Independence Ltd,1295.36, 28-Oct-2015
1553,Revenue,CCHD,Younger MH non-res purchasing,Day Care / Social Activities,Voyage Limited,5765.76, 01-Oct-2015
1554,Revenue,CCHD,Younger MH non-res purchasing,Day Care / Social Activities,Voyage Limited,5765.76, 16-Oct-2015
1555,Revenue,CCHD,Home care - Elderly MH - North,Other Small Contracts,Helping Hands Homecare,63.36, 14-Oct-2015
1556,Revenue,CCHD,Home care - Elderly MH - North,Other Small Contracts,Helping Hands Homecare,63.36, 21-Oct-2015
1557,Revenue,CCHD,Home care - Elderly MH - North,Other Small Contracts,Helping Hands Homecare,31.68, 21-Oct-2015
1558,Revenue,CCHD,Home care - Elderly MH - North,Other Small Contracts,Helping Hands Homecare,63.36, 14-Oct-2015
1559,Revenue,CCHD,Home care - Elderly MH - North,Other Small Contracts,Helping Hands Homecare,63.36, 21-Oct-2015
1560,Revenue,CCHD,Home care - Elderly MH - North,Other Small Contracts,Helping Hands Homecare,63.36, 23-Oct-2015
1561,Revenue,CCHD,Home care - Elderly MH - North,Other Small Contracts,Helping Hands Homecare,63.36, 30-Oct-2015
1562,Revenue,CCHD,Home care - Elderly MH - North,Other Small Contracts,Milestones Homecare & Dementia Service,35.37, 09-Oct-2015
1563,Revenue,CCHD,Home care - Elderly MH - North,Other Small Contracts,Milestones Homecare & Dementia Service,47.16, 19-Oct-2015
1564,Revenue,CCHD,Home care - Elderly MH - North,Other Small Contracts,Milestones Supported Living Services,96.64, 09-Oct-2015
1565,Revenue,CCHD,Home care - Elderly MH - North,Other Small Contracts,Milestones Supported Living Services,100.65, 09-Oct-2015
1566,Revenue,CCHD,Home care - Elderly MH - North,Other Small Contracts,Milestones Supported Living Services,60.15, 20-Oct-2015
1567,Revenue,CCHD,Home care - Elderly MH - North,Other Small Contracts,Milestones Supported Living Services,125.06, 21-Oct-2015
1568,Revenue,CCHD,Home care - Elderly MH - North,Other Small Contracts,Nestor T/A Allied Healthcare,61.59, 14-Oct-2015
1569,Revenue,CCHD,Home care - Elderly MH - North,Other Small Contracts,Nestor T/A Allied Healthcare,57.74, 08-Oct-2015
1570,Revenue,CCHD,Home care - Elderly MH - North,Other Small Contracts,Nestor T/A Allied Healthcare,53.90, 14-Oct-2015
1571,Revenue,CCHD,Home care - Elderly MH - North,Other Small Contracts,Nestor T/A Allied Healthcare,53.90, 14-Oct-2015
1572,Revenue,CCHD,Home care - Elderly MH - North,Other Small Contracts,Premier Homecare Limited,129.08, 02-Oct-2015
1573,Revenue,CCHD,Home care - Elderly MH - North,Other Small Contracts,Premier Homecare Limited,129.08, 02-Oct-2015
1574,Revenue,CCHD,Home care - Elderly MH - North,Other Small Contracts,Premier Homecare Limited,124.47, 19-Oct-2015
1575,Revenue,CCHD,Home care - Elderly MH - North,Other Small Contracts,Premier Homecare Limited,129.08, 19-Oct-2015
1576,Revenue,CCHD,Home care - Elderly MH - North,Other Small Contracts,Premier Homecare Limited,124.47, 29-Oct-2015
1577,Revenue,CCHD,Home care - Elderly MH - North,Other Small Contracts,Premier Homecare Limited,129.08, 29-Oct-2015
1578,Revenue,CCHD,Elderly MH Day Care North,Day Care / Social Activities,Agincare UK Limited,57.75, 14-Oct-2015
1579,Revenue,CCHD,Elderly MH Day Care North,Day Care / Social Activities,Agincare UK Limited,57.75, 19-Oct-2015
1580,Revenue,CCHD,Elderly MH Day Care North,Day Care / Social Activities,Agincare UK Limited,50.05, 19-Oct-2015
1581,Revenue,CCHD,Elderly MH Day Care North,Day Care / Social Activities,Agincare UK Limited,61.60, 19-Oct-2015
1582,Revenue,CCHD,Elderly MH Day Care North,Day Care / Social Activities,Agincare UK Limited,42.35, 27-Oct-2015
1583,Revenue,CCHD,Elderly MH Day Care North,Day Care / Social Activities,Premier Homecare Limited,73.76, 02-Oct-2015
1584,Revenue,CCHD,Elderly MH Day Care North,Day Care / Social Activities,Premier Homecare Limited,73.76, 02-Oct-2015
1585,Revenue,CCHD,Elderly MH Day Care North,Day Care / Social Activities,Premier Homecare Limited,73.76, 19-Oct-2015
1586,Revenue,CCHD,Elderly MH Day Care North,Day Care / Social Activities,Premier Homecare Limited,73.76, 19-Oct-2015
1587,Revenue,CCHD,Elderly MH Day Care North,Day Care / Social Activities,Premier Homecare Limited,69.15, 29-Oct-2015
1588,Revenue,CCHD,Elderly MH Day Care North,Day Care / Social Activities,Premier Homecare Limited,73.76, 29-Oct-2015
1589,Revenue,CCHD,SLA Grants - Support Serv,Grants to Voluntary Bodies,Carers Support Centre,12275.00, 01-Oct-2015
1590,Revenue,CCHD,SLA Grants - Support Serv,Grants to Voluntary Bodies,Carers Support Centre,24775.00, 01-Oct-2015
1591,Revenue,CCHD,SLA Grants - Support Serv,Grants to Voluntary Bodies,North Bristol NHS Trust,4350.00, 01-Oct-2015
1592,Revenue,CCHD,SLA Grants - Support Serv,Grants to Voluntary Bodies,Time For Carers,2125.00, 01-Oct-2015
1593,Revenue,CCHD,Planning and Partnerships Procurement,Other Supplies & Services,Eldercare,1507.38, 30-Oct-2015
1594,Revenue,CCHD,Planning and Partnerships Procurement,Radio Pager/Mobile Phones,Vodafone Corporate Limited,65.08, 01-Oct-2015
1595,Revenue,CCHD,s256 - Additional Support Funding,Other Supplies & Services,Care and Support West,17250.00, 14-Oct-2015
1596,Revenue,CCHD,Leadership and Business Support,Other Small Contracts,Bristol City Council,8393.75, 27-Oct-2015
1597,Revenue,CCHD,Leadership and Business Support,Other Small Contracts,NHS South Gloucestershire CCG,173882.74, 30-Oct-2015
1598,Revenue,CCHD,Leadership and Business Support,Other Small Contracts,The Care Forum,4550.00, 01-Oct-2015
1599,Revenue,CCHD,Leadership and Business Support,Other Supplies & Services,University Of The West Of England,1500.00, 23-Oct-2015
1600,Revenue,CCHD,Leadership and Business Support,Other Supplies & Services,University Of The West Of England,1500.00, 23-Oct-2015
1601,Revenue,CCHD,"Strategy, Advice and Public Protection",Other Small Contracts,NHS South West CSU,11300.00, 27-Oct-2015
1602,Revenue,CCHD,Sexual Health,Other Supplies & Services,Boots UK Ltd,634.24, 29-Oct-2015
1603,Revenue,CCHD,Sexual Health,Other Supplies & Services,Boots UK Ltd,500.18, 29-Oct-2015
1604,Revenue,CCHD,Sexual Health,Other Small Contracts,Bristol City Council,60911.00, 27-Oct-2015
1605,Revenue,CCHD,Sexual Health,Other Supplies & Services,Brook Advisory Centre (Avon),29337.00, 20-Oct-2015
1606,Revenue,CCHD,Sexual Health,Other Supplies & Services,Brook Advisory Centre (Avon),29337.00, 08-Oct-2015
1607,Revenue,CCHD,Sexual Health,Other Supplies & Services,Chelsea and Westminster Hospital,1161.08, 12-Oct-2015
1608,Revenue,CCHD,Sexual Health,Other Small Contracts,Terrence Higgins Trust,12109.25, 01-Oct-2015
1609,Revenue,CCHD,Sexual Health,Other Small Contracts,The Brigstowe Project,3075.00, 01-Oct-2015
1610,Revenue,CCHD,Sexual Health,Other Supplies & Services,University Hospitals Bristol,68400.97, 16-Oct-2015
1611,Revenue,CCHD,Health Inequalities,Other Small Contracts,Bristol & Avon Chinese Womens Group,500.00, 01-Oct-2015
1612,Revenue,CCHD,Health Inequalities,Other Small Contracts,Carers Support Centre,59557.75, 01-Oct-2015
1613,Revenue,CCHD,Health Inequalities,Other Small Contracts,Dhek Bhal,500.00, 01-Oct-2015
1614,Revenue,CCHD,Health Inequalities,Other Small Contracts,Frampton Cotterell Carers Group,500.00, 01-Oct-2015
1615,Revenue,CCHD,Health Inequalities,Other Small Contracts,Mo Dymond Support Groups,500.00, 01-Oct-2015
1616,Revenue,CCHD,Health Inequalities,Other Small Contracts,Mo Dymond Support Groups,500.00, 01-Oct-2015
1617,Revenue,CCHD,Health Inequalities,Other Small Contracts,Mo Dymond Support Groups,500.00, 01-Oct-2015
1618,Revenue,CCHD,Health Inequalities,Other Small Contracts,Paul`s Place,2000.00, 01-Oct-2015
1619,Revenue,CCHD,Health Inequalities,Other Small Contracts,The Care Forum,10262.50, 01-Oct-2015
1620,Revenue,CCHD,Health Inequalities,Other Supplies & Services,Wellington Road Family Practice L81642,1500.00, 08-Oct-2015
1621,Revenue,CCHD,"Physical Activity, Nutrition & Obesity",Consultants Fees,Five Square Solutions Limited,550.00, 16-Oct-2015
1622,Revenue,CCHD,"Physical Activity, Nutrition & Obesity",Project Funding,NHS South West CSU,594.37, 15-Oct-2015
1623,Revenue,CCHD,"Physical Activity, Nutrition & Obesity",Project Funding,NHS South West CSU,776.50, 15-Oct-2015
1624,Revenue,CCHD,"Physical Activity, Nutrition & Obesity",Other Small Contracts,Weight Watchers UK Ltd,14550.00, 02-Oct-2015
1625,Revenue,CCHD,Mental Health and Emotional Wellbeing,Other Small Contracts,Age UK South Gloucestershire,14475.00, 01-Oct-2015
1626,Revenue,CCHD,Mental Health and Emotional Wellbeing,Other Small Contracts,Alzheimers Society,10983.75, 01-Oct-2015
1627,Revenue,CCHD,Mental Health and Emotional Wellbeing,Other Small Contracts,Mothers for Mothers,2250.00, 01-Oct-2015
1628,Revenue,CCHD,Children & Young People�s Health,Other Small Contracts,North Bristol NHS Trust,40917.00, 15-Oct-2015
1629,Revenue,CCHD,Children & Young People�s Health,Other Small Contracts,North Bristol NHS Trust,40917.00, 15-Oct-2015
1630,Revenue,CCHD,CAH Director,Radio Pager/Mobile Phones,Vodafone Corporate Limited,46.33, 01-Oct-2015
1631,Revenue,CCHD,CAH Assistant Directors,Agency Staff (Admin/Support Staff) Pay,Gatenby Sanderson Limited,13806.00, 09-Oct-2015
1632,Revenue,CCHD,General EPH budgets,Other Supplies & Services,Avon Armour Limited,7352.00, 28-Oct-2015
1633,Revenue,CCHD,Alexandra Way,"Provisions (Food, etc)",Brake Bros,514.98, 13-Oct-2015
1634,Revenue,CCHD,Alexandra Way,"Provisions (Food, etc)",Brake Bros,626.59, 13-Oct-2015
1635,Revenue,CCHD,Alexandra Way,"Provisions (Food, etc)",Brake Bros,720.55, 13-Oct-2015
1636,Revenue,CCHD,Alexandra Way,"Provisions (Food, etc)",Brake Bros,613.60, 13-Oct-2015
1637,Revenue,CCHD,Alexandra Way,"Provisions (Food, etc)",Brake Bros,516.67, 13-Oct-2015
1638,Revenue,CCHD,Alexandra Way,"Provisions (Food, etc)",Brake Bros,720.14, 16-Oct-2015
1639,Revenue,CCHD,Alexandra Way,Prop.Serv. General Repairs,Geoff Lewis Flooring Limited,1788.00, 14-Oct-2015
1640,Revenue,CCHD,Alexandra Way,Prop.Serv. General Repairs,George Grimes,1525.00, 21-Oct-2015
1641,Revenue,CCHD,Alexandra Way,Cleaning & Domestic Services,Muzzell Healthcare,420.30, 13-Oct-2015
1642,Revenue,CCHD,Alexandra Way,Agency Staff (Operational)/PCT Pay,Prestige Nursing,629.83, 13-Oct-2015
1643,Revenue,CCHD,Alexandra Way,Laundry Services,Wash Technix,462.50, 13-Oct-2015
1644,Revenue,CCHD,Alexandra Way,Electricity,West Mercia Energy,1474.56, 12-Oct-2015
1645,Revenue,CCHD,Alexandra Way,Gas,West Mercia Energy,560.87, 12-Oct-2015
1646,Revenue,CCHD,Newton House,Security Systems,National Security Group,78.95, 21-Oct-2015
1647,Revenue,CCHD,Newton House,Electricity,West Mercia Energy,496.83, 12-Oct-2015
1648,Revenue,CCHD,Woodleaze,Agency Staff (Admin/Support Staff) Pay,BS Project Services Limited,607.02, 07-Oct-2015
1649,Revenue,CCHD,Woodleaze,Agency Staff (Admin/Support Staff) Pay,BS Project Services Limited,528.71, 19-Oct-2015
1650,Revenue,CCHD,Woodleaze,Agency Staff (Admin/Support Staff) Pay,BS Project Services Limited,521.09, 28-Oct-2015
1651,Revenue,CCHD,Woodleaze,Refuse Collection Charges,OCS Group UK Ltd,873.45, 22-Oct-2015
1652,Revenue,CCHD,Woodleaze,"Provisions (Food, etc)",School Milk Services Limited,670.38, 30-Oct-2015
1653,Revenue,CCHD,Woodleaze,Radio Pager/Mobile Phones,Vodafone Corporate Limited,24.06, 01-Oct-2015
1654,Revenue,CCHD,Woodleaze,Electricity,West Mercia Energy,1078.89, 12-Oct-2015
1655,Revenue,CCHD,Woodleaze,Gas,West Mercia Energy,532.00, 12-Oct-2015
1656,Revenue,CCHD,Woodleaze,Electricity,West Mercia Energy,1020.59, 27-Oct-2015
1657,Revenue,CCHD,Kingswood Centre - Maple Suite,Personal Needs of Clients,Medaco,925.00, 15-Oct-2015
1658,Revenue,CCHD,Kingswood Centre - Maple Suite,Agency Staff (Operational)/PCT Pay,Prestige Nursing,1046.50, 21-Oct-2015
1659,Revenue,CCHD,Kingswood Centre - Maple Suite,Agency Staff (Operational)/PCT Pay,Prestige Nursing,1046.50, 21-Oct-2015
1660,Revenue,CCHD,Kingswood Centre - Maple Suite,Agency Staff (Operational)/PCT Pay,Prestige Nursing,1014.30, 06-Oct-2015
1661,Revenue,CCHD,Kingswood Centre - Maple Suite,Agency Staff (Operational)/PCT Pay,Prestige Nursing,1014.30, 06-Oct-2015
1662,Revenue,CCHD,Kingswood Centre - Maple Suite,Agency Staff (Operational)/PCT Pay,Prestige Nursing,563.50, 06-Oct-2015
1663,Revenue,CCHD,Home Care - General,Radio Pager/Mobile Phones,Vodafone Corporate Limited,41.63, 01-Oct-2015
1664,Revenue,CCHD,Telecare,Other Supplies & Services,Tunstall Healthcare (UK) Limited,1700.00, 12-Oct-2015
1665,Revenue,CCHD,Community Support - North,Preventative Assistance,KCC Cleaning Services Limited,594.00, 21-Oct-2015
1666,Revenue,CCHD,Community Support - MH < 65,Preventative Assistance,Cedar Lodge Kennels,563.60, 16-Oct-2015
1667,Revenue,CCHD,Research & Conferences,Membership Fees,Assoc of Directors of Adult Social Services,1700.00, 21-Oct-2015
1668,Revenue,CCHD,Research & Conferences,Other Supplies & Services,Cardiff Council,716.00, 26-Oct-2015
1669,Revenue,CCHD,Finance - FAB,Radio Pager/Mobile Phones,Vodafone Corporate Limited,61.77, 01-Oct-2015
1670,Revenue,CCHD,User Involvement,Training Expenses,PSC Business Consultants,495.00, 16-Oct-2015
1671,Revenue,CCHD,Contracts & Commissioning Team,Radio Pager/Mobile Phones,Vodafone Corporate Limited,40.44, 01-Oct-2015
1672,Revenue,CCHD,Planning and Partnerships Team,Training Expenses,Hays Specialist Recruitment,854.64, 07-Oct-2015
1673,Revenue,CCHD,Planning and Partnerships Team,Other Supplies & Services,NEF Consulting Ltd,525.00, 01-Oct-2015
1674,Revenue,CCHD,Planning and Partnerships Team,Other Supplies & Services,NEF Consulting Ltd,525.00, 01-Oct-2015
1675,Revenue,CCHD,Planning and Partnerships Team,Radio Pager/Mobile Phones,Vodafone Corporate Limited,42.79, 01-Oct-2015
1676,Revenue,CCHD,Information Systems Team - enabling CSP,Radio Pager/Mobile Phones,Vodafone Corporate Limited,15.37, 01-Oct-2015
1677,Revenue,CCHD,Information Systems - Software,Computer Equipment - Purchase,BT Global Services Solutions,985.98, 26-Oct-2015
1678,Revenue,CCHD,Information Systems - Software,Computer Equipment - Purchase,Stone Computers Limited,8080.00, 26-Oct-2015
1679,Revenue,CCHD,Information Systems - Software,Computer Equipment - Purchase,Stone Computers Limited,4848.00, 26-Oct-2015
1680,Revenue,CCHD,Information Systems - Software,Computer Equipment - Purchase,Stone Computers Limited,27472.00, 26-Oct-2015
1681,Revenue,CCHD,Information Systems - Software,Radio Pager/Mobile Phones,Vodafone Corporate Limited,58.92, 01-Oct-2015
1682,Revenue,CCHD,Senior Management,Radio Pager/Mobile Phones,Vodafone Corporate Limited,212.26, 01-Oct-2015
1683,Revenue,CCHD,Management & Support costs,Legal Fees,Mr Julian Milford,540.00, 05-Oct-2015
1684,Revenue,CCHD,Management & Support costs,Legal Fees,Mr Peter Lockley,3960.00, 05-Oct-2015
1685,Revenue,CCHD,Younger Adult Mental Health,Health Services (Third Party Payments),Avon & Wiltshire Mental Health,1667.00, 02-Oct-2015
1686,Revenue,CCHD,Care Management Team - South,Agency Staff (Operational)/PCT Pay,IPE,934.38, 09-Oct-2015
1687,Revenue,CCHD,Care Management Team - South,"Holidays, Outings & Visits",Neville Williams,544.00, 02-Oct-2015
1688,Revenue,CCHD,Care Management Team - South,"Holidays, Outings & Visits",Neville Williams,816.00, 30-Oct-2015
1689,Revenue,CCHD,Care Management Team - South,Radio Pager/Mobile Phones,Vodafone Corporate Limited,50.32, 01-Oct-2015
1690,Revenue,CCHD,Prison Assessments & Costs,Other Supplies & Services,Bristol Community Health CIC,40190.67, 12-Oct-2015
1691,Revenue,CCHD,Training - Adult Services,Training Expenses,Bob Dawson,1325.00, 12-Oct-2015
1692,Revenue,CCHD,Training - Adult Services,Training Expenses,Chris Garnier,750.00, 16-Oct-2015
1693,Revenue,CCHD,Training - Adult Services,Training Expenses,JK Training,1900.00, 05-Oct-2015
1694,Revenue,CCHD,Training - Adult Services,Training Expenses,JK Training,700.00, 30-Oct-2015
1695,Revenue,CCHD,Training - Adult Services,Training Expenses,Jo Williams,1057.00, 09-Oct-2015
1696,Revenue,CCHD,Training - Adult Services,Training Expenses,Sean Collins,800.00, 14-Oct-2015
1697,Revenue,CCHD,Training - Adult Services,Training Expenses,St Peter`s Hospice,1200.00, 12-Oct-2015
1698,Revenue,CCHD,Drug/Alcohol Residential Rehab,Security Systems,National Security Group,21.67, 21-Oct-2015
1699,Revenue,CCHD,Supporting People Programme,Grants to Voluntary Bodies,1625 Independent People,16872.78, 01-Oct-2015
1700,Revenue,CCHD,Supporting People Programme,Grants to Voluntary Bodies,1625 Independent People,16872.78, 30-Oct-2015
1701,Revenue,CCHD,Supporting People Programme,Grants to Voluntary Bodies,Anchor Housing,905.17, 01-Oct-2015
1702,Revenue,CCHD,Supporting People Programme,Grants to Voluntary Bodies,Anchor Housing,905.17, 30-Oct-2015
1703,Revenue,CCHD,Supporting People Programme,Grants to Voluntary Bodies,Aspects and Milestones Trust,3254.35, 01-Oct-2015
1704,Revenue,CCHD,Supporting People Programme,Grants to Voluntary Bodies,Aspects and Milestones Trust,1631.60, 01-Oct-2015
1705,Revenue,CCHD,Supporting People Programme,Grants to Voluntary Bodies,Aspects and Milestones Trust,2476.54, 01-Oct-2015
1706,Revenue,CCHD,Supporting People Programme,Grants to Voluntary Bodies,Aspects and Milestones Trust,3254.35, 30-Oct-2015
1707,Revenue,CCHD,Supporting People Programme,Grants to Voluntary Bodies,Aspects and Milestones Trust,1631.60, 30-Oct-2015
1708,Revenue,CCHD,Supporting People Programme,Grants to Voluntary Bodies,Aspects and Milestones Trust,2476.54, 30-Oct-2015
1709,Revenue,CCHD,Supporting People Programme,Grants to Voluntary Bodies,Bristol Missing Link,2012.42, 01-Oct-2015
1710,Revenue,CCHD,Supporting People Programme,Grants to Voluntary Bodies,Bristol Missing Link,1464.82, 01-Oct-2015
1711,Revenue,CCHD,Supporting People Programme,Grants to Voluntary Bodies,Bristol Missing Link,2012.42, 30-Oct-2015
1712,Revenue,CCHD,Supporting People Programme,Grants to Voluntary Bodies,Bristol Missing Link,1464.82, 30-Oct-2015
1713,Revenue,CCHD,Supporting People Programme,Grants to Voluntary Bodies,Bromford Housing Group,14201.99, 01-Oct-2015
1714,Revenue,CCHD,Supporting People Programme,Grants to Voluntary Bodies,Bromford Housing Group,14201.99, 30-Oct-2015
1715,Revenue,CCHD,Supporting People Programme,Grants to Voluntary Bodies,Elim Housing Association Limited,5072.70, 01-Oct-2015
1716,Revenue,CCHD,Supporting People Programme,Grants to Voluntary Bodies,Elim Housing Association Limited,5072.70, 30-Oct-2015
1717,Revenue,CCHD,Supporting People Programme,Grants to Voluntary Bodies,Freeways Trust Limited,8053.04, 01-Oct-2015
1718,Revenue,CCHD,Supporting People Programme,Grants to Voluntary Bodies,Freeways Trust Limited,8053.04, 30-Oct-2015
1719,Revenue,CCHD,Supporting People Programme,Grants to Voluntary Bodies,Habinteg Housing Association,1373.26, 01-Oct-2015
1720,Revenue,CCHD,Supporting People Programme,Grants to Voluntary Bodies,Habinteg Housing Association,1373.26, 30-Oct-2015
1721,Revenue,CCHD,Supporting People Programme,Grants to Voluntary Bodies,Hanover Housing Association,982.83, 01-Oct-2015
1722,Revenue,CCHD,Supporting People Programme,Grants to Voluntary Bodies,Hanover Housing Association,982.83, 30-Oct-2015
1723,Revenue,CCHD,Supporting People Programme,Grants to Voluntary Bodies,Housing 21,623.07, 01-Oct-2015
1724,Revenue,CCHD,Supporting People Programme,Grants to Voluntary Bodies,Housing 21,945.10, 01-Oct-2015
1725,Revenue,CCHD,Supporting People Programme,Grants to Voluntary Bodies,Housing 21,623.07, 30-Oct-2015
1726,Revenue,CCHD,Supporting People Programme,Grants to Voluntary Bodies,Housing 21,945.10, 30-Oct-2015
1727,Revenue,CCHD,Supporting People Programme,Grants to Voluntary Bodies,Keyring Living Support Networks,2948.50, 01-Oct-2015
1728,Revenue,CCHD,Supporting People Programme,Grants to Voluntary Bodies,Keyring Living Support Networks,2948.50, 30-Oct-2015
1729,Revenue,CCHD,Supporting People Programme,Grants to Voluntary Bodies,Kingswood Young Homeless Project,17126.66, 01-Oct-2015
1730,Revenue,CCHD,Supporting People Programme,Grants to Voluntary Bodies,Kingswood Young Homeless Project,17126.66, 30-Oct-2015
1731,Revenue,CCHD,Supporting People Programme,Grants to Voluntary Bodies,Knightstone Housing Association Limited,13659.70, 01-Oct-2015
1732,Revenue,CCHD,Supporting People Programme,Grants to Voluntary Bodies,Knightstone Housing Association Limited,7684.61, 01-Oct-2015
1733,Revenue,CCHD,Supporting People Programme,Grants to Voluntary Bodies,Knightstone Housing Association Limited,1809.08, 01-Oct-2015
1734,Revenue,CCHD,Supporting People Programme,Grants to Voluntary Bodies,Knightstone Housing Association Limited,2509.56, 01-Oct-2015
1735,Revenue,CCHD,Supporting People Programme,Grants to Voluntary Bodies,Knightstone Housing Association Limited,2510.15, 01-Oct-2015
1736,Revenue,CCHD,Supporting People Programme,Grants to Voluntary Bodies,Knightstone Housing Association Limited,853.70, 01-Oct-2015
1737,Revenue,CCHD,Supporting People Programme,Grants to Voluntary Bodies,Knightstone Housing Association Limited,8630.13, 01-Oct-2015
1738,Revenue,CCHD,Supporting People Programme,Grants to Voluntary Bodies,Knightstone Housing Association Limited,13659.70, 30-Oct-2015
1739,Revenue,CCHD,Supporting People Programme,Grants to Voluntary Bodies,Knightstone Housing Association Limited,7684.61, 30-Oct-2015
1740,Revenue,CCHD,Supporting People Programme,Grants to Voluntary Bodies,Knightstone Housing Association Limited,1809.08, 30-Oct-2015
1741,Revenue,CCHD,Supporting People Programme,Grants to Voluntary Bodies,Knightstone Housing Association Limited,2509.56, 30-Oct-2015
1742,Revenue,CCHD,Supporting People Programme,Grants to Voluntary Bodies,Knightstone Housing Association Limited,2510.15, 30-Oct-2015
1743,Revenue,CCHD,Supporting People Programme,Grants to Voluntary Bodies,Knightstone Housing Association Limited,853.70, 30-Oct-2015
1744,Revenue,CCHD,Supporting People Programme,Grants to Voluntary Bodies,Knightstone Housing Association Limited,8630.13, 30-Oct-2015
1745,Revenue,CCHD,Supporting People Programme,Grants to Voluntary Bodies,Merlin Housing Society,14786.49, 01-Oct-2015
1746,Revenue,CCHD,Supporting People Programme,Grants to Voluntary Bodies,Merlin Housing Society,2485.47, 01-Oct-2015
1747,Revenue,CCHD,Supporting People Programme,Grants to Voluntary Bodies,Merlin Housing Society,47076.50, 01-Oct-2015
1748,Revenue,CCHD,Supporting People Programme,Grants to Voluntary Bodies,Merlin Housing Society,1053.09, 01-Oct-2015
1749,Revenue,CCHD,Supporting People Programme,Grants to Voluntary Bodies,Merlin Housing Society,14786.49, 30-Oct-2015
1750,Revenue,CCHD,Supporting People Programme,Grants to Voluntary Bodies,Merlin Housing Society,2485.47, 30-Oct-2015
1751,Revenue,CCHD,Supporting People Programme,Grants to Voluntary Bodies,Merlin Housing Society,47076.50, 30-Oct-2015
1752,Revenue,CCHD,Supporting People Programme,Grants to Voluntary Bodies,Merlin Housing Society,1053.09, 30-Oct-2015
1753,Revenue,CCHD,Supporting People Programme,Grants to Voluntary Bodies,Mr & Mrs Watts,1009.70, 01-Oct-2015
1754,Revenue,CCHD,Supporting People Programme,Grants to Voluntary Bodies,Mr & Mrs Watts,1009.70, 30-Oct-2015
1755,Revenue,CCHD,Supporting People Programme,Grants to Voluntary Bodies,Redland Housing Association Ltd,745.72, 01-Oct-2015
1756,Revenue,CCHD,Supporting People Programme,Grants to Voluntary Bodies,Redland Housing Association Ltd,745.72, 30-Oct-2015
1757,Revenue,CCHD,Supporting People Programme,Grants to Voluntary Bodies,Second Step Housing Association,13599.72, 01-Oct-2015
1758,Revenue,CCHD,Supporting People Programme,Grants to Voluntary Bodies,Second Step Housing Association,12004.51, 01-Oct-2015
1759,Revenue,CCHD,Supporting People Programme,Grants to Voluntary Bodies,Second Step Housing Association,13599.72, 30-Oct-2015
1760,Revenue,CCHD,Supporting People Programme,Grants to Voluntary Bodies,Second Step Housing Association,12004.51, 30-Oct-2015
1761,Revenue,CCHD,Supporting People Programme,Grants to Voluntary Bodies,Supported Independence Ltd,3063.90, 01-Oct-2015
1762,Revenue,CCHD,Supporting People Programme,Grants to Voluntary Bodies,Supported Independence Ltd,3063.90, 30-Oct-2015
1763,Revenue,CCHD,Supporting People Programme,Grants to Voluntary Bodies,Supported Independent Living Schemes,4757.58, 01-Oct-2015
1764,Revenue,CCHD,Supporting People Programme,Grants to Voluntary Bodies,Supported Independent Living Schemes,6163.69, 01-Oct-2015
1765,Revenue,CCHD,Supporting People Programme,Grants to Voluntary Bodies,Supported Independent Living Schemes,4757.58, 30-Oct-2015
1766,Revenue,CCHD,Supporting People Programme,Grants to Voluntary Bodies,Supported Independent Living Schemes,6163.69, 30-Oct-2015
1767,Revenue,CCHD,Supporting People Programme,Grants to Voluntary Bodies,The Hatch Camphill Community,2103.05, 01-Oct-2015
1768,Revenue,CCHD,Supporting People Programme,Grants to Voluntary Bodies,The Hatch Camphill Community,2103.05, 30-Oct-2015
1769,Revenue,CCHD,Supporting People Programme,Grants to Voluntary Bodies,The Riverside Group Limited,2093.08, 01-Oct-2015
1770,Revenue,CCHD,Supporting People Programme,Grants to Voluntary Bodies,The Riverside Group Limited,2093.08, 30-Oct-2015
1771,Revenue,CCHD,Bed and Breakfast,Bed & Breakfast,Bristol Housing & Support Limited,490.00, 26-Oct-2015
1772,Revenue,CCHD,Bed and Breakfast,Bed & Breakfast,Bristol Housing & Support Limited,490.00, 26-Oct-2015
1773,Revenue,CCHD,Bed and Breakfast,Bed & Breakfast,Connolly & Callaghan Limited,700.00, 16-Oct-2015
1774,Revenue,CCHD,Bed and Breakfast,Bed & Breakfast,Connolly & Callaghan Limited,588.00, 19-Oct-2015
1775,Revenue,CCHD,Bed and Breakfast,Bed & Breakfast,Connolly & Callaghan Limited,581.00, 19-Oct-2015
1776,Revenue,CCHD,Bed and Breakfast,Bed & Breakfast,Connolly & Callaghan Limited,686.00, 16-Oct-2015
1777,Revenue,CCHD,Bed and Breakfast,Bed & Breakfast,Connolly & Callaghan Limited,630.00, 16-Oct-2015
1778,Revenue,CCHD,Bed and Breakfast,Bed & Breakfast,Connolly & Callaghan Limited,441.00, 08-Oct-2015
1779,Revenue,CCHD,Bed and Breakfast,Bed & Breakfast,Connolly & Callaghan Limited,476.00, 08-Oct-2015
1780,Revenue,CCHD,Bed and Breakfast,Bed & Breakfast,Connolly & Callaghan Limited,700.00, 08-Oct-2015
1781,Revenue,CCHD,Bed and Breakfast,Bed & Breakfast,Connolly & Callaghan Limited,616.00, 08-Oct-2015
1782,Revenue,CCHD,Bed and Breakfast,Bed & Breakfast,Connolly & Callaghan Limited,686.00, 08-Oct-2015
1783,Revenue,CCHD,Bed and Breakfast,Bed & Breakfast,Connolly & Callaghan Limited,581.00, 08-Oct-2015
1784,Revenue,CCHD,Bed and Breakfast,Bed & Breakfast,Connolly & Callaghan Limited,511.00, 08-Oct-2015
1785,Revenue,CCHD,Bed and Breakfast,Bed & Breakfast,Connolly & Callaghan Limited,686.00, 08-Oct-2015
1786,Revenue,CCHD,Bed and Breakfast,Bed & Breakfast,Connolly & Callaghan Limited,686.00, 08-Oct-2015
1787,Revenue,CCHD,Bed and Breakfast,Bed & Breakfast,Connolly & Callaghan Limited,630.00, 08-Oct-2015
1788,Revenue,CCHD,Bed and Breakfast,Bed & Breakfast,Connolly & Callaghan Limited,616.00, 08-Oct-2015
1789,Revenue,CCHD,Bed and Breakfast,Bed & Breakfast,Connolly & Callaghan Limited,700.00, 15-Oct-2015
1790,Revenue,CCHD,Bed and Breakfast,Bed & Breakfast,Connolly & Callaghan Limited,511.00, 15-Oct-2015
1791,Revenue,CCHD,Bed and Breakfast,Bed & Breakfast,Connolly & Callaghan Limited,686.00, 19-Oct-2015
1792,Revenue,CCHD,Bed and Breakfast,Bed & Breakfast,Connolly & Callaghan Limited,581.00, 19-Oct-2015
1793,Revenue,CCHD,Bed and Breakfast,Bed & Breakfast,Connolly & Callaghan Limited,511.00, 15-Oct-2015
1794,Revenue,CCHD,Bed and Breakfast,Bed & Breakfast,Connolly & Callaghan Limited,686.00, 15-Oct-2015
1795,Revenue,CCHD,Bed and Breakfast,Bed & Breakfast,Connolly & Callaghan Limited,686.00, 28-Oct-2015
1796,Revenue,CCHD,Bed and Breakfast,Bed & Breakfast,Connolly & Callaghan Limited,630.00, 15-Oct-2015
1797,Revenue,CCHD,Bed and Breakfast,Bed & Breakfast,Connolly & Callaghan Limited,616.00, 15-Oct-2015
1798,Revenue,CCHD,Bed and Breakfast,Other Supplies & Services,Connolly & Callaghan Limited,476.00, 27-Oct-2015
1799,Revenue,CCHD,Bed and Breakfast,Bed & Breakfast,Connolly & Callaghan Limited,700.00, 26-Oct-2015
1800,Revenue,CCHD,Bed and Breakfast,Bed & Breakfast,Connolly & Callaghan Limited,686.00, 26-Oct-2015
1801,Revenue,CCHD,Bed and Breakfast,Bed & Breakfast,Connolly & Callaghan Limited,581.00, 26-Oct-2015
1802,Revenue,CCHD,Bed and Breakfast,Bed & Breakfast,Connolly & Callaghan Limited,686.00, 26-Oct-2015
1803,Revenue,CCHD,Bed and Breakfast,Bed & Breakfast,Connolly & Callaghan Limited,476.00, 26-Oct-2015
1804,Revenue,CCHD,Bed and Breakfast,Bed & Breakfast,Connolly & Callaghan Limited,630.00, 26-Oct-2015
1805,Revenue,CCHD,Bed and Breakfast,Bed & Breakfast,Connolly & Callaghan Limited,511.00, 26-Oct-2015
1806,Revenue,CCHD,Bed and Breakfast,Bed & Breakfast,Connolly & Callaghan Limited,476.00, 30-Oct-2015
1807,Revenue,CCHD,Bed and Breakfast,Bed & Breakfast,Connolly & Callaghan Limited,546.00, 30-Oct-2015
1808,Revenue,CCHD,Bed and Breakfast,Bed & Breakfast,Connolly & Callaghan Limited,700.00, 30-Oct-2015
1809,Revenue,CCHD,Bed and Breakfast,Bed & Breakfast,Connolly & Callaghan Limited,511.00, 30-Oct-2015
1810,Revenue,CCHD,Bed and Breakfast,Bed & Breakfast,Connolly & Callaghan Limited,686.00, 30-Oct-2015
1811,Revenue,CCHD,Bed and Breakfast,Bed & Breakfast,Connolly & Callaghan Limited,581.00, 30-Oct-2015
1812,Revenue,CCHD,Bed and Breakfast,Bed & Breakfast,Connolly & Callaghan Limited,511.00, 30-Oct-2015
1813,Revenue,CCHD,Bed and Breakfast,Bed & Breakfast,Connolly & Callaghan Limited,686.00, 30-Oct-2015
1814,Revenue,CCHD,Bed and Breakfast,Bed & Breakfast,Connolly & Callaghan Limited,476.00, 30-Oct-2015
1815,Revenue,CCHD,Bed and Breakfast,Bed & Breakfast,Connolly & Callaghan Limited,511.00, 30-Oct-2015
1816,Revenue,CCHD,Bed and Breakfast,Bed & Breakfast,Connolly & Callaghan Limited,616.00, 30-Oct-2015
1817,Revenue,CCHD,Bed and Breakfast,Bed & Breakfast,E J Bartlett,420.00, 06-Oct-2015
1818,Revenue,CCHD,Bed and Breakfast,Bed & Breakfast,E J Bartlett,504.00, 29-Oct-2015
1819,Revenue,CCHD,Bed and Breakfast,Bed & Breakfast,E J Bartlett,930.00, 15-Oct-2015
1820,Revenue,CCHD,Bed and Breakfast,Bed & Breakfast,E J Bartlett,420.00, 15-Oct-2015
1821,Revenue,CCHD,Bed and Breakfast,Bed & Breakfast,E J Bartlett,682.00, 19-Oct-2015
1822,Revenue,CCHD,Bed and Breakfast,Bed & Breakfast,E J Bartlett,504.00, 19-Oct-2015
1823,Revenue,CCHD,Bed and Breakfast,Bed & Breakfast,E J Bartlett,434.00, 23-Oct-2015
1824,Revenue,CCHD,Bed and Breakfast,Bed & Breakfast,E J Bartlett,420.00, 26-Oct-2015
